Workbook

Sheet dTo
B1: =WbkTitle -> Course Deviation in Order to Find Stronger Lift (No Wind, Graphs)
B2: =IF(dT_given=0,"Break-Even Curves","dT = "&dT_given&" min Curves") -> Break-Even Curves
B3: Description | C3: Name | D3: Q'ty | E3: Unit
B4: Initial Altitude | C4: H_0_u | D4: 3000 | E4: =H_sym_u -> ft
B5: Maximum Altitude | C5: H_max_u | D5: 8000 | E5: =H_sym_u -> ft
B6: Minimum Altitude | C6: H_min_u | D6: 2000 | E6: =H_sym_u -> ft
B7: Initial Distance to Next TP | C7: D_TP_u | D7: 8 | E7: =L_sym_u -> mi
B8: Use Glider Polar for | C8: Polar | D8: Std. Cirrus
B9: Wing Loading | C9: WL_u | D9: 6.2 | E9: =WL_sym_u -> lb/sf
B10: Climb Rate in Thermal 1 (MC setting) | C10: W_th1_u | D10: 2 | E10: =W_sym_u -> kts
B11: Climb Rate in Thermal 2 | C11: W_th2_u | D11: 3 | E11: =W_sym_u -> kts
B12: Extend Glide [TRUE/FALSE] | C12: Ext_glide | D12: FALSE
A13: H | B13: Initial Altitude (su) | C13: H_0 | D13: =H_0_u*H_mul -> 0.4937365007 | E13: =H_sym -> nm
A14: H | B14: Maximum Altitude (su) | C14: H_max | D14: =H_max_u*H_mul -> 1.316630669 | E14: =H_sym -> nm
A15: H | B15: Minimum Altitude (su) | C15: H_min | D15: =H_min_u*H_mul -> 0.3291576671 | E15: =H_sym -> nm
A16: H | B16: Initial Distance to Next TP (su) | C16: D_TP | D16: =D_TP_u*L_mul -> 6.951809936 | E16: =L_sym -> nm
A17: H | B17: Glider Polar No | C17: PolarNo | D17: =MATCH(D8,Gliders,0) -> 3
A18: H | B18: PolarDataTable | C18: Polar_WL | D18: =VLOOKUP("WL",PolarDataTable,PolarNo,FALSE) -> 30
A19: H | B19: SeeYou a adjusted for Rho and WL | C19: Polar_a | D19: =VLOOKUP("a",PolarDataTable,PolarNo,FALSE) -> 2.22
A20: H | B20: SeeYou b adjusted for Rho and WL | C20: Polar_b | D20: =VLOOKUP("b",PolarDataTable,PolarNo,FALSE) -> -3.5
A21: H | B21: SeeYou c adjusted for Rho and WL | C21: Polar_c | D21: =VLOOKUP("c",PolarDataTable,PolarNo,FALSE) -> 2.06
A22: H | B22: Mean Altitude (su) | C22: H_mean | D22: =AVERAGE(H_0,H_max)*6076.11549 -> 5500 | E22: H_sym
A23: H | B23: Mean Density (su) | C23: Rho_Mean | D23: =INDEX(Z_AirProperties(H_mean*0.3048),9) -> 1.003852547 | E23: kg/m³
A24: H | B24: Density Factor | C24: F_Rho | D24: =SQRT(1.225/Rho_Mean) -> 1.104671327 | E24: -
A25: H | B25: Wing Loading (su) | C25: WL | D25: =WL_u*WL_mul -> 30.27105135 | E25: =WL_sym -> kg/m²
A26: H | B26: Wing Loading Factor | C26: F_WL | D26: =SQRT(WL/Polar_WL) -> 1.004507364 | E26: -
A27: H | B27: Climb Rate in Thermal 1 (MC setting) (su) | C27: W_th1 | D27: =W_th1_u*W_mul -> 2 | E27: =W_sym -> kts
A28: H | B28: Climb Rate in Thermal 2 (su) | C28: W_th2 | D28: =W_th2_u*W_mul -> 3 | E28: =W_sym -> kts
A29: H | B29: Cruise Speed According to MC (Calc) (su) | C29: V_cr_c | D29: =SQRT((Polar_c+W_th1*1.852/3.6/F_Rho/F_WL)/Polar_a)*100/1.852 -> 62.63485175 | E29: =V_sym -> kts
A30: H | B30: Cruise Speed per MC (True) (su) | C30: V_cr | D30: =V_cr_c*F_Rho*F_WL -> 69.50279353 | E30: =V_sym -> kts
A31: H | B31: Cruise Speed per MC (Calibrated) (su) | C31: V_cr_i | D31: =V_cr_c*F_WL -> 62.91716984 | E31: =V_sym -> kts
B32: Cruise Speed per MC (Calibrated) | C32: V_cr_i_u | D32: =V_cr_i/V_mul -> 62.91716984 | E32: =V_sym_u -> kts
A33: H | B33: Cruise Sink Rate (Calc) (su) | C33: W_cr_c | D33: =(Polar_a*(V_cr_c*1.852/100)^2+Polar_b*(V_cr_c*1.852/100)+Polar_c)*3.6/1.852 -> 1.91901732 | E33: =W_sym -> kts
A34: H | B34: Cruise Sink Rate (True) (su) | C34: W_cr | D34: =D33*F_Rho*F_WL -> 2.129438496 | E34: =W_sym -> kts
A35: H | B35: Cruise Sink Rate (True) | C35: W_cr_u | D35: =W_cr/W_mul -> 2.129438496 | E35: =W_sym_u -> kts
B36: Cruise Glide Ratio | C36: E_cr | D36: =V_cr/W_cr -> 32.63902369 | E36: -
B37: Calculate curves for dT <> 0 (set dT) | C37: dT_given | D37: 0 | E37: min
A38: H | B38: Climb Rate Increment | C38: W_inc_u | D38: =(W_th2_u-W_th1_u)/4 -> 0.25 | E38: =W_sym_u -> kts
A39: H | B39: Lines (1) or Smooth (2) | C39: LineSmooth | D39: 2 | E39: -
A71: H | B71: SubTitle
A72: H | B72: ="H init/H max/H min = "&H_0_u&"/"&H_max_u&"/"&H_min_u&" "&H_sym_u&CHAR(10)&"Dist. to TP = "&D_TP_u&" "&L_sym_u&"; "&Polar&" WL = "&WL_u&" "&WL_sym_u -> H init/H max/H min = 3000/8000/2000 ft Dist. to TP = 8 mi; Std. Cirrus WL = 6.2 lb/sf
A73: H | C73: ="W_th2 ("&W_sym_u&")" -> W_th2 (kts) | D73: =W_th1_u+W_inc_u -> 2.25 | G73: =D73+W_inc_u -> 2.5 | J73: =G73+W_inc_u -> 2.75 | M73: =J73+W_inc_u -> 3 | P73: =M73+W_inc_u -> 3.25
A74: H | D74: =D73&"/"&W_th1_u&" "&W_sym_u -> 2.25/2 kts | G74: =G73&"/"&W_th1_u&" "&W_sym_u -> 2.5/2 kts | J74: =J73&"/"&W_th1_u&" "&W_sym_u -> 2.75/2 kts | M74: =M73&"/"&W_th1_u&" "&W_sym_u -> 3/2 kts | P74: =P73&"/"&W_th1_u&" "&W_sym_u -> 3.25/2 kts
A75: H | C75: ="W_th2 ("&W_sym&")" -> W_th2 (kts) | D75: =D73*W_mul -> 2.25 | G75: =G73*W_mul -> 2.5 | J75: =J73*W_mul -> 2.75 | M75: =M73*W_mul -> 3 | P75: =P73*W_mul -> 3.25
A76: H | C76: A_Dev (°) | D76: ="D_dev ("&L_sym_u&")" -> D_dev (mi) | E76: ="X ("&L_sym_u&")" -> X (mi) | F76: ="Y ("&L_sym_u&")" -> Y (mi) | G76: ="D_dev ("&L_sym_u&")" -> D_dev (mi) | H76: ="X ("&L_sym_u&")" -> X (mi) | I76: ="Y ("&L_sym_u&")" -> Y (mi) | J76: ="D_dev ("&L_sym_u&")" -> D_dev (mi) | K76: ="X ("&L_sym_u&")" -> X (mi) | L76: ="Y ("&L_sym_u&")" -> Y (mi) | M76: ="D_dev ("&L_sym_u&")" -> D_dev (mi) | N76: ="X ("&L_sym_u&")" -> X (mi) | O76: ="Y ("&L_sym_u&")" -> Y (mi) | P76: ="D_dev ("&L_sym_u&")" -> D_dev (mi) | Q76: ="X ("&L_sym_u&")" -> X (mi) | R76: ="Y ("&L_sym_u&")" -> Y (mi)
A77: H | C77: 0 | D77: =Calc_D_dev(H_0,H_max,H_min,Ext_glide,D_TP,V_cr,W_cr,W_th1,D$75,$C77:$C122,dT_given,TRUE)/L_mul ->  | E77: =D77*SIN(RADIANS($C77)) ->  | F77: =D77*COS(RADIANS($C77)) ->  | G77: =Calc_D_dev(H_0,H_max,H_min,Ext_glide,D_TP,V_cr,W_cr,W_th1,G$75,$C77:$C122,dT_given,TRUE)/L_mul ->  | H77: =G77*SIN(RADIANS($C77)) ->  | I77: =G77*COS(RADIANS($C77)) ->  | J77: =Calc_D_dev(H_0,H_max,H_min,Ext_glide,D_TP,V_cr,W_cr,W_th1,J$75,$C77:$C122,dT_given,TRUE)/L_mul ->  | K77: =J77*SIN(RADIANS($C77)) ->  | L77: =J77*COS(RADIANS($C77)) ->  | M77: =Calc_D_dev(H_0,H_max,H_min,Ext_glide,D_TP,V_cr,W_cr,W_th1,M$75,$C77:$C122,dT_given,TRUE)/L_mul ->  | N77: =M77*SIN(RADIANS($C77)) ->  | O77: =M77*COS(RADIANS($C77)) ->  | P77: =Calc_D_dev(H_0,H_max,H_min,Ext_glide,D_TP,V_cr,W_cr,W_th1,P$75,$C77:$C122,dT_given,TRUE)/L_mul ->  | Q77: =P77*SIN(RADIANS($C77)) ->  | R77: =P77*COS(RADIANS($C77)) -> 
A78: H | C78: 1 | E78: =D78*SIN(RADIANS($C78)) ->  | F78: =D78*COS(RADIANS($C78)) ->  | H78: =G78*SIN(RADIANS($C78)) ->  | I78: =G78*COS(RADIANS($C78)) ->  | K78: =J78*SIN(RADIANS($C78)) ->  | L78: =J78*COS(RADIANS($C78)) ->  | N78: =M78*SIN(RADIANS($C78)) ->  | O78: =M78*COS(RADIANS($C78)) ->  | Q78: =P78*SIN(RADIANS($C78)) ->  | R78: =P78*COS(RADIANS($C78)) -> 
A79: H | C79: 2
A80: H | C80: 3
A81: H | C81: 4
A82: H | C82: 5
A83: H | C83: 6
A84: H | C84: 7
A85: H | C85: 8
A86: H | C86: 9
A87: H | C87: 10
A88: H | C88: 11
A89: H | C89: 12
A90: H | C90: 13
A91: H | C91: 14
A92: H | C92: 15
A93: H | C93: 16.5
A94: H | C94: 18
A95: H | C95: 19.5 | D95: 6.181633269 | E95: 2.063471587 | F95: 5.827064002
A96: H | C96: 21 | D96: 6.181633269 | E96: 2.21529924 | F96: 5.771051824
A97: H | C97: 22.5 | D97: 6.181633269 | E97: 2.365608637 | F97: 5.711084455
A98: H | C98: 24 | D98: 6.181633269 | E98: 2.514296765 | F98: 5.647202994
A99: H | C99: 25.5 | D99: 6.181633269 | E99: 2.661261719 | F99: 5.579451222
A100: H | C100: 27 | D100: 6.181633269 | E100: 2.806402777 | F100: 5.507875573 | G100: 6.181633269 | H100: 2.806402777 | I100: 5.507875573
A101: H | C101: 28.5 | D101: 6.181633269 | E101: 2.949620467 | F101: 5.432525101 | G101: 6.181633269 | H101: 2.949620467 | I101: 5.432525101
A102: H | C102: 30 | D102: 6.011757397 | E102: 3.005878698 | F102: 5.206334627 | G102: 6.181633269 | H102: 3.090816635 | I102: 5.353451448
A103: H | C103: 32.5 | D103: 5.662152525 | E103: 3.042272334 | F103: =D103*COS(RADIANS($C103)) -> 4.775411004 | G103: 6.181633269 | H103: 3.321389134 | I103: 5.21353662 | J103: 6.181633269 | K103: 3.321389134 | L103: 5.21353662
A104: H | C104: 35 | D104: 5.326323155 | E104: 3.055053454 | F104: 4.363068501 | G104: 6.181633269 | H104: 3.545639181 | I104: 5.06369753 | J104: 6.181633269 | K104: 3.545639181 | L104: 5.06369753 | M104: 6.181633269 | N104: 3.545639181 | O104: 5.06369753
A105: H | C105: 37.5 | D105: 5.006700419 | E105: 3.047886102 | F105: 3.972082501 | G105: 6.181633269 | H105: 3.763139903 | I105: 4.904219403 | J105: 6.181633269 | K105: 3.763139903 | L105: 4.904219403 | M105: 6.181633269 | N105: 3.763139903 | O105: 4.904219403 | P105: 6.181633269 | Q105: 3.763139903 | R105: 4.904219403
A106: H | C106: 40 | D106: 4.704810582 | E106: 3.024193948 | F106: 3.604094002 | G106: 6.181633269 | H106: 3.973477273 | I106: 4.735405815 | J106: 6.181633269 | K106: 3.973477273 | L106: 4.735405815 | M106: 6.181633269 | N106: 3.973477273 | O106: 4.735405815 | P106: 6.181633269 | Q106: 3.973477273 | R106: 4.735405815
A107: H | C107: 42.5 | D107: 4.421427783 | E107: 2.987073314 | F107: 3.259818501 | G107: 6.181633269 | H107: 4.176250904 | I107: 4.557578114 | J107: 6.181633269 | K107: 4.176250904 | L107: 4.557578114 | M107: 6.181633269 | N107: 4.176250904 | O107: 4.557578114 | P107: 6.181633269 | Q107: 4.176250904 | R107: 4.557578114
A108: H | C108: 45 | D108: 4.15672937 | E108: 2.939251525 | F108: 2.939251525 | G108: 6.143558421 | H108: 4.34415182 | I108: 4.34415182 | J108: 6.181633269 | K108: 4.371074803 | L108: 4.371074803 | M108: 6.181633269 | N108: 4.371074803 | O108: 4.371074803 | P108: 6.181633269 | Q108: 4.371074803 | R108: 4.371074803
A109: H | C109: 50 | D109: 3.681961532 | E109: 2.820546171 | F109: 2.366719252 | G109: 5.620378836 | H109: 4.305459976 | I109: 3.612709878 | J109: 6.181633269 | K109: 4.735405815 | L109: 3.973477273 | M109: 6.181633269 | N109: 4.735405815 | O109: 3.973477273 | P109: 6.181633269 | Q109: 4.735405815 | R109: 3.973477273
A110: H | C110: 55 | D110: 3.275016816 | E110: 2.68273672 | F110: 1.878472475 | G110: 5.141465777 | H110: 4.211642202 | I110: 2.949023618 | J110: 6.181633269 | K110: 5.06369753 | L110: 3.545639181 | M110: 6.181633269 | N110: 5.06369753 | O110: 3.545639181 | P110: 6.181633269 | Q110: 5.06369753 | R110: 3.545639181
A111: H | C111: 60 | D111: 2.928077194 | E111: 2.535789234 | F111: 1.464038597 | G111: 4.708972416 | H111: 4.078089738 | I111: 2.354486208 | J111: 5.982024164 | K111: 5.180584892 | L111: 2.991012082 | M111: 6.181633269 | N111: 5.353451448 | O111: 3.090816635 | P111: 6.181633269 | Q111: 5.353451448 | R111: 3.090816635
A112: H | C112: 65 | D112: 2.632842392 | E112: 2.386165562 | F112: 1.112687275 | G112: 4.322163819 | H112: 3.917210726 | I112: 1.82662536 | J112: 5.558237563 | K112: 5.037473986 | L112: 2.349012697 | M112: 6.181633269 | N112: 5.602462368 | O112: 2.612471107 | P112: 6.181633269 | Q112: 5.602462368 | R112: 2.612471107
A113: H | C113: 70 | D113: 2.381492955 | E113: 2.237871357 | F113: 0.814518562 | G113: 3.978515258 | H113: 3.738581429 | I113: 1.360732359 | J113: 5.171928997 | K113: 4.860023514 | L113: 1.768903897 | M113: 6.120636468 | N113: 5.751516924 | O113: 2.093380962 | P113: 6.181633269 | Q113: 5.808835167 | R113: 2.114243097
A114: H | C114: 75 | D114: 2.167101967 | E114: 2.093259758 | F114: 0.5608872617 | G114: 3.674547775 | H114: 3.549340596 | I114: 0.9510429462 | J114: 4.822317979 | K114: 4.658001479 | L114: 1.248107735 | M114: 5.744049231 | N114: 5.5483255 | O114: 1.486669337 | P114: 6.181633269 | Q114: 5.970999223 | R114: 1.59992442
A115: H | C115: 80 | D115: 1.983741169 | E115: 1.953603683 | F115: 0.3444730389 | G115: 3.406406714 | H115: 3.354655742 | I115: 0.5915163183 | J115: 4.507622817 | K115: 4.439141898 | L115: 0.7827404877 | M115: 5.400318956 | N115: 5.318275977 | O115: 0.9377555456 | P115: 6.146029794 | Q115: 6.052657792 | R115: 1.067246874
A116: H | C116: 85 | D116: 1.826436211 | E116: 1.819486069 | F116: 0.1591844045 | G116: 3.170229645 | H116: 3.158165964 | I116: 0.2763037194 | J116: 4.225488322 | K116: 4.209409063 | L116: 0.3682755732 | M116: 5.088282282 | N116: 5.068919831 | O116: 0.4434730216 | P116: 5.812932884 | Q116: 5.79081292 | R116: 0.5066304831
A117: H | C117: 90 | D117: 1.691059002 | E117: 1.691059002 | F117: 1.035899161e-16 | G117: 2.962359933 | H117: 2.962359933 | I117: 1.814665347e-16 | J117: 3.973296655 | K117: 3.973296655 | L117: 2.433939129e-16 | M117: 4.806243873 | N117: 4.806243873 | O117: 2.944181127e-16 | P117: 5.50934749 | Q117: 5.50934749 | R117: 3.374884283e-16
A118: H | C118: 100 | D118: 1.473064314 | E118: 1.450685157 | F118: -0.2557949337 | G118: 2.618531267 | H118: 2.578749893 | I118: -0.4547031827 | J118: 3.548153462 | K118: 3.494249038 | L118: -0.6161303828 | M118: 4.324104439 | N118: 4.258411577 | O118: -0.7508728559 | P118: 4.984841001 | Q118: 4.909110066 | R118: -0.8656085558
A119: H | C119: 120 | D119: 1.185177107 | E119: 1.026393483 | F119: -0.5925885534 | G119: 2.147048901 | H119: 1.859398891 | I119: -1.07352445 | J119: 2.948953968 | K119: 2.553869051 | L119: -1.474476984 | M119: 3.630406091 | N119: 3.144023901 | O119: -1.815203046 | P119: 4.218015728 | Q119: 3.652908774 | R119: -2.109007864
A120: H | C120: 140 | D120: 1.022039753 | E120: 0.6569544899 | F120: -0.7829278735 | G120: 1.871022633 | H120: 1.202670166 | I120: -1.433286491 | J120: 2.589539893 | K120: 1.664524158 | L120: -1.983702645 | M120: 3.206486487 | N120: 2.061089784 | O120: -2.456311155 | P120: 3.742473137 | Q120: 2.405615362 | R120: -2.86690075
A121: H | C121: 160 | D121: 0.9377169613 | E121: 0.3207180895 | F121: -0.8811657089 | G121: 1.725842298 | H121: 0.5902728302 | I121: -1.621761272 | J121: 2.397988435 | K121: 0.8201603482 | L121: -2.253372037 | M121: 2.978216387 | N121: 1.018609996 | O121: -2.798607962 | P121: 3.484284461 | Q121: 1.191695471 | R121: -3.274156397
A122: H | C122: 180 | D122: 0.9115872717 | E122: 1.116829737e-16 | F122: -0.9115872717 | G122: 1.680508513 | H122: 2.058872408e-16 | I122: -1.680508513 | J122: 2.337824431 | K122: 2.86418199e-16 | L122: -2.337824431 | M122: 2.906189424 | N122: 3.560513482e-16 | O122: -2.906189424 | P122: 3.40251507 | Q122: 4.168586081e-16 | R122: -3.40251507
A123: H | C123: =INDIRECT(ADDRESS(ROW($C$122)-(ROW()-ROW($C$122)),COLUMN())) -> 160 | D123: =Calc_D_dev(H_0,H_max,H_min,Ext_glide,D_TP,V_cr,W_cr,W_th1,D$75,$C123:$C167,dT_given,FALSE)/L_mul -> 0.9377169613 | E123: 0.3207180895 | F123: -0.8811657089 | G123: =Calc_D_dev(H_0,H_max,H_min,Ext_glide,D_TP,V_cr,W_cr,W_th1,G$75,$C123:$C167,dT_given,FALSE)/L_mul -> 1.725842298 | H123: 0.5902728302 | I123: -1.621761272 | J123: =Calc_D_dev(H_0,H_max,H_min,Ext_glide,D_TP,V_cr,W_cr,W_th1,J$75,$C123:$C167,dT_given,FALSE)/L_mul -> 2.397988435 | K123: 0.8201603482 | L123: -2.253372037 | M123: =Calc_D_dev(H_0,H_max,H_min,Ext_glide,D_TP,V_cr,W_cr,W_th1,M$75,$C123:$C167,dT_given,FALSE)/L_mul -> 2.978216387 | N123: 1.018609996 | O123: -2.798607962 | P123: =Calc_D_dev(H_0,H_max,H_min,Ext_glide,D_TP,V_cr,W_cr,W_th1,P$75,$C123:$C167,dT_given,FALSE)/L_mul -> 3.484284461 | Q123: 1.191695471 | R123: -3.274156397
A124: H | C124: =INDIRECT(ADDRESS(ROW($C$122)-(ROW()-ROW($C$122)),COLUMN())) -> 140 | D124: 1.022039753 | E124: 0.6569544897 | F124: -0.7829278732 | G124: 1.871022633 | H124: 1.202670166 | I124: -1.433286491 | J124: 2.589539893 | K124: 1.664524158 | L124: -1.983702645 | M124: 3.206486487 | N124: 2.061089784 | O124: -2.456311155 | P124: 3.742473137 | Q124: 2.405615362 | R124: -2.86690075
A125: H | C125: 120 | D125: 1.185177107 | E125: 1.026393483 | F125: -0.5925885536 | G125: 2.147048901 | H125: 1.859398891 | I125: -1.07352445 | J125: 2.948953968 | K125: 2.553869051 | L125: -1.474476984 | M125: 3.630406091 | N125: 3.144023901 | O125: -1.815203046 | P125: 4.218015727 | Q125: 3.652908773 | R125: -2.109007864
A126: H | C126: 100 | D126: 1.473064314 | E126: 1.450685157 | F126: -0.2557949337 | G126: 2.618531264 | H126: 2.57874989 | I126: -0.4547031821 | J126: 3.548153465 | K126: 3.494249041 | L126: -0.6161303832 | M126: 4.32410444 | N126: 4.258411578 | O126: -0.7508728561 | P126: 4.984841002 | Q126: 4.909110066 | R126: -0.8656085559
A127: H | C127: 90 | D127: 1.691059001 | E127: 1.691059001 | F127: 1.035899161e-16 | G127: 2.962359933 | H127: 2.962359933 | I127: 1.814665347e-16 | J127: 3.973296655 | K127: 3.973296655 | L127: 2.433939129e-16 | M127: 4.806243875 | N127: 4.806243875 | O127: 2.944181129e-16 | P127: 5.509347491 | Q127: 5.509347491 | R127: 3.374884283e-16
A128: H | C128: 85 | D128: 1.826436207 | E128: 1.819486066 | F128: 0.1591844042 | G128: 3.170229645 | H128: 3.158165964 | I128: 0.2763037194 | J128: 4.225488322 | K128: 4.209409063 | L128: 0.3682755732 | M128: 5.088282284 | N128: 5.068919834 | O128: 0.4434730218 | P128: 5.812932884 | Q128: 5.790812919 | R128: 0.506630483
A129: H | C129: 80 | D129: 1.983741169 | E129: 1.953603683 | F129: 0.3444730389 | G129: 3.406406714 | H129: 3.354655742 | I129: 0.5915163182 | J129: 4.507622815 | K129: 4.439141896 | L129: 0.7827404874 | M129: 5.400318957 | N129: 5.318275977 | O129: 0.9377555456 | P129: 6.14602979 | Q129: 6.052657787 | R129: 1.067246873
A130: H | C130: 75 | D130: 2.167101968 | E130: 2.093259759 | F130: 0.5608872619 | G130: 3.674547773 | H130: 3.549340594 | I130: 0.9510429458 | J130: 4.822317972 | K130: 4.658001471 | L130: 1.248107733 | M130: 5.744049236 | N130: 5.548325504 | O130: 1.486669338 | P130: 6.181633269 | Q130: 5.970999223 | R130: 1.59992442
A131: H | C131: 70 | D131: 2.381492957 | E131: 2.237871358 | F131: 0.8145185625 | G131: 3.978515251 | H131: 3.738581423 | I131: 1.360732356 | J131: 5.171928997 | K131: 4.860023514 | L131: 1.768903897 | M131: 6.120636473 | N131: 5.751516928 | O131: 2.093380964 | P131: 6.181633269 | Q131: 5.808835167 | R131: 2.114243097
A132: H | C132: 65 | D132: 2.632842395 | E132: 2.386165564 | F132: 1.112687276 | G132: 4.32216382 | H132: 3.917210726 | I132: 1.82662536 | J132: 5.558237563 | K132: 5.037473986 | L132: 2.349012697 | M132: 6.181633269 | N132: 5.602462368 | O132: 2.612471107 | P132: 6.181633269 | Q132: 5.602462368 | R132: 2.612471107
A133: H | C133: 60 | D133: 2.928077196 | E133: 2.535789236 | F133: 1.464038598 | G133: 4.708972416 | H133: 4.078089738 | I133: 2.354486208 | J133: 5.982024163 | K133: 5.180584891 | L133: 2.991012081 | M133: 6.181633269 | N133: 5.353451448 | O133: 3.090816635 | P133: 6.181633269 | Q133: 5.353451448 | R133: 3.090816635
A134: H | C134: 55 | D134: 3.275016829 | E134: 2.68273673 | F134: 1.878472482 | G134: 5.141465774 | H134: 4.2116422 | I134: 2.949023617 | J134: 6.181633269 | K134: 5.06369753 | L134: 3.545639181 | M134: 6.181633269 | N134: 5.06369753 | O134: 3.545639181 | P134: 6.181633269 | Q134: 5.06369753 | R134: 3.545639181
A135: H | C135: 50 | D135: 3.681961552 | E135: 2.820546187 | F135: 2.366719265 | G135: 5.620378817 | H135: 4.305459961 | I135: 3.612709865 | J135: 6.181633269 | K135: 4.735405815 | L135: 3.973477273 | M135: 6.181633269 | N135: 4.735405815 | O135: 3.973477273 | P135: 6.181633269 | Q135: 4.735405815 | R135: 3.973477273
A136: H | C136: 45 | D136: 4.156729388 | E136: 2.939251538 | F136: 2.939251538 | G136: 6.143558421 | H136: 4.34415182 | I136: 4.34415182 | J136: 6.181633269 | K136: 4.371074803 | L136: 4.371074803 | M136: 6.181633269 | N136: 4.371074803 | O136: 4.371074803 | P136: 6.181633269 | Q136: 4.371074803 | R136: 4.371074803
A137: H | C137: 42.5 | D137: 4.421427821 | E137: 2.98707334 | F137: 3.259818529 | G137: 6.181633269 | H137: 4.176250904 | I137: 4.557578114 | J137: 6.181633269 | K137: 4.176250904 | L137: 4.557578114 | M137: 6.181633269 | N137: 4.176250904 | O137: 4.557578114 | P137: 6.181633269 | Q137: 4.176250904 | R137: 4.557578114
A138: H | C138: 40 | D138: 4.704810623 | E138: 3.024193975 | F138: 3.604094034 | G138: 6.181633269 | H138: 3.973477273 | I138: 4.735405815 | J138: 6.181633269 | K138: 3.973477273 | L138: 4.735405815 | M138: 6.181633269 | N138: 3.973477273 | O138: 4.735405815 | P138: 6.181633269 | Q138: 3.973477273 | R138: 4.735405815
A139: H | C139: 37.5 | D139: 5.00670046 | E139: 3.047886127 | F139: 3.972082534 | G139: 6.181633269 | H139: 3.763139903 | I139: 4.904219403 | J139: 6.181633269 | K139: 3.763139903 | L139: 4.904219403 | M139: 6.181633269 | N139: 3.763139903 | O139: 4.904219403 | P139: 6.181633269 | Q139: 3.763139903 | R139: 4.904219403
A140: H | C140: 35 | D140: 5.326323189 | E140: 3.055053474 | F140: 4.363068529 | G140: 6.181633269 | H140: 3.545639181 | I140: 5.06369753 | J140: 6.181633269 | K140: 3.545639181 | L140: 5.06369753 | M140: 6.181633269 | N140: 3.545639181 | O140: 5.06369753 | P140: 6.181633269 | Q140: 3.545639181 | R140: 5.06369753
A141: H | C141: 32.5 | D141: 5.662152542 | E141: =D141*SIN(RADIANS($C141)) -> 3.042272343 | F141: =D141*COS(RADIANS($C141)) -> 4.775411019 | G141: 6.181633269 | H141: 3.321389134 | I141: 5.21353662 | J141: 6.181633269 | K141: 3.321389134 | L141: 5.21353662 | M141: 6.181633269 | N141: 3.321389134 | O141: 5.21353662 | P141: 6.181633269 | Q141: 3.321389134 | R141: 5.21353662
A142: H | C142: 30 | D142: 6.011757391 | E142: 3.005878695 | F142: 5.206334622 | G142: 6.181633269 | H142: =G142*SIN(RADIANS($C142)) -> 3.090816635 | I142: =G142*COS(RADIANS($C142)) -> 5.353451448 | J142: 6.181633269 | K142: =J142*SIN(RADIANS($C142)) -> 3.090816635 | L142: =J142*COS(RADIANS($C142)) -> 5.353451448 | M142: 6.181633269 | N142: =M142*SIN(RADIANS($C142)) -> 3.090816635 | O142: =M142*COS(RADIANS($C142)) -> 5.353451448 | P142: 6.181633269 | Q142: =P142*SIN(RADIANS($C142)) -> 3.090816635 | R142: =P142*COS(RADIANS($C142)) -> 5.353451448
A143: H | C143: 28.5 | D143: 6.181633269 | E143: 2.949620467 | F143: 5.432525101 | G143: 6.181633269 | H143: 2.949620467 | I143: 5.432525101 | J143: 6.181633269 | K143: 2.949620467 | L143: 5.432525101 | M143: 6.181633269 | N143: 2.949620467 | O143: 5.432525101 | P143: 6.181633269 | Q143: 2.949620467 | R143: 5.432525101
A144: H | C144: 27 | D144: 6.181633269 | E144: 2.806402777 | F144: 5.507875573 | G144: 6.181633269 | H144: 2.806402777 | I144: 5.507875573 | J144: 6.181633269 | K144: 2.806402777 | L144: 5.507875573 | M144: 6.181633269 | N144: 2.806402777 | O144: 5.507875573 | P144: 6.181633269 | Q144: 2.806402777 | R144: 5.507875573
A145: H | C145: 25.5 | D145: 6.181633269 | E145: 2.661261719 | F145: 5.579451222 | G145: 6.181633269 | H145: 2.661261719 | I145: 5.579451222 | J145: 6.181633269 | K145: 2.661261719 | L145: 5.579451222 | M145: 6.181633269 | N145: 2.661261719 | O145: 5.579451222 | P145: 6.181633269 | Q145: 2.661261719 | R145: 5.579451222
A146: H | C146: 24 | D146: 6.181633269 | E146: 2.514296765 | F146: 5.647202994 | G146: 6.181633269 | H146: 2.514296765 | I146: 5.647202994 | J146: 6.181633269 | K146: 2.514296765 | L146: 5.647202994 | M146: 6.181633269 | N146: 2.514296765 | O146: 5.647202994 | P146: 6.181633269 | Q146: 2.514296765 | R146: 5.647202994
A147: H | C147: 22.5 | D147: 6.181633269 | E147: 2.365608637 | F147: 5.711084455 | G147: 6.181633269 | H147: 2.365608637 | I147: 5.711084455 | J147: 6.181633269 | K147: 2.365608637 | L147: 5.711084455 | M147: 6.181633269 | N147: 2.365608637 | O147: 5.711084455 | P147: 6.181633269 | Q147: 2.365608637 | R147: 5.711084455
A148: H | C148: 21 | D148: 6.181633269 | E148: 2.21529924 | F148: 5.771051824 | G148: 6.181633269 | H148: 2.21529924 | I148: 5.771051824 | J148: 6.181633269 | K148: 2.21529924 | L148: 5.771051824 | M148: 6.181633269 | N148: 2.21529924 | O148: 5.771051824 | P148: 6.181633269 | Q148: 2.21529924 | R148: 5.771051824
A149: H | C149: 19.5 | D149: 6.181633269 | E149: 2.063471587 | F149: 5.827064002 | G149: 6.181633269 | H149: 2.063471587 | I149: 5.827064002 | J149: 6.181633269 | K149: 2.063471587 | L149: 5.827064002 | M149: 6.181633269 | N149: 2.063471587 | O149: 5.827064002 | P149: 6.181633269 | Q149: 2.063471587 | R149: 5.827064002
A150: H | C150: 18 | D150: 6.181633269 | E150: 1.910229733 | F150: 5.879082602 | G150: 6.181633269 | H150: 1.910229733 | I150: 5.879082602 | J150: 6.181633269 | K150: 1.910229733 | L150: 5.879082602 | M150: 6.181633269 | N150: 1.910229733 | O150: 5.879082602 | P150: 6.181633269 | Q150: 1.910229733 | R150: 5.879082602
A151: H | C151: 16.5 | D151: 6.181633269 | E151: 1.755678704 | F151: 5.927071972 | G151: 6.181633269 | H151: 1.755678704 | I151: 5.927071972 | J151: 6.181633269 | K151: 1.755678704 | L151: 5.927071972 | M151: 6.181633269 | N151: 1.755678704 | O151: 5.927071972 | P151: 6.181633269 | Q151: 1.755678704 | R151: 5.927071972
A152: H | C152: 15 | D152: 6.181633269 | E152: 1.59992442 | F152: 5.970999223 | G152: 6.181633269 | H152: 1.59992442 | I152: 5.970999223 | J152: 6.181633269 | K152: 1.59992442 | L152: 5.970999223 | M152: 6.181633269 | N152: 1.59992442 | O152: 5.970999223 | P152: 6.181633269 | Q152: 1.59992442 | R152: 5.970999223
A153: H | C153: 14 | D153: 6.181633269 | E153: 1.495472438 | F153: 5.998012343 | G153: 6.181633269 | H153: 1.495472438 | I153: 5.998012343 | J153: 6.181633269 | K153: 1.495472438 | L153: 5.998012343 | M153: 6.181633269 | N153: 1.495472438 | O153: 5.998012343 | P153: 6.181633269 | Q153: 1.495472438 | R153: 5.998012343
A154: H | C154: 13 | D154: 6.181633269 | E154: 1.390564921 | F154: 6.023198409 | G154: 6.181633269 | H154: 1.390564921 | I154: 6.023198409 | J154: 6.181633269 | K154: 1.390564921 | L154: 6.023198409 | M154: 6.181633269 | N154: 1.390564921 | O154: 6.023198409 | P154: 6.181633269 | Q154: 1.390564921 | R154: 6.023198409
A155: H | C155: 12 | D155: 6.181633269 | E155: 1.285233825 | F155: 6.046549751 | G155: 6.181633269 | H155: 1.285233825 | I155: 6.046549751 | J155: 6.181633269 | K155: 1.285233825 | L155: 6.046549751 | M155: 6.181633269 | N155: 1.285233825 | O155: 6.046549751 | P155: 6.181633269 | Q155: 1.285233825 | R155: 6.046549751
A156: H | C156: 11 | D156: 6.181633269 | E156: 1.179511234 | F156: 6.068059255 | G156: 6.181633269 | H156: 1.179511234 | I156: 6.068059255 | J156: 6.181633269 | K156: 1.179511234 | L156: 6.068059255 | M156: 6.181633269 | N156: 1.179511234 | O156: 6.068059255 | P156: 6.181633269 | Q156: 1.179511234 | R156: 6.068059255
A157: H | C157: 10 | D157: 6.181633269 | E157: 1.073429352 | F157: 6.08772037 | G157: 6.181633269 | H157: 1.073429352 | I157: 6.08772037 | J157: 6.181633269 | K157: 1.073429352 | L157: 6.08772037 | M157: 6.181633269 | N157: 1.073429352 | O157: 6.08772037 | P157: 6.181633269 | Q157: 1.073429352 | R157: 6.08772037
A158: H | C158: 9 | D158: 6.181633269 | E158: 0.9670204935 | F158: 6.105527106 | G158: 6.181633269 | H158: 0.9670204935 | I158: 6.105527106 | J158: 6.181633269 | K158: 0.9670204935 | L158: 6.105527106 | M158: 6.181633269 | N158: 0.9670204935 | O158: 6.105527106 | P158: 6.181633269 | Q158: 0.9670204935 | R158: 6.105527106
A159: H | C159: 8 | D159: 6.181633269 | E159: 0.8603170711 | F159: 6.121474039 | G159: 6.181633269 | H159: 0.8603170711 | I159: 6.121474039 | J159: 6.181633269 | K159: 0.8603170711 | L159: 6.121474039 | M159: 6.181633269 | N159: 0.8603170711 | O159: 6.121474039 | P159: 6.181633269 | Q159: 0.8603170711 | R159: 6.121474039
A160: H | C160: 7 | D160: 6.181633269 | E160: 0.7533515877 | F160: 6.135556312 | G160: 6.181633269 | H160: 0.7533515877 | I160: 6.135556312 | J160: 6.181633269 | K160: 0.7533515877 | L160: 6.135556312 | M160: 6.181633269 | N160: 0.7533515877 | O160: 6.135556312 | P160: 6.181633269 | Q160: 0.7533515877 | R160: 6.135556312
A161: H | C161: 6 | D161: 6.181633269 | E161: 0.6461566261 | F161: 6.147769635 | G161: 6.181633269 | H161: 0.6461566261 | I161: 6.147769635 | J161: 6.181633269 | K161: 0.6461566261 | L161: 6.147769635 | M161: 6.181633269 | N161: 0.6461566261 | O161: 6.147769635 | P161: 6.181633269 | Q161: 0.6461566261 | R161: 6.147769635
A162: H | C162: 5 | D162: 6.181633269 | E162: 0.538764839 | F162: 6.158110288 | G162: 6.181633269 | H162: 0.538764839 | I162: 6.158110288 | J162: 6.181633269 | K162: 0.538764839 | L162: 6.158110288 | M162: 6.181633269 | N162: 0.538764839 | O162: 6.158110288 | P162: 6.181633269 | Q162: 0.538764839 | R162: 6.158110288
A163: H | C163: 4 | D163: 6.181633269 | E163: 0.4312089388 | F163: 6.166575121 | G163: 6.181633269 | H163: 0.4312089388 | I163: 6.166575121 | J163: 6.181633269 | K163: 0.4312089388 | L163: 6.166575121 | M163: 6.181633269 | N163: 0.4312089388 | O163: 6.166575121 | P163: 6.181633269 | Q163: 0.4312089388 | R163: 6.166575121
A164: H | C164: 3 | D164: 6.181633269 | E164: 0.3235216883 | F164: 6.173161556 | G164: 6.181633269 | H164: 0.3235216883 | I164: 6.173161556 | J164: 6.181633269 | K164: 0.3235216883 | L164: 6.173161556 | M164: 6.181633269 | N164: 0.3235216883 | O164: 6.173161556 | P164: 6.181633269 | Q164: 0.3235216883 | R164: 6.173161556
A165: H | C165: 2 | D165: 6.181633269 | E165: 0.2157358899 | F165: 6.177867585 | G165: 6.181633269 | H165: 0.2157358899 | I165: 6.177867585 | J165: 6.181633269 | K165: 0.2157358899 | L165: 6.177867585 | M165: 6.181633269 | N165: 0.2157358899 | O165: 6.177867585 | P165: 6.181633269 | Q165: 0.2157358899 | R165: 6.177867585
A166: H | C166: 1 | D166: 6.181633269 | E166: 0.1078843763 | F166: 6.180691777 | G166: 6.181633269 | H166: 0.1078843763 | I166: 6.180691777 | J166: 6.181633269 | K166: 0.1078843763 | L166: 6.180691777 | M166: 6.181633269 | N166: 0.1078843763 | O166: 6.180691777 | P166: 6.181633269 | Q166: 0.1078843763 | R166: 6.180691777
A167: H | C167: 0 | D167: 6.181633269 | E167: 0 | F167: 6.181633269 | G167: 6.181633269 | H167: 0 | I167: 6.181633269 | J167: 6.181633269 | K167: 0 | L167: 6.181633269 | M167: 6.181633269 | N167: 0 | O167: 6.181633269 | P167: 6.181633269 | Q167: 0 | R167: 6.181633269
A168: H | C168: =360-C77 -> 360 | E168: =-INDIRECT(ADDRESS(ROW(E$167)-(ROW()-ROW(E$167)-1),COLUMN())) -> 0 | F168: =INDIRECT(ADDRESS(ROW(F$167)-(ROW()-ROW(F$167)-1),COLUMN())) -> 6.181633269 | H168: =-INDIRECT(ADDRESS(ROW(H$167)-(ROW()-ROW(H$167)-1),COLUMN())) -> 0 | I168: =INDIRECT(ADDRESS(ROW(I$167)-(ROW()-ROW(I$167)-1),COLUMN())) -> 6.181633269 | K168: =-INDIRECT(ADDRESS(ROW(K$167)-(ROW()-ROW(K$167)-1),COLUMN())) -> 0 | L168: =INDIRECT(ADDRESS(ROW(L$167)-(ROW()-ROW(L$167)-1),COLUMN())) -> 6.181633269 | N168: =-INDIRECT(ADDRESS(ROW(N$167)-(ROW()-ROW(N$167)-1),COLUMN())) -> 0 | O168: =INDIRECT(ADDRESS(ROW(O$167)-(ROW()-ROW(O$167)-1),COLUMN())) -> 6.181633269 | Q168: =-INDIRECT(ADDRESS(ROW(Q$167)-(ROW()-ROW(Q$167)-1),COLUMN())) -> 0 | R168: =INDIRECT(ADDRESS(ROW(R$167)-(ROW()-ROW(R$167)-1),COLUMN())) -> 6.181633269
A169: H | C169: =360-C78 -> 359 | E169: =-INDIRECT(ADDRESS(ROW(E$167)-(ROW()-ROW(E$167)-1),COLUMN())) -> -0.1078843763 | F169: =INDIRECT(ADDRESS(ROW(F$167)-(ROW()-ROW(F$167)-1),COLUMN())) -> 6.180691777 | H169: =-INDIRECT(ADDRESS(ROW(H$167)-(ROW()-ROW(H$167)-1),COLUMN())) -> -0.1078843763 | I169: =INDIRECT(ADDRESS(ROW(I$167)-(ROW()-ROW(I$167)-1),COLUMN())) -> 6.180691777 | K169: =-INDIRECT(ADDRESS(ROW(K$167)-(ROW()-ROW(K$167)-1),COLUMN())) -> -0.1078843763 | L169: =INDIRECT(ADDRESS(ROW(L$167)-(ROW()-ROW(L$167)-1),COLUMN())) -> 6.180691777 | N169: =-INDIRECT(ADDRESS(ROW(N$167)-(ROW()-ROW(N$167)-1),COLUMN())) -> -0.1078843763 | O169: =INDIRECT(ADDRESS(ROW(O$167)-(ROW()-ROW(O$167)-1),COLUMN())) -> 6.180691777 | Q169: =-INDIRECT(ADDRESS(ROW(Q$167)-(ROW()-ROW(Q$167)-1),COLUMN())) -> -0.1078843763 | R169: =INDIRECT(ADDRESS(ROW(R$167)-(ROW()-ROW(R$167)-1),COLUMN())) -> 6.180691777
A170: H | C170: =360-C79 -> 358 | E170: =-INDIRECT(ADDRESS(ROW(E$167)-(ROW()-ROW(E$167)-1),COLUMN())) -> -0.2157358899 | F170: =INDIRECT(ADDRESS(ROW(F$167)-(ROW()-ROW(F$167)-1),COLUMN())) -> 6.177867585 | H170: =-INDIRECT(ADDRESS(ROW(H$167)-(ROW()-ROW(H$167)-1),COLUMN())) -> -0.2157358899 | I170: =INDIRECT(ADDRESS(ROW(I$167)-(ROW()-ROW(I$167)-1),COLUMN())) -> 6.177867585 | K170: =-INDIRECT(ADDRESS(ROW(K$167)-(ROW()-ROW(K$167)-1),COLUMN())) -> -0.2157358899 | L170: =INDIRECT(ADDRESS(ROW(L$167)-(ROW()-ROW(L$167)-1),COLUMN())) -> 6.177867585 | N170: =-INDIRECT(ADDRESS(ROW(N$167)-(ROW()-ROW(N$167)-1),COLUMN())) -> -0.2157358899 | O170: =INDIRECT(ADDRESS(ROW(O$167)-(ROW()-ROW(O$167)-1),COLUMN())) -> 6.177867585 | Q170: =-INDIRECT(ADDRESS(ROW(Q$167)-(ROW()-ROW(Q$167)-1),COLUMN())) -> -0.2157358899 | R170: =INDIRECT(ADDRESS(ROW(R$167)-(ROW()-ROW(R$167)-1),COLUMN())) -> 6.177867585
A171: H | C171: 357 | E171: -0.3235216883 | F171: 6.173161556 | H171: -0.3235216883 | I171: 6.173161556 | K171: -0.3235216883 | L171: 6.173161556 | N171: -0.3235216883 | O171: 6.173161556 | Q171: -0.3235216883 | R171: 6.173161556
A172: H | C172: 356 | E172: -0.4312089388 | F172: 6.166575121 | H172: -0.4312089388 | I172: 6.166575121 | K172: -0.4312089388 | L172: 6.166575121 | N172: -0.4312089388 | O172: 6.166575121 | Q172: -0.4312089388 | R172: 6.166575121
A173: H | C173: 355 | E173: -0.538764839 | F173: 6.158110288 | H173: -0.538764839 | I173: 6.158110288 | K173: -0.538764839 | L173: 6.158110288 | N173: -0.538764839 | O173: 6.158110288 | Q173: -0.538764839 | R173: 6.158110288
A174: H | C174: 354 | E174: -0.6461566261 | F174: 6.147769635 | H174: -0.6461566261 | I174: 6.147769635 | K174: -0.6461566261 | L174: 6.147769635 | N174: -0.6461566261 | O174: 6.147769635 | Q174: -0.6461566261 | R174: 6.147769635
A175: H | C175: 353 | E175: -0.7533515877 | F175: 6.135556312 | H175: -0.7533515877 | I175: 6.135556312 | K175: -0.7533515877 | L175: 6.135556312 | N175: -0.7533515877 | O175: 6.135556312 | Q175: -0.7533515877 | R175: 6.135556312
A176: H | C176: 352 | E176: -0.8603170711 | F176: 6.121474039 | H176: -0.8603170711 | I176: 6.121474039 | K176: -0.8603170711 | L176: 6.121474039 | N176: -0.8603170711 | O176: 6.121474039 | Q176: -0.8603170711 | R176: 6.121474039
A177: H | C177: 351 | E177: -0.9670204935 | F177: 6.105527106 | H177: -0.9670204935 | I177: 6.105527106 | K177: -0.9670204935 | L177: 6.105527106 | N177: -0.9670204935 | O177: 6.105527106 | Q177: -0.9670204935 | R177: 6.105527106
A178: H | C178: 350 | E178: -1.073429352 | F178: 6.08772037 | H178: -1.073429352 | I178: 6.08772037 | K178: -1.073429352 | L178: 6.08772037 | N178: -1.073429352 | O178: 6.08772037 | Q178: -1.073429352 | R178: 6.08772037
A179: H | C179: 349 | E179: -1.179511234 | F179: 6.068059255 | H179: -1.179511234 | I179: 6.068059255 | K179: -1.179511234 | L179: 6.068059255 | N179: -1.179511234 | O179: 6.068059255 | Q179: -1.179511234 | R179: 6.068059255
A180: H | C180: 348 | E180: -1.285233825 | F180: 6.046549751 | H180: -1.285233825 | I180: 6.046549751 | K180: -1.285233825 | L180: 6.046549751 | N180: -1.285233825 | O180: 6.046549751 | Q180: -1.285233825 | R180: 6.046549751
A181: H | C181: 347 | E181: -1.390564921 | F181: 6.023198409 | H181: -1.390564921 | I181: 6.023198409 | K181: -1.390564921 | L181: 6.023198409 | N181: -1.390564921 | O181: 6.023198409 | Q181: -1.390564921 | R181: 6.023198409
A182: H | C182: 346 | E182: -1.495472438 | F182: 5.998012343 | H182: -1.495472438 | I182: 5.998012343 | K182: -1.495472438 | L182: 5.998012343 | N182: -1.495472438 | O182: 5.998012343 | Q182: -1.495472438 | R182: 5.998012343
A183: H | C183: 345 | E183: -1.59992442 | F183: 5.970999223 | H183: -1.59992442 | I183: 5.970999223 | K183: -1.59992442 | L183: 5.970999223 | N183: -1.59992442 | O183: 5.970999223 | Q183: -1.59992442 | R183: 5.970999223
A184: H | C184: 343.5 | E184: -1.755678704 | F184: 5.927071972 | H184: -1.755678704 | I184: 5.927071972 | K184: -1.755678704 | L184: 5.927071972 | N184: -1.755678704 | O184: 5.927071972 | Q184: -1.755678704 | R184: 5.927071972
A185: H | C185: 342 | E185: -1.910229733 | F185: 5.879082602 | H185: -1.910229733 | I185: 5.879082602 | K185: -1.910229733 | L185: 5.879082602 | N185: -1.910229733 | O185: 5.879082602 | Q185: -1.910229733 | R185: 5.879082602
A186: H | C186: 340.5 | E186: -2.063471587 | F186: 5.827064002 | H186: -2.063471587 | I186: 5.827064002 | K186: -2.063471587 | L186: 5.827064002 | N186: -2.063471587 | O186: 5.827064002 | Q186: -2.063471587 | R186: 5.827064002
A187: H | C187: 339 | E187: -2.21529924 | F187: 5.771051824 | H187: -2.21529924 | I187: 5.771051824 | K187: -2.21529924 | L187: 5.771051824 | N187: -2.21529924 | O187: 5.771051824 | Q187: -2.21529924 | R187: 5.771051824
A188: H | C188: 337.5 | E188: -2.365608637 | F188: 5.711084455 | H188: -2.365608637 | I188: 5.711084455 | K188: -2.365608637 | L188: 5.711084455 | N188: -2.365608637 | O188: 5.711084455 | Q188: -2.365608637 | R188: 5.711084455
A189: H | C189: 336 | E189: -2.514296765 | F189: 5.647202994 | H189: -2.514296765 | I189: 5.647202994 | K189: -2.514296765 | L189: 5.647202994 | N189: -2.514296765 | O189: 5.647202994 | Q189: -2.514296765 | R189: 5.647202994
A190: H | C190: 334.5 | E190: -2.661261719 | F190: 5.579451222 | H190: -2.661261719 | I190: 5.579451222 | K190: -2.661261719 | L190: 5.579451222 | N190: -2.661261719 | O190: 5.579451222 | Q190: -2.661261719 | R190: 5.579451222
A191: H | C191: 333 | E191: -2.806402777 | F191: 5.507875573 | H191: -2.806402777 | I191: 5.507875573 | K191: -2.806402777 | L191: 5.507875573 | N191: -2.806402777 | O191: 5.507875573 | Q191: -2.806402777 | R191: 5.507875573
A192: H | C192: 331.5 | E192: -2.949620467 | F192: 5.432525101 | H192: -2.949620467 | I192: 5.432525101 | K192: -2.949620467 | L192: 5.432525101 | N192: -2.949620467 | O192: 5.432525101 | Q192: -2.949620467 | R192: 5.432525101
A193: H | C193: 330 | E193: -3.005878695 | F193: 5.206334622 | H193: -3.090816635 | I193: 5.353451448 | K193: -3.090816635 | L193: 5.353451448 | N193: -3.090816635 | O193: 5.353451448 | Q193: -3.090816635 | R193: 5.353451448
A194: H | C194: 327.5 | E194: -3.042272343 | F194: 4.775411019 | H194: -3.321389134 | I194: 5.21353662 | K194: -3.321389134 | L194: 5.21353662 | N194: -3.321389134 | O194: 5.21353662 | Q194: -3.321389134 | R194: 5.21353662
A195: H | C195: 325 | E195: -3.055053474 | F195: 4.363068529 | H195: -3.545639181 | I195: 5.06369753 | K195: -3.545639181 | L195: 5.06369753 | N195: -3.545639181 | O195: 5.06369753 | Q195: -3.545639181 | R195: 5.06369753
A196: H | C196: 322.5 | E196: -3.047886127 | F196: 3.972082534 | H196: -3.763139903 | I196: 4.904219403 | K196: -3.763139903 | L196: 4.904219403 | N196: -3.763139903 | O196: 4.904219403 | Q196: -3.763139903 | R196: 4.904219403
A197: H | C197: 320 | E197: -3.024193975 | F197: 3.604094034 | H197: -3.973477273 | I197: 4.735405815 | K197: -3.973477273 | L197: 4.735405815 | N197: -3.973477273 | O197: 4.735405815 | Q197: -3.973477273 | R197: 4.735405815
A198: H | C198: 317.5 | E198: -2.98707334 | F198: 3.259818529 | H198: -4.176250904 | I198: 4.557578114 | K198: -4.176250904 | L198: 4.557578114 | N198: -4.176250904 | O198: 4.557578114 | Q198: -4.176250904 | R198: 4.557578114
A199: H | C199: 315 | E199: -2.939251538 | F199: 2.939251538 | H199: -4.34415182 | I199: 4.34415182 | K199: -4.371074803 | L199: 4.371074803 | N199: -4.371074803 | O199: 4.371074803 | Q199: -4.371074803 | R199: 4.371074803
A200: H | C200: 310 | E200: -2.820546187 | F200: 2.366719265 | H200: -4.305459961 | I200: 3.612709865 | K200: -4.735405815 | L200: 3.973477273 | N200: -4.735405815 | O200: 3.973477273 | Q200: -4.735405815 | R200: 3.973477273
A201: H | C201: 305 | E201: -2.68273673 | F201: 1.878472482 | H201: -4.2116422 | I201: 2.949023617 | K201: -5.06369753 | L201: 3.545639181 | N201: -5.06369753 | O201: 3.545639181 | Q201: -5.06369753 | R201: 3.545639181
A202: H | C202: 300 | E202: -2.535789236 | F202: 1.464038598 | H202: -4.078089738 | I202: 2.354486208 | K202: -5.180584891 | L202: 2.991012081 | N202: -5.353451448 | O202: 3.090816635 | Q202: -5.353451448 | R202: 3.090816635
A203: H | C203: 295 | E203: -2.386165564 | F203: 1.112687276 | H203: -3.917210726 | I203: 1.82662536 | K203: -5.037473986 | L203: 2.349012697 | N203: -5.602462368 | O203: 2.612471107 | Q203: -5.602462368 | R203: 2.612471107
A204: H | C204: 290 | E204: -2.237871358 | F204: 0.8145185625 | H204: -3.738581423 | I204: 1.360732356 | K204: -4.860023514 | L204: 1.768903897 | N204: -5.751516928 | O204: 2.093380964 | Q204: -5.808835167 | R204: 2.114243097
A205: H | C205: 285 | E205: -2.093259759 | F205: 0.5608872619 | H205: -3.549340594 | I205: 0.9510429458 | K205: -4.658001471 | L205: 1.248107733 | N205: -5.548325504 | O205: 1.486669338 | Q205: -5.970999223 | R205: 1.59992442
A206: H | C206: 280 | E206: -1.953603683 | F206: 0.3444730389 | H206: -3.354655742 | I206: 0.5915163182 | K206: -4.439141896 | L206: 0.7827404874 | N206: -5.318275977 | O206: 0.9377555456 | Q206: -6.052657787 | R206: 1.067246873
A207: H | C207: 275 | E207: -1.819486066 | F207: 0.1591844042 | H207: -3.158165964 | I207: 0.2763037194 | K207: -4.209409063 | L207: 0.3682755732 | N207: -5.068919834 | O207: 0.4434730218 | Q207: -5.790812919 | R207: 0.506630483
A208: H | C208: 270 | E208: -1.691059001 | F208: 1.035899161e-16 | H208: -2.962359933 | I208: 1.814665347e-16 | K208: -3.973296655 | L208: 2.433939129e-16 | N208: -4.806243875 | O208: 2.944181129e-16 | Q208: -5.509347491 | R208: 3.374884283e-16
A209: H | C209: 260 | E209: -1.450685157 | F209: -0.2557949337 | H209: -2.57874989 | I209: -0.4547031821 | K209: -3.494249041 | L209: -0.6161303832 | N209: -4.258411578 | O209: -0.7508728561 | Q209: -4.909110066 | R209: -0.8656085559
A210: H | C210: 240 | E210: -1.026393483 | F210: -0.5925885536 | H210: -1.859398891 | I210: -1.07352445 | K210: -2.553869051 | L210: -1.474476984 | N210: -3.144023901 | O210: -1.815203046 | Q210: -3.652908773 | R210: -2.109007864
A211: H | C211: 220 | E211: -0.6569544897 | F211: -0.7829278732 | H211: -1.202670166 | I211: -1.433286491 | K211: -1.664524158 | L211: -1.983702645 | N211: -2.061089784 | O211: -2.456311155 | Q211: -2.405615362 | R211: -2.86690075
A212: H | C212: 200 | E212: -0.3207180895 | F212: -0.8811657089 | H212: -0.5902728302 | I212: -1.621761272 | K212: -0.8201603482 | L212: -2.253372037 | N212: -1.018609996 | O212: -2.798607962 | Q212: -1.191695471 | R212: -3.274156397
A213: H | C213: 180 | E213: -1.116829737e-16 | F213: -0.9115872717 | H213: -2.058872408e-16 | I213: -1.680508513 | K213: -2.86418199e-16 | L213: -2.337824431 | N213: -3.560513482e-16 | O213: -2.906189424 | Q213: -4.168586081e-16 | R213: -3.40251507
A214: H | C214: 200 | E214: -0.3207180895 | F214: -0.8811657089 | H214: -0.5902728302 | I214: -1.621761272 | K214: -0.8201603482 | L214: -2.253372037 | N214: -1.018609996 | O214: -2.798607962 | Q214: -1.191695471 | R214: -3.274156397
A215: H | C215: 220 | E215: -0.6569544899 | F215: -0.7829278735 | H215: -1.202670166 | I215: -1.433286491 | K215: -1.664524158 | L215: -1.983702645 | N215: -2.061089784 | O215: -2.456311155 | Q215: -2.405615362 | R215: -2.86690075
A216: H | C216: 240 | E216: -1.026393483 | F216: -0.5925885534 | H216: -1.859398891 | I216: -1.07352445 | K216: -2.553869051 | L216: -1.474476984 | N216: -3.144023901 | O216: -1.815203046 | Q216: -3.652908774 | R216: -2.109007864
A217: H | C217: 260 | E217: -1.450685157 | F217: -0.2557949337 | H217: -2.578749893 | I217: -0.4547031827 | K217: -3.494249038 | L217: -0.6161303828 | N217: -4.258411577 | O217: -0.7508728559 | Q217: -4.909110066 | R217: -0.8656085558
A218: H | C218: 270 | E218: -1.691059002 | F218: 1.035899161e-16 | H218: -2.962359933 | I218: 1.814665347e-16 | K218: -3.973296655 | L218: 2.433939129e-16 | N218: -4.806243873 | O218: 2.944181127e-16 | Q218: -5.50934749 | R218: 3.374884283e-16
A219: H | C219: 275 | E219: -1.819486069 | F219: 0.1591844045 | H219: -3.158165964 | I219: 0.2763037194 | K219: -4.209409063 | L219: 0.3682755732 | N219: -5.068919831 | O219: 0.4434730216 | Q219: -5.79081292 | R219: 0.5066304831
A220: H | C220: 280 | E220: -1.953603683 | F220: 0.3444730389 | H220: -3.354655742 | I220: 0.5915163183 | K220: -4.439141898 | L220: 0.7827404877 | N220: -5.318275977 | O220: 0.9377555456 | Q220: -6.052657792 | R220: 1.067246874
A221: H | C221: 285 | E221: -2.093259758 | F221: 0.5608872617 | H221: -3.549340596 | I221: 0.9510429462 | K221: -4.658001479 | L221: 1.248107735 | N221: -5.5483255 | O221: 1.486669337 | Q221: -5.970999223 | R221: 1.59992442
A222: H | C222: 290 | E222: -2.237871357 | F222: 0.814518562 | H222: -3.738581429 | I222: 1.360732359 | K222: -4.860023514 | L222: 1.768903897 | N222: -5.751516924 | O222: 2.093380962 | Q222: -5.808835167 | R222: 2.114243097
A223: H | C223: 295 | E223: -2.386165562 | F223: 1.112687275 | H223: -3.917210726 | I223: 1.82662536 | K223: -5.037473986 | L223: 2.349012697 | N223: -5.602462368 | O223: 2.612471107 | Q223: -5.602462368 | R223: 2.612471107
A224: H | C224: 300 | E224: -2.535789234 | F224: 1.464038597 | H224: -4.078089738 | I224: 2.354486208 | K224: -5.180584892 | L224: 2.991012082 | N224: -5.353451448 | O224: 3.090816635 | Q224: -5.353451448 | R224: 3.090816635
A225: H | C225: 305 | E225: -2.68273672 | F225: 1.878472475 | H225: -4.211642202 | I225: 2.949023618 | K225: -5.06369753 | L225: 3.545639181 | N225: -5.06369753 | O225: 3.545639181 | Q225: -5.06369753 | R225: 3.545639181
A226: H | C226: 310 | E226: -2.820546171 | F226: 2.366719252 | H226: -4.305459976 | I226: 3.612709878 | K226: -4.735405815 | L226: 3.973477273 | N226: -4.735405815 | O226: 3.973477273 | Q226: -4.735405815 | R226: 3.973477273
A227: H | C227: 315 | E227: -2.939251525 | F227: 2.939251525 | H227: -4.34415182 | I227: 4.34415182 | K227: -4.371074803 | L227: 4.371074803 | N227: -4.371074803 | O227: 4.371074803 | Q227: -4.371074803 | R227: 4.371074803
A228: H | C228: 317.5 | E228: -2.987073314 | F228: 3.259818501 | H228: -4.176250904 | I228: 4.557578114 | K228: -4.176250904 | L228: 4.557578114 | N228: -4.176250904 | O228: 4.557578114 | Q228: -4.176250904 | R228: 4.557578114
A229: H | C229: 320 | E229: -3.024193948 | F229: 3.604094002 | H229: -3.973477273 | I229: 4.735405815 | K229: -3.973477273 | L229: 4.735405815 | N229: -3.973477273 | O229: 4.735405815 | Q229: -3.973477273 | R229: 4.735405815
A230: H | C230: 322.5 | E230: -3.047886102 | F230: 3.972082501 | H230: -3.763139903 | I230: 4.904219403 | K230: -3.763139903 | L230: 4.904219403 | N230: -3.763139903 | O230: 4.904219403 | Q230: -3.763139903 | R230: 4.904219403
A231: H | C231: 325 | E231: -3.055053454 | F231: 4.363068501 | H231: -3.545639181 | I231: 5.06369753 | K231: -3.545639181 | L231: 5.06369753 | N231: -3.545639181 | O231: 5.06369753
... 26 more rows

Sheet dTa
B1: =WbkTitle -> Course Deviation in Order to Find Stronger Lift (No Wind, Graphs)
B2: ="Time Difference Curves for: "&W_th2_u&" / "&W_th1_u&" "&W_sym_u -> Time Difference Curves for: 3 / 2 kts
B3: Description | C3: Name | D3: Q'ty | E3: Unit
B4: Initial Altitude | C4: H_0_u | D4: 3000 | E4: =H_sym_u -> ft
B5: Maximum Altitude | C5: H_max_u | D5: 8000 | E5: =H_sym_u -> ft
B6: Minimum Altitude | C6: H_min_u | D6: 2000 | E6: =H_sym_u -> ft
B7: Initial Distance to Next TP | C7: D_TP_u | D7: 8 | E7: =L_sym_u -> mi
B8: Use Glider Polar for | C8: Polar | D8: Std. Cirrus
B9: Wing Loading | C9: WL_u | D9: 6.2 | E9: =WL_sym_u -> lb/sf
B10: Climb Rate in Thermal 1 (MC setting) | C10: W_th1_u | D10: 2 | E10: =W_sym_u -> kts
B11: Climb Rate in Thermal 2 | C11: W_th2_u | D11: 3 | E11: =W_sym_u -> kts
B12: Extend Glide [TRUE/FALSE] | C12: Ext_glide | D12: FALSE
A13: H | B13: Initial Altitude (su) | C13: H_0 | D13: =H_0_u*H_mul -> 0.4937365007 | E13: =H_sym -> nm
A14: H | B14: Maximum Altitude (su) | C14: H_max | D14: =H_max_u*H_mul -> 1.316630669 | E14: =H_sym -> nm
A15: H | B15: Minimum Altitude (su) | C15: H_min | D15: =H_min_u*H_mul -> 0.3291576671 | E15: =H_sym -> nm
A16: H | B16: Initial Distance to Next TP (su) | C16: D_TP | D16: =D_TP_u*L_mul -> 6.951809936 | E16: =L_sym -> nm
A17: H | B17: Glider Polar No | C17: PolarNo | D17: =MATCH(D8,Gliders,0) -> 3
A18: H | B18: PolarDataTable | C18: Polar_WL | D18: =VLOOKUP("WL",PolarDataTable,PolarNo,FALSE) -> 30
A19: H | B19: SeeYou a adjusted for Rho and WL | C19: Polar_a | D19: =VLOOKUP("a",PolarDataTable,PolarNo,FALSE) -> 2.22
A20: H | B20: SeeYou b adjusted for Rho and WL | C20: Polar_b | D20: =VLOOKUP("b",PolarDataTable,PolarNo,FALSE) -> -3.5
A21: H | B21: SeeYou c adjusted for Rho and WL | C21: Polar_c | D21: =VLOOKUP("c",PolarDataTable,PolarNo,FALSE) -> 2.06
A22: H | B22: Mean Altitude (su) | C22: H_mean | D22: =AVERAGE(H_0,H_max)*6076.11549 -> 5500 | E22: H_sym
A23: H | B23: Mean Density (su) | C23: Rho_Mean | D23: =INDEX(Z_AirProperties(H_mean*0.3048),9) -> 1.003852547 | E23: kg/m³
A24: H | B24: Density Factor | C24: F_Rho | D24: =SQRT(1.225/Rho_Mean) -> 1.104671327 | E24: -
A25: H | B25: Wing Loading (su) | C25: WL | D25: =WL_u*WL_mul -> 30.27105135 | E25: =WL_sym -> kg/m²
A26: H | B26: Wing Loading Factor | C26: F_WL | D26: =SQRT(WL/Polar_WL) -> 1.004507364 | E26: -
A27: H | B27: Climb Rate in Thermal 1 (MC setting) (su) | C27: W_th1 | D27: =W_th1_u*W_mul -> 2 | E27: =W_sym -> kts
A28: H | B28: Climb Rate in Thermal 2 (su) | C28: W_th2 | D28: =W_th2_u*W_mul -> 3 | E28: =W_sym -> kts
A29: H | B29: Cruise Speed According to MC (Calc) (su) | C29: V_cr_c | D29: =SQRT((Polar_c+W_th1*1.852/3.6/F_Rho/F_WL)/Polar_a)*100/1.852 -> 62.63485175 | E29: =V_sym -> kts
A30: H | B30: Cruise Speed per MC (True) (su) | C30: V_cr | D30: =V_cr_c*F_Rho*F_WL -> 69.50279353 | E30: =V_sym -> kts
A31: H | B31: Cruise Speed per MC (Calibrated) (su) | C31: V_cr_i | D31: =V_cr_c*F_WL -> 62.91716984 | E31: =V_sym -> kts
B32: Cruise Speed per MC (Calibrated) | C32: V_cr_i_u | D32: =V_cr_i/V_mul -> 62.91716984 | E32: =V_sym_u -> kts
A33: H | B33: Cruise Sink Rate (Calc) (su) | C33: W_cr_c | D33: =(Polar_a*(V_cr_c*1.852/100)^2+Polar_b*(V_cr_c*1.852/100)+Polar_c)*3.6/1.852 -> 1.91901732 | E33: =W_sym -> kts
A34: H | B34: Cruise Sink Rate (True) (su) | C34: W_cr | D34: =D33*F_Rho*F_WL -> 2.129438496 | E34: =W_sym -> kts
A35: H | B35: Cruise Sink Rate (True) | C35: W_cr_u | D35: =W_cr/W_mul -> 2.129438496 | E35: =W_sym_u -> kts
B36: Cruise Glide Ratio | C36: E_cr | D36: =V_cr/W_cr -> 32.63902369 | E36: -
B37: dT increment (negative for time saved) | C37: dT_inc | D37: -2 | E37: min
A38: H | B38: Climb Rate Increment | C38: W_inc | D38: =(W_th2-W_th1)/4 -> 0.25 | E38: kts
A39: H | B39: Lines (1) or Smooth (2) | C39: LineSmooth | D39: 1 | E39: -
A73: H | B73: SubTitle
A74: H | B74: ="H init/H max/H min = "&H_0_u&"/"&H_max_u&"/"&H_min_u&" "&H_sym_u&CHAR(10)&"Dist. to TP = "&D_TP_u&" "&L_sym_u&"; "&Polar&" WL = "&WL_u&" "&WL_sym_u -> H init/H max/H min = 3000/8000/2000 ft Dist. to TP = 8 mi; Std. Cirrus WL = 6.2 lb/sf
A75: H | C75: dT (min) | D75: 0 | G75: =D75+dT_inc -> -2 | J75: =G75+dT_inc -> -4 | M75: =J75+dT_inc -> -6 | P75: =M75+dT_inc -> -8
A76: H | D76: ="dT="&D75&" min" -> dT=0 min | G76: ="dT="&G75&" min" -> dT=-2 min | J76: ="dT="&J75&" min" -> dT=-4 min | M76: ="dT="&M75&" min" -> dT=-6 min | P76: ="dT="&P75&" min" -> dT=-8 min
A77: H | C77: A_Dev (°) | D77: ="D_dev ("&L_sym_u&")" -> D_dev (mi) | E77: ="X ("&L_sym_u&")" -> X (mi) | F77: ="Y ("&L_sym_u&")" -> Y (mi) | G77: ="D_dev ("&L_sym_u&")" -> D_dev (mi) | H77: ="X ("&L_sym_u&")" -> X (mi) | I77: ="Y ("&L_sym_u&")" -> Y (mi) | J77: ="D_dev ("&L_sym_u&")" -> D_dev (mi) | K77: ="X ("&L_sym_u&")" -> X (mi) | L77: ="Y ("&L_sym_u&")" -> Y (mi) | M77: ="D_dev ("&L_sym_u&")" -> D_dev (mi) | N77: ="X ("&L_sym_u&")" -> X (mi) | O77: ="Y ("&L_sym_u&")" -> Y (mi) | P77: ="D_dev ("&L_sym_u&")" -> D_dev (mi) | Q77: ="X ("&L_sym_u&")" -> X (mi) | R77: ="Y ("&L_sym_u&")" -> Y (mi)
A78: H | C78: 0 | D78: =Calc_D_dev(H_0,H_max,H_min,Ext_glide,D_TP,V_cr,W_cr,W_th1,W_th2,$C78:$C123,D$75,TRUE)/L_mul ->  | E78: =D78*SIN(RADIANS($C78)) ->  | F78: =D78*COS(RADIANS($C78)) ->  | G78: =Calc_D_dev(H_0,H_max,H_min,Ext_glide,D_TP,V_cr,W_cr,W_th1,W_th2,$C78:$C123,G$75,TRUE)/L_mul ->  | H78: =G78*SIN(RADIANS($C78)) ->  | I78: =G78*COS(RADIANS($C78)) ->  | J78: =Calc_D_dev(H_0,H_max,H_min,Ext_glide,D_TP,V_cr,W_cr,W_th1,W_th2,$C78:$C123,J$75,TRUE)/L_mul ->  | K78: =J78*SIN(RADIANS($C78)) ->  | L78: =J78*COS(RADIANS($C78)) ->  | M78: =Calc_D_dev(H_0,H_max,H_min,Ext_glide,D_TP,V_cr,W_cr,W_th1,W_th2,$C78:$C123,M$75,TRUE)/L_mul ->  | N78: =M78*SIN(RADIANS($C78)) ->  | O78: =M78*COS(RADIANS($C78)) ->  | P78: =Calc_D_dev(H_0,H_max,H_min,Ext_glide,D_TP,V_cr,W_cr,W_th1,W_th2,$C78:$C123,P$75,TRUE)/L_mul ->  | Q78: =P78*SIN(RADIANS($C78)) ->  | R78: =P78*COS(RADIANS($C78)) -> 
A79: H | C79: 1 | E79: =D79*SIN(RADIANS($C79)) ->  | F79: =D79*COS(RADIANS($C79)) ->  | H79: =G79*SIN(RADIANS($C79)) ->  | I79: =G79*COS(RADIANS($C79)) ->  | K79: =J79*SIN(RADIANS($C79)) ->  | L79: =J79*COS(RADIANS($C79)) ->  | N79: =M79*SIN(RADIANS($C79)) ->  | O79: =M79*COS(RADIANS($C79)) ->  | Q79: =P79*SIN(RADIANS($C79)) ->  | R79: =P79*COS(RADIANS($C79)) -> 
A80: H | C80: 2
A81: H | C81: 3
A82: H | C82: 4
A83: H | C83: 5
A84: H | C84: 6
A85: H | C85: 7
A86: H | C86: 8
A87: H | C87: 9
A88: H | C88: 10
A89: H | C89: 11
A90: H | C90: 12
A91: H | C91: 13
A92: H | C92: 14
A93: H | C93: 15
A94: H | C94: 16.5
A95: H | C95: 18
A96: H | C96: 19.5
A97: H | C97: 21
A98: H | C98: 22.5
A99: H | C99: 24
A100: H | C100: 25.5
A101: H | C101: 27
A102: H | C102: 28.5
A103: H | C103: 30
A104: H | C104: 32.5
A105: H | C105: 35 | D105: 6.181633269 | E105: 3.545639181 | F105: 5.06369753 | G105: 6.181633269 | H105: 3.545639181 | I105: 5.06369753 | J105: 6.181633269 | K105: 3.545639181 | L105: 5.06369753 | M105: 5.778932778 | N105: 3.314659669 | O105: 4.733824599 | P105: 2.206803298 | Q105: 1.265770371 | R105: 1.807707433
A106: H | C106: 37.5 | D106: 6.181633269 | E106: 3.763139903 | F106: 4.904219403 | G106: 6.181633269 | H106: 3.763139903 | I106: 4.904219403 | J106: 6.181633269 | K106: 3.763139903 | L106: 4.904219403 | M106: 5.409401641 | N106: 3.293035073 | O106: 4.291566861 | P106: 1.762026843 | Q106: 1.072653979 | R106: 1.397909881
A107: H | C107: 40 | D107: 6.181633269 | E107: 3.973477273 | F107: 4.735405815 | G107: 6.181633269 | H107: 3.973477273 | I107: 4.735405815 | J107: 6.181633269 | K107: 3.973477273 | L107: 4.735405815 | M107: 5.054754821 | N107: 3.249133769 | O107: 3.872166842 | P107: 1.41787072 | Q107: 0.9113897307 | R107: 1.086151986
A108: H | C108: 42.5 | D108: 6.181633269 | E108: 4.176250904 | F108: 4.557578114 | G108: 6.181633269 | H108: 4.176250904 | I108: 4.557578114 | J108: 6.181633269 | K108: 4.176250904 | L108: 4.557578114 | M108: 4.717943724 | N108: 3.18739658 | O108: 3.478432984 | P108: 1.157599659 | Q108: 0.7820629941 | R108: 0.8534719938
A109: H | C109: 45 | D109: 6.181633269 | E109: 4.371074803 | F109: 4.371074803 | G109: 6.181633269 | H109: 4.371074803 | I109: 4.371074803 | J109: 6.10515155 | K109: 4.316994061 | L109: 4.316994061 | M109: 4.400962397 | N109: 3.111950355 | O109: 3.111950355 | P109: 0.9612982952 | Q109: 0.6797405433 | R109: 0.6797405433
A110: H | C110: 50 | D110: 6.181633269 | E110: 4.735405815 | F110: 3.973477273 | G110: 6.181633269 | H110: 4.735405815 | I110: 3.973477273 | J110: 5.541512593 | K110: 4.245044928 | L110: 3.562015633 | M110: 3.830197649 | N110: 2.934101625 | O110: 2.462003592 | P110: 0.696131164 | Q110: 0.5332674099 | R110: 0.447464487
A111: H | C111: 55 | D111: 6.181633269 | E111: 5.06369753 | F111: 3.545639181 | G111: 6.181633269 | H111: 5.06369753 | I111: 3.545639181 | J111: 5.02650121 | K111: 4.117468742 | L111: 2.883082651 | M111: 3.343235249 | N111: 2.738617989 | O111: 1.91760096 | P111: 0.5322298953 | Q111: 0.4359772068 | R111: 0.3052745267
A112: H | C112: 60 | D112: 6.181633269 | E112: 5.353451448 | F112: 3.090816635 | G112: 5.85569749 | H112: 5.071182783 | I112: 2.927848745 | J112: 4.563680627 | K112: 3.952263358 | L112: 2.281840314 | M112: 2.933498864 | N112: 2.540484538 | O112: 1.466749432 | P112: 0.4241115602 | Q112: 0.3672913852 | R112: 0.2120557801
A113: H | C113: 65 | D113: 6.181633269 | E113: 5.602462368 | F113: 2.612471107 | G113: 5.42136152 | H113: 4.913422162 | I113: 2.291166382 | J113: 4.152713582 | K113: 3.763636656 | L113: 1.755012595 | M113: 2.591093754 | N113: 2.348328446 | O113: 1.095043538 | P113: 0.3488349224 | Q113: 0.3161518066 | R113: 0.1474240086
A114: H | C114: 70 | D114: 6.120636468 | E114: 5.751516924 | F114: 2.093380962 | G114: 5.026850252 | H114: 4.723694088 | I114: 1.719284044 | J114: 3.790766039 | K114: 3.562154874 | L114: 1.296518344 | M114: 2.305492385 | N114: 2.166454182 | O114: 0.788524836 | P114: 0.2941374565 | Q114: 0.2763987973 | R114: 0.100600935
A115: H | C115: 75 | D115: 5.744049231 | E115: 5.5483255 | F115: 1.486669337 | G115: 4.671218169 | H115: 4.512050269 | I115: 1.209000226 | J115: 3.473653493 | K115: 3.35529162 | L115: 0.89904768 | M115: 2.066948455 | N115: 1.996518895 | O115: 0.5349656255 | P115: 0.2530303691 | Q115: 0.2444085684 | R115: 0.06548907851
A116: H | C116: 80 | D116: 5.400318956 | E116: 5.318275977 | F116: 0.9377555456 | G116: 4.352419216 | H116: 4.286296188 | I116: 0.7557896653 | J116: 3.19665976 | K116: 3.148095316 | L116: 0.555094142 | M116: 1.867054652 | N116: 1.838689896 | O116: 0.3242106379 | P116: 0.2212949167 | Q116: 0.2179329497 | R116: 0.03842745901
A117: H | C117: 85 | D117: 5.088282282 | E117: 5.068919831 | F117: 0.4434730216 | G117: 4.067792003 | H117: 4.052312826 | I117: 0.3545314333 | J117: 2.955059228 | K117: 2.943814336 | L117: 0.2575503819 | M117: 1.698831083 | N117: 1.692366518 | O117: 0.1480628848 | P117: 0.1962570133 | Q117: 0.1955101962 | R117: 0.01710492577
A118: H | C118: 90 | D118: 4.806243873 | E118: 4.806243873 | F118: 2.944181127e-16 | G118: 3.814410712 | H118: 3.814410712 | I118: 2.336609695e-16 | J118: 2.744413465 | K118: 2.744413465 | L118: 1.681156958e-16 | M118: 1.556600753 | N118: 1.556600753 | O118: 9.535335036e-17 | P118: 0.1761506866 | Q118: 0.1761506866 | R118: 1.079053708e-17
A119: H | C119: 100 | D119: 4.324104439 | E119: 4.258411577 | F119: -0.7508728559 | G119: 3.389689981 | H119: 3.338192974 | I119: -0.588613488 | J119: 2.400430908 | K119: 2.363962969 | L119: -0.4168304528 | M119: 1.332742811 | N119: 1.312495453 | O119: -0.2314283605 | P119: 0.1462615431 | Q119: 0.1440395016 | R119: -0.02539805042
A120: H | C120: 120 | D120: 3.630406091 | E120: 3.144023901 | F120: -1.815203046 | G120: 2.796821967 | H120: 2.422118873 | I120: -1.398410984 | J120: 1.938515829 | K120: 1.678803954 | L120: -0.9692579146 | M120: 1.047312594 | N120: 0.9069993118 | O120: -0.5236562968 | P120: 0.1108635773 | Q120: 0.09601067432 | R120: -0.05543178866
A121: H | C121: 140 | D121: 3.206486487 | E121: 2.061089784 | F121: -2.456311155 | G121: 2.444742646 | H121: 1.571450282 | I121: -1.872781519 | J121: 1.673728949 | K121: 1.075852231 | L121: -1.282150761 | M121: 0.8908818208 | N121: 0.5726477961 | O121: -0.6824550683 | P121: 0.09258309447 | Q121: 0.05951126599 | R121: -0.07092276505
A122: H | C122: 160 | D122: 2.978216387 | E122: 1.018609996 | F122: -2.798607962 | G122: 2.2582575 | H122: 0.7723695537 | I122: -2.122067908 | J122: 1.536211007 | K122: 0.5254151088 | L122: -1.443566147 | M122: 0.8115566257 | N122: 0.2775687134 | O122: -0.7626137725 | P122: 0.0835843108 | Q122: 0.02858751796 | R122: -0.07854356007
A123: H | C123: 180 | D123: 2.906189424 | E123: 3.560513482e-16 | F123: -2.906189424 | G123: 2.199855988 | H123: 2.695150165e-16 | I123: -2.199855988 | J123: 1.493522199 | K123: 1.829786415e-16 | L123: -1.493522199 | M123: 0.7871884105 | N123: 9.644226649e-17 | O123: -0.7871884105 | P123: 0.08085462166 | Q123: 9.905891479e-18 | R123: -0.08085462166
A124: H | C124: =INDIRECT(ADDRESS(ROW($C$123)-(ROW()-ROW($C$123)),COLUMN())) -> 160 | D124: =Calc_D_dev(H_0,H_max,H_min,Ext_glide,D_TP,V_cr,W_cr,W_th1,W_th2,$C124:$C168,D$75,FALSE)/L_mul -> 2.978216387 | E124: 1.018609996 | F124: -2.798607962 | G124: =Calc_D_dev(H_0,H_max,H_min,Ext_glide,D_TP,V_cr,W_cr,W_th1,W_th2,$C124:$C168,G$75,FALSE)/L_mul -> 2.2582575 | H124: 0.7723695537 | I124: -2.122067908 | J124: =Calc_D_dev(H_0,H_max,H_min,Ext_glide,D_TP,V_cr,W_cr,W_th1,W_th2,$C124:$C168,J$75,FALSE)/L_mul -> 1.536211007 | K124: 0.5254151088 | L124: -1.443566147 | M124: =Calc_D_dev(H_0,H_max,H_min,Ext_glide,D_TP,V_cr,W_cr,W_th1,W_th2,$C124:$C168,M$75,FALSE)/L_mul -> 0.8115566256 | N124: 0.2775687134 | O124: -0.7626137725 | P124: =Calc_D_dev(H_0,H_max,H_min,Ext_glide,D_TP,V_cr,W_cr,W_th1,W_th2,$C124:$C168,P$75,FALSE)/L_mul -> 0.0835843108 | Q124: 0.02858751796 | R124: -0.07854356007
A125: H | C125: =INDIRECT(ADDRESS(ROW($C$123)-(ROW()-ROW($C$123)),COLUMN())) -> 140 | D125: 3.206486487 | E125: 2.061089784 | F125: -2.456311155 | G125: 2.444742646 | H125: 1.571450282 | I125: -1.872781519 | J125: 1.673728949 | K125: 1.075852231 | L125: -1.282150761 | M125: 0.8908818206 | N125: 0.572647796 | O125: -0.6824550682 | P125: 0.09258309447 | Q125: 0.05951126599 | R125: -0.07092276505
A126: H | C126: 120 | D126: 3.630406091 | E126: 3.144023901 | F126: -1.815203046 | G126: 2.796821967 | H126: 2.422118873 | I126: -1.398410984 | J126: 1.938515829 | K126: 1.678803954 | L126: -0.9692579147 | M126: 1.047312594 | N126: 0.9069993123 | O126: -0.5236562971 | P126: 0.1108635773 | Q126: 0.09601067429 | R126: -0.05543178865
A127: H | C127: 100 | D127: 4.32410444 | E127: 4.258411578 | F127: -0.7508728561 | G127: 3.389689984 | H127: 3.338192977 | I127: -0.5886134886 | J127: 2.400430905 | K127: 2.363962966 | L127: -0.4168304524 | M127: 1.332742811 | N127: 1.312495453 | O127: -0.2314283604 | P127: 0.1462615431 | Q127: 0.1440395016 | R127: -0.02539805042
A128: H | C128: 90 | D128: 4.806243875 | E128: 4.806243875 | F128: 2.944181129e-16 | G128: 3.814410711 | H128: 3.814410711 | I128: 2.336609695e-16 | J128: 2.744413465 | K128: 2.744413465 | L128: 1.681156958e-16 | M128: 1.556600752 | N128: 1.556600752 | O128: 9.535335029e-17 | P128: 0.1761506866 | Q128: 0.1761506866 | R128: 1.079053708e-17
A129: H | C129: 85 | D129: 5.088282284 | E129: 5.068919834 | F129: 0.4434730218 | G129: 4.067792002 | H129: 4.052312825 | I129: 0.3545314333 | J129: 2.955059228 | K129: 2.943814336 | L129: 0.2575503819 | M129: 1.698831079 | N129: 1.692366514 | O129: 0.1480628845 | P129: 0.1962570135 | Q129: 0.1955101963 | R129: 0.01710492578
A130: H | C130: 80 | D130: 5.400318957 | E130: 5.318275977 | F130: 0.9377555456 | G130: 4.352419214 | H130: 4.286296186 | I130: 0.7557896649 | J130: 3.19665976 | K130: 3.148095315 | L130: 0.5550941419 | M130: 1.867054652 | N130: 1.838689897 | O130: 0.324210638 | P130: 0.2212949173 | Q130: 0.2179329502 | R130: 0.03842745911
A131: H | C131: 75 | D131: 5.744049236 | E131: 5.548325504 | F131: 1.486669338 | G131: 4.67121816 | H131: 4.512050261 | I131: 1.209000224 | J131: 3.473653491 | K131: 3.355291618 | L131: 0.8990476795 | M131: 2.066948457 | N131: 1.996518896 | O131: 0.534965626 | P131: 0.2530303689 | Q131: 0.2444085681 | R131: 0.06548907846
A132: H | C132: 70 | D132: 6.120636473 | E132: 5.751516928 | F132: 2.093380964 | G132: 5.026850252 | H132: 4.723694088 | I132: 1.719284044 | J132: 3.790766028 | K132: 3.562154863 | L132: 1.29651834 | M132: 2.305492389 | N132: 2.166454185 | O132: 0.7885248373 | P132: 0.2941374556 | Q132: 0.2763987965 | R132: 0.1006009347
A133: H | C133: 65 | D133: 6.181633269 | E133: 5.602462368 | F133: 2.612471107 | G133: 5.421361519 | H133: 4.913422161 | I133: 2.291166382 | J133: 4.152713582 | K133: 3.763636657 | L133: 1.755012596 | M133: 2.59109376 | N133: 2.348328451 | O133: 1.095043541 | P133: 0.3488349187 | Q133: 0.3161518032 | R133: 0.147424007
A134: H | C134: 60 | D134: 6.181633269 | E134: 5.353451448 | F134: 3.090816635 | G134: 5.855697488 | H134: 5.071182781 | I134: 2.927848744 | J134: 4.563680627 | K134: 3.952263358 | L134: 2.281840314 | M134: 2.933498856 | N134: 2.540484531 | O134: 1.466749428 | P134: 0.4241115604 | Q134: 0.3672913854 | R134: 0.2120557802
A135: H | C135: 55 | D135: 6.181633269 | E135: 5.06369753 | F135: 3.545639181 | G135: 6.181633269 | H135: 5.06369753 | I135: 3.545639181 | J135: 5.026501201 | K135: 4.117468734 | L135: 2.883082646 | M135: 3.343235279 | N135: 2.738618014 | O135: 1.917600977 | P135: 0.5322298967 | Q135: 0.4359772079 | R135: 0.3052745275
A136: H | C136: 50 | D136: 6.181633269 | E136: 4.735405815 | F136: 3.973477273 | G136: 6.181633269 | H136: 4.735405815 | I136: 3.973477273 | J136: 5.541512594 | K136: 4.245044929 | L136: 3.562015634 | M136: 3.830197671 | N136: 2.934101642 | O136: 2.462003606 | P136: 0.6961311762 | Q136: 0.5332674192 | R136: 0.4474644948
A137: H | C137: 45 | D137: 6.181633269 | E137: 4.371074803 | F137: 4.371074803 | G137: 6.181633269 | H137: 4.371074803 | I137: 4.371074803 | J137: 6.10515155 | K137: 4.316994061 | L137: 4.316994061 | M137: 4.400962454 | N137: 3.111950395 | O137: 3.111950395 | P137: 0.9612982335 | Q137: 0.6797404997 | R137: 0.6797404997
A138: H | C138: 42.5 | D138: 6.181633269 | E138: 4.176250904 | F138: 4.557578114 | G138: 6.181633269 | H138: 4.176250904 | I138: 4.557578114 | J138: 6.181633269 | K138: 4.176250904 | L138: 4.557578114 | M138: 4.717943772 | N138: 3.187396612 | O138: 3.478433019 | P138: 1.157599658 | Q138: 0.7820629934 | R138: 0.8534719931
A139: H | C139: 40 | D139: 6.181633269 | E139: 3.973477273 | F139: 4.735405815 | G139: 6.181633269 | H139: 3.973477273 | I139: 4.735405815 | J139: 6.181633269 | K139: 3.973477273 | L139: 4.735405815 | M139: 5.054754843 | N139: 3.249133783 | O139: 3.872166859 | P139: 1.417870655 | Q139: 0.9113896889 | R139: 1.086151936
A140: H | C140: 37.5 | D140: 6.181633269 | E140: 3.763139903 | F140: 4.904219403 | G140: 6.181633269 | H140: 3.763139903 | I140: 4.904219403 | J140: 6.181633269 | K140: 3.763139903 | L140: 4.904219403 | M140: 5.409401623 | N140: 3.293035062 | O140: 4.291566847 | P140: 1.762026774 | Q140: 1.072653937 | R140: 1.397909827
A141: H | C141: 35 | D141: 6.181633269 | E141: 3.545639181 | F141: 5.06369753 | G141: 6.181633269 | H141: 3.545639181 | I141: 5.06369753 | J141: 6.181633269 | K141: 3.545639181 | L141: 5.06369753 | M141: 5.778932818 | N141: 3.314659691 | O141: 4.733824631 | P141: 2.206803157 | Q141: 1.26577029 | R141: 1.807707317
A142: H | C142: 32.5 | D142: 6.181633269 | E142: 3.321389134 | F142: 5.21353662 | G142: 6.181633269 | H142: 3.321389134 | I142: 5.21353662 | J142: 6.181633269 | K142: 3.321389134 | L142: 5.21353662 | M142: 6.159427674 | N142: 3.309458077 | O142: 5.194808611 | P142: 2.7555614 | Q142: 1.480562061 | R142: 2.324016913
A143: H | C143: 30 | D143: 6.181633269 | E143: =D143*SIN(RADIANS($C143)) -> 3.090816635 | F143: =D143*COS(RADIANS($C143)) -> 5.353451448 | G143: 6.181633269 | H143: =G143*SIN(RADIANS($C143)) -> 3.090816635 | I143: =G143*COS(RADIANS($C143)) -> 5.353451448 | J143: 6.181633269 | K143: =J143*SIN(RADIANS($C143)) -> 3.090816635 | L143: =J143*COS(RADIANS($C143)) -> 5.353451448 | M143: 6.181633269 | N143: =M143*SIN(RADIANS($C143)) -> 3.090816635 | O143: =M143*COS(RADIANS($C143)) -> 5.353451448 | P143: 3.391291226 | Q143: =P143*SIN(RADIANS($C143)) -> 1.695645613 | R143: =P143*COS(RADIANS($C143)) -> 2.936944353
A144: H | C144: 28.5 | D144: 6.181633269 | E144: 2.949620467 | F144: 5.432525101 | G144: 6.181633269 | H144: 2.949620467 | I144: 5.432525101 | J144: 6.181633269 | K144: 2.949620467 | L144: 5.432525101 | M144: 6.181633269 | N144: 2.949620467 | O144: 5.432525101 | P144: 3.801122797 | Q144: 1.813739041 | R144: 3.340491761
A145: H | C145: 27 | D145: 6.181633269 | E145: 2.806402777 | F145: 5.507875573 | G145: 6.181633269 | H145: 2.806402777 | I145: 5.507875573 | J145: 6.181633269 | K145: 2.806402777 | L145: 5.507875573 | M145: 6.181633269 | N145: 2.806402777 | O145: 5.507875573 | P145: 4.222402144 | Q145: 1.91693046 | R145: 3.762187858
A146: H | C146: 25.5 | D146: 6.181633269 | E146: 2.661261719 | F146: 5.579451222 | G146: 6.181633269 | H146: 2.661261719 | I146: 5.579451222 | J146: 6.181633269 | K146: 2.661261719 | L146: 5.579451222 | M146: 6.181633269 | N146: 2.661261719 | O146: 5.579451222 | P146: 4.647440317 | Q146: 2.000774628 | R146: 4.19471124
A147: H | C147: 24 | D147: 6.181633269 | E147: 2.514296765 | F147: 5.647202994 | G147: 6.181633269 | H147: 2.514296765 | I147: 5.647202994 | J147: 6.181633269 | K147: 2.514296765 | L147: 5.647202994 | M147: 6.181633269 | N147: 2.514296765 | O147: 5.647202994 | P147: 5.069448491 | Q147: 2.061930461 | R147: 4.631171641
A148: H | C148: 22.5 | D148: 6.181633269 | E148: 2.365608637 | F148: 5.711084455 | G148: 6.181633269 | H148: 2.365608637 | I148: 5.711084455 | J148: 6.181633269 | K148: 2.365608637 | L148: 5.711084455 | M148: 6.181633269 | N148: 2.365608637 | O148: 5.711084455 | P148: 5.482697633 | Q148: 2.098137549 | R148: 5.065352126
A149: H | C149: 21 | D149: 6.181633269 | E149: 2.21529924 | F149: 5.771051824 | G149: 6.181633269 | H149: 2.21529924 | I149: 5.771051824 | J149: 6.181633269 | K149: 2.21529924 | L149: 5.771051824 | M149: 6.181633269 | N149: 2.21529924 | O149: 5.771051824 | P149: 5.882486058 | Q149: 2.108094467 | R149: 5.491773843
A150: H | C150: 19.5 | D150: 6.181633269 | E150: 2.063471587 | F150: 5.827064002 | G150: 6.181633269 | H150: 2.063471587 | I150: 5.827064002 | J150: 6.181633269 | K150: 2.063471587 | L150: 5.827064002 | M150: 6.181633269 | N150: 2.063471587 | O150: 5.827064002 | P150: 6.181633269 | Q150: 2.063471587 | R150: 5.827064002
A151: H | C151: 18 | D151: 6.181633269 | E151: 1.910229733 | F151: 5.879082602 | G151: 6.181633269 | H151: 1.910229733 | I151: 5.879082602 | J151: 6.181633269 | K151: 1.910229733 | L151: 5.879082602 | M151: 6.181633269 | N151: 1.910229733 | O151: 5.879082602 | P151: 6.181633269 | Q151: 1.910229733 | R151: 5.879082602
A152: H | C152: 16.5 | D152: 6.181633269 | E152: 1.755678704 | F152: 5.927071972 | G152: 6.181633269 | H152: 1.755678704 | I152: 5.927071972 | J152: 6.181633269 | K152: 1.755678704 | L152: 5.927071972 | M152: 6.181633269 | N152: 1.755678704 | O152: 5.927071972 | P152: 6.181633269 | Q152: 1.755678704 | R152: 5.927071972
A153: H | C153: 15 | D153: 6.181633269 | E153: 1.59992442 | F153: 5.970999223 | G153: 6.181633269 | H153: 1.59992442 | I153: 5.970999223 | J153: 6.181633269 | K153: 1.59992442 | L153: 5.970999223 | M153: 6.181633269 | N153: 1.59992442 | O153: 5.970999223 | P153: 6.181633269 | Q153: 1.59992442 | R153: 5.970999223
A154: H | C154: 14 | D154: 6.181633269 | E154: 1.495472438 | F154: 5.998012343 | G154: 6.181633269 | H154: 1.495472438 | I154: 5.998012343 | J154: 6.181633269 | K154: 1.495472438 | L154: 5.998012343 | M154: 6.181633269 | N154: 1.495472438 | O154: 5.998012343 | P154: 6.181633269 | Q154: 1.495472438 | R154: 5.998012343
A155: H | C155: 13 | D155: 6.181633269 | E155: 1.390564921 | F155: 6.023198409 | G155: 6.181633269 | H155: 1.390564921 | I155: 6.023198409 | J155: 6.181633269 | K155: 1.390564921 | L155: 6.023198409 | M155: 6.181633269 | N155: 1.390564921 | O155: 6.023198409 | P155: 6.181633269 | Q155: 1.390564921 | R155: 6.023198409
A156: H | C156: 12 | D156: 6.181633269 | E156: 1.285233825 | F156: 6.046549751 | G156: 6.181633269 | H156: 1.285233825 | I156: 6.046549751 | J156: 6.181633269 | K156: 1.285233825 | L156: 6.046549751 | M156: 6.181633269 | N156: 1.285233825 | O156: 6.046549751 | P156: 6.181633269 | Q156: 1.285233825 | R156: 6.046549751
A157: H | C157: 11 | D157: 6.181633269 | E157: 1.179511234 | F157: 6.068059255 | G157: 6.181633269 | H157: 1.179511234 | I157: 6.068059255 | J157: 6.181633269 | K157: 1.179511234 | L157: 6.068059255 | M157: 6.181633269 | N157: 1.179511234 | O157: 6.068059255 | P157: 6.181633269 | Q157: 1.179511234 | R157: 6.068059255
A158: H | C158: 10 | D158: 6.181633269 | E158: 1.073429352 | F158: 6.08772037 | G158: 6.181633269 | H158: 1.073429352 | I158: 6.08772037 | J158: 6.181633269 | K158: 1.073429352 | L158: 6.08772037 | M158: 6.181633269 | N158: 1.073429352 | O158: 6.08772037 | P158: 6.181633269 | Q158: 1.073429352 | R158: 6.08772037
A159: H | C159: 9 | D159: 6.181633269 | E159: 0.9670204935 | F159: 6.105527106 | G159: 6.181633269 | H159: 0.9670204935 | I159: 6.105527106 | J159: 6.181633269 | K159: 0.9670204935 | L159: 6.105527106 | M159: 6.181633269 | N159: 0.9670204935 | O159: 6.105527106 | P159: 6.181633269 | Q159: 0.9670204935 | R159: 6.105527106
A160: H | C160: 8 | D160: 6.181633269 | E160: 0.8603170711 | F160: 6.121474039 | G160: 6.181633269 | H160: 0.8603170711 | I160: 6.121474039 | J160: 6.181633269 | K160: 0.8603170711 | L160: 6.121474039 | M160: 6.181633269 | N160: 0.8603170711 | O160: 6.121474039 | P160: 6.181633269 | Q160: 0.8603170711 | R160: 6.121474039
A161: H | C161: 7 | D161: 6.181633269 | E161: 0.7533515877 | F161: 6.135556312 | G161: 6.181633269 | H161: 0.7533515877 | I161: 6.135556312 | J161: 6.181633269 | K161: 0.7533515877 | L161: 6.135556312 | M161: 6.181633269 | N161: 0.7533515877 | O161: 6.135556312 | P161: 6.181633269 | Q161: 0.7533515877 | R161: 6.135556312
A162: H | C162: 6 | D162: 6.181633269 | E162: 0.6461566261 | F162: 6.147769635 | G162: 6.181633269 | H162: 0.6461566261 | I162: 6.147769635 | J162: 6.181633269 | K162: 0.6461566261 | L162: 6.147769635 | M162: 6.181633269 | N162: 0.6461566261 | O162: 6.147769635 | P162: 6.181633269 | Q162: 0.6461566261 | R162: 6.147769635
A163: H | C163: 5 | D163: 6.181633269 | E163: 0.538764839 | F163: 6.158110288 | G163: 6.181633269 | H163: 0.538764839 | I163: 6.158110288 | J163: 6.181633269 | K163: 0.538764839 | L163: 6.158110288 | M163: 6.181633269 | N163: 0.538764839 | O163: 6.158110288 | P163: 6.181633269 | Q163: 0.538764839 | R163: 6.158110288
A164: H | C164: 4 | D164: 6.181633269 | E164: 0.4312089388 | F164: 6.166575121 | G164: 6.181633269 | H164: 0.4312089388 | I164: 6.166575121 | J164: 6.181633269 | K164: 0.4312089388 | L164: 6.166575121 | M164: 6.181633269 | N164: 0.4312089388 | O164: 6.166575121 | P164: 6.181633269 | Q164: 0.4312089388 | R164: 6.166575121
A165: H | C165: 3 | D165: 6.181633269 | E165: 0.3235216883 | F165: 6.173161556 | G165: 6.181633269 | H165: 0.3235216883 | I165: 6.173161556 | J165: 6.181633269 | K165: 0.3235216883 | L165: 6.173161556 | M165: 6.181633269 | N165: 0.3235216883 | O165: 6.173161556 | P165: 6.181633269 | Q165: 0.3235216883 | R165: 6.173161556
A166: H | C166: 2 | D166: 6.181633269 | E166: 0.2157358899 | F166: 6.177867585 | G166: 6.181633269 | H166: 0.2157358899 | I166: 6.177867585 | J166: 6.181633269 | K166: 0.2157358899 | L166: 6.177867585 | M166: 6.181633269 | N166: 0.2157358899 | O166: 6.177867585 | P166: 6.181633269 | Q166: 0.2157358899 | R166: 6.177867585
A167: H | C167: 1 | D167: 6.181633269 | E167: 0.1078843763 | F167: 6.180691777 | G167: 6.181633269 | H167: 0.1078843763 | I167: 6.180691777 | J167: 6.181633269 | K167: 0.1078843763 | L167: 6.180691777 | M167: 6.181633269 | N167: 0.1078843763 | O167: 6.180691777 | P167: 6.181633269 | Q167: 0.1078843763 | R167: 6.180691777
A168: H | C168: 0 | D168: 6.181633269 | E168: 0 | F168: =D168*COS(RADIANS($C168)) -> 6.181633269 | G168: 6.181633269 | H168: 0 | I168: 6.181633269 | J168: 6.181633269 | K168: 0 | L168: 6.181633269 | M168: 6.181633269 | N168: 0 | O168: 6.181633269 | P168: 6.181633269 | Q168: 0 | R168: 6.181633269
A169: H | C169: =360-C78 -> 360 | E169: =-INDIRECT(ADDRESS(ROW(E$168)-(ROW()-ROW(E$168)-1),COLUMN())) -> 0 | F169: =INDIRECT(ADDRESS(ROW(F$168)-(ROW()-ROW(F$168)-1),COLUMN())) -> 6.181633269 | H169: =-INDIRECT(ADDRESS(ROW(H$168)-(ROW()-ROW(H$168)-1),COLUMN())) -> 0 | I169: =INDIRECT(ADDRESS(ROW(I$168)-(ROW()-ROW(I$168)-1),COLUMN())) -> 6.181633269 | K169: =-INDIRECT(ADDRESS(ROW(K$168)-(ROW()-ROW(K$168)-1),COLUMN())) -> 0 | L169: =INDIRECT(ADDRESS(ROW(L$168)-(ROW()-ROW(L$168)-1),COLUMN())) -> 6.181633269 | N169: =-INDIRECT(ADDRESS(ROW(N$168)-(ROW()-ROW(N$168)-1),COLUMN())) -> 0 | O169: =INDIRECT(ADDRESS(ROW(O$168)-(ROW()-ROW(O$168)-1),COLUMN())) -> 6.181633269 | Q169: =-INDIRECT(ADDRESS(ROW(Q$168)-(ROW()-ROW(Q$168)-1),COLUMN())) -> 0 | R169: =INDIRECT(ADDRESS(ROW(R$168)-(ROW()-ROW(R$168)-1),COLUMN())) -> 6.181633269
A170: H | C170: =360-C79 -> 359 | E170: =-INDIRECT(ADDRESS(ROW(E$168)-(ROW()-ROW(E$168)-1),COLUMN())) -> -0.1078843763 | F170: =INDIRECT(ADDRESS(ROW(F$168)-(ROW()-ROW(F$168)-1),COLUMN())) -> 6.180691777 | H170: =-INDIRECT(ADDRESS(ROW(H$168)-(ROW()-ROW(H$168)-1),COLUMN())) -> -0.1078843763 | I170: =INDIRECT(ADDRESS(ROW(I$168)-(ROW()-ROW(I$168)-1),COLUMN())) -> 6.180691777 | K170: =-INDIRECT(ADDRESS(ROW(K$168)-(ROW()-ROW(K$168)-1),COLUMN())) -> -0.1078843763 | L170: =INDIRECT(ADDRESS(ROW(L$168)-(ROW()-ROW(L$168)-1),COLUMN())) -> 6.180691777 | N170: =-INDIRECT(ADDRESS(ROW(N$168)-(ROW()-ROW(N$168)-1),COLUMN())) -> -0.1078843763 | O170: =INDIRECT(ADDRESS(ROW(O$168)-(ROW()-ROW(O$168)-1),COLUMN())) -> 6.180691777 | Q170: =-INDIRECT(ADDRESS(ROW(Q$168)-(ROW()-ROW(Q$168)-1),COLUMN())) -> -0.1078843763 | R170: =INDIRECT(ADDRESS(ROW(R$168)-(ROW()-ROW(R$168)-1),COLUMN())) -> 6.180691777
A171: H | C171: =360-C80 -> 358 | E171: =-INDIRECT(ADDRESS(ROW(E$168)-(ROW()-ROW(E$168)-1),COLUMN())) -> -0.2157358899 | F171: =INDIRECT(ADDRESS(ROW(F$168)-(ROW()-ROW(F$168)-1),COLUMN())) -> 6.177867585 | H171: =-INDIRECT(ADDRESS(ROW(H$168)-(ROW()-ROW(H$168)-1),COLUMN())) -> -0.2157358899 | I171: =INDIRECT(ADDRESS(ROW(I$168)-(ROW()-ROW(I$168)-1),COLUMN())) -> 6.177867585 | K171: =-INDIRECT(ADDRESS(ROW(K$168)-(ROW()-ROW(K$168)-1),COLUMN())) -> -0.2157358899 | L171: =INDIRECT(ADDRESS(ROW(L$168)-(ROW()-ROW(L$168)-1),COLUMN())) -> 6.177867585 | N171: =-INDIRECT(ADDRESS(ROW(N$168)-(ROW()-ROW(N$168)-1),COLUMN())) -> -0.2157358899 | O171: =INDIRECT(ADDRESS(ROW(O$168)-(ROW()-ROW(O$168)-1),COLUMN())) -> 6.177867585 | Q171: =-INDIRECT(ADDRESS(ROW(Q$168)-(ROW()-ROW(Q$168)-1),COLUMN())) -> -0.2157358899 | R171: =INDIRECT(ADDRESS(ROW(R$168)-(ROW()-ROW(R$168)-1),COLUMN())) -> 6.177867585
A172: H | C172: 357 | E172: -0.3235216883 | F172: 6.173161556 | H172: -0.3235216883 | I172: 6.173161556 | K172: -0.3235216883 | L172: 6.173161556 | N172: -0.3235216883 | O172: 6.173161556 | Q172: -0.3235216883 | R172: 6.173161556
A173: H | C173: 356 | E173: -0.4312089388 | F173: 6.166575121 | H173: -0.4312089388 | I173: 6.166575121 | K173: -0.4312089388 | L173: 6.166575121 | N173: -0.4312089388 | O173: 6.166575121 | Q173: -0.4312089388 | R173: 6.166575121
A174: H | C174: 355 | E174: -0.538764839 | F174: 6.158110288 | H174: -0.538764839 | I174: 6.158110288 | K174: -0.538764839 | L174: 6.158110288 | N174: -0.538764839 | O174: 6.158110288 | Q174: -0.538764839 | R174: 6.158110288
A175: H | C175: 354 | E175: -0.6461566261 | F175: 6.147769635 | H175: -0.6461566261 | I175: 6.147769635 | K175: -0.6461566261 | L175: 6.147769635 | N175: -0.6461566261 | O175: 6.147769635 | Q175: -0.6461566261 | R175: 6.147769635
A176: H | C176: 353 | E176: -0.7533515877 | F176: 6.135556312 | H176: -0.7533515877 | I176: 6.135556312 | K176: -0.7533515877 | L176: 6.135556312 | N176: -0.7533515877 | O176: 6.135556312 | Q176: -0.7533515877 | R176: 6.135556312
A177: H | C177: 352 | E177: -0.8603170711 | F177: 6.121474039 | H177: -0.8603170711 | I177: 6.121474039 | K177: -0.8603170711 | L177: 6.121474039 | N177: -0.8603170711 | O177: 6.121474039 | Q177: -0.8603170711 | R177: 6.121474039
A178: H | C178: 351 | E178: -0.9670204935 | F178: 6.105527106 | H178: -0.9670204935 | I178: 6.105527106 | K178: -0.9670204935 | L178: 6.105527106 | N178: -0.9670204935 | O178: 6.105527106 | Q178: -0.9670204935 | R178: 6.105527106
A179: H | C179: 350 | E179: -1.073429352 | F179: 6.08772037 | H179: -1.073429352 | I179: 6.08772037 | K179: -1.073429352 | L179: 6.08772037 | N179: -1.073429352 | O179: 6.08772037 | Q179: -1.073429352 | R179: 6.08772037
A180: H | C180: 349 | E180: -1.179511234 | F180: 6.068059255 | H180: -1.179511234 | I180: 6.068059255 | K180: -1.179511234 | L180: 6.068059255 | N180: -1.179511234 | O180: 6.068059255 | Q180: -1.179511234 | R180: 6.068059255
A181: H | C181: 348 | E181: -1.285233825 | F181: 6.046549751 | H181: -1.285233825 | I181: 6.046549751 | K181: -1.285233825 | L181: 6.046549751 | N181: -1.285233825 | O181: 6.046549751 | Q181: -1.285233825 | R181: 6.046549751
A182: H | C182: 347 | E182: -1.390564921 | F182: 6.023198409 | H182: -1.390564921 | I182: 6.023198409 | K182: -1.390564921 | L182: 6.023198409 | N182: -1.390564921 | O182: 6.023198409 | Q182: -1.390564921 | R182: 6.023198409
A183: H | C183: 346 | E183: -1.495472438 | F183: 5.998012343 | H183: -1.495472438 | I183: 5.998012343 | K183: -1.495472438 | L183: 5.998012343 | N183: -1.495472438 | O183: 5.998012343 | Q183: -1.495472438 | R183: 5.998012343
A184: H | C184: 345 | E184: -1.59992442 | F184: 5.970999223 | H184: -1.59992442 | I184: 5.970999223 | K184: -1.59992442 | L184: 5.970999223 | N184: -1.59992442 | O184: 5.970999223 | Q184: -1.59992442 | R184: 5.970999223
A185: H | C185: 343.5 | E185: -1.755678704 | F185: 5.927071972 | H185: -1.755678704 | I185: 5.927071972 | K185: -1.755678704 | L185: 5.927071972 | N185: -1.755678704 | O185: 5.927071972 | Q185: -1.755678704 | R185: 5.927071972
A186: H | C186: 342 | E186: -1.910229733 | F186: 5.879082602 | H186: -1.910229733 | I186: 5.879082602 | K186: -1.910229733 | L186: 5.879082602 | N186: -1.910229733 | O186: 5.879082602 | Q186: -1.910229733 | R186: 5.879082602
A187: H | C187: 340.5 | E187: -2.063471587 | F187: 5.827064002 | H187: -2.063471587 | I187: 5.827064002 | K187: -2.063471587 | L187: 5.827064002 | N187: -2.063471587 | O187: 5.827064002 | Q187: -2.063471587 | R187: 5.827064002
A188: H | C188: 339 | E188: -2.21529924 | F188: 5.771051824 | H188: -2.21529924 | I188: 5.771051824 | K188: -2.21529924 | L188: 5.771051824 | N188: -2.21529924 | O188: 5.771051824 | Q188: -2.108094467 | R188: 5.491773843
A189: H | C189: 337.5 | E189: -2.365608637 | F189: 5.711084455 | H189: -2.365608637 | I189: 5.711084455 | K189: -2.365608637 | L189: 5.711084455 | N189: -2.365608637 | O189: 5.711084455 | Q189: -2.098137549 | R189: 5.065352126
A190: H | C190: 336 | E190: -2.514296765 | F190: 5.647202994 | H190: -2.514296765 | I190: 5.647202994 | K190: -2.514296765 | L190: 5.647202994 | N190: -2.514296765 | O190: 5.647202994 | Q190: -2.061930461 | R190: 4.631171641
A191: H | C191: 334.5 | E191: -2.661261719 | F191: 5.579451222 | H191: -2.661261719 | I191: 5.579451222 | K191: -2.661261719 | L191: 5.579451222 | N191: -2.661261719 | O191: 5.579451222 | Q191: -2.000774628 | R191: 4.19471124
A192: H | C192: 333 | E192: -2.806402777 | F192: 5.507875573 | H192: -2.806402777 | I192: 5.507875573 | K192: -2.806402777 | L192: 5.507875573 | N192: -2.806402777 | O192: 5.507875573 | Q192: -1.91693046 | R192: 3.762187858
A193: H | C193: 331.5 | E193: -2.949620467 | F193: 5.432525101 | H193: -2.949620467 | I193: 5.432525101 | K193: -2.949620467 | L193: 5.432525101 | N193: -2.949620467 | O193: 5.432525101 | Q193: -1.813739041 | R193: 3.340491761
A194: H | C194: 330 | E194: -3.090816635 | F194: 5.353451448 | H194: -3.090816635 | I194: 5.353451448 | K194: -3.090816635 | L194: 5.353451448 | N194: -3.090816635 | O194: 5.353451448 | Q194: -1.695645613 | R194: 2.936944353
A195: H | C195: 327.5 | E195: -3.321389134 | F195: 5.21353662 | H195: -3.321389134 | I195: 5.21353662 | K195: -3.321389134 | L195: 5.21353662 | N195: -3.309458077 | O195: 5.194808611 | Q195: -1.480562061 | R195: 2.324016913
A196: H | C196: 325 | E196: -3.545639181 | F196: 5.06369753 | H196: -3.545639181 | I196: 5.06369753 | K196: -3.545639181 | L196: 5.06369753 | N196: -3.314659691 | O196: 4.733824631 | Q196: -1.26577029 | R196: 1.807707317
A197: H | C197: 322.5 | E197: -3.763139903 | F197: 4.904219403 | H197: -3.763139903 | I197: 4.904219403 | K197: -3.763139903 | L197: 4.904219403 | N197: -3.293035062 | O197: 4.291566847 | Q197: -1.072653937 | R197: 1.397909827
A198: H | C198: 320 | E198: -3.973477273 | F198: 4.735405815 | H198: -3.973477273 | I198: 4.735405815 | K198: -3.973477273 | L198: 4.735405815 | N198: -3.249133783 | O198: 3.872166859 | Q198: -0.9113896889 | R198: 1.086151936
A199: H | C199: 317.5 | E199: -4.176250904 | F199: 4.557578114 | H199: -4.176250904 | I199: 4.557578114 | K199: -4.176250904 | L199: 4.557578114 | N199: -3.187396612 | O199: 3.478433019 | Q199: -0.7820629934 | R199: 0.8534719931
A200: H | C200: 315 | E200: -4.371074803 | F200: 4.371074803 | H200: -4.371074803 | I200: 4.371074803 | K200: -4.316994061 | L200: 4.316994061 | N200: -3.111950395 | O200: 3.111950395 | Q200: -0.6797404997 | R200: 0.6797404997
A201: H | C201: 310 | E201: -4.735405815 | F201: 3.973477273 | H201: -4.735405815 | I201: 3.973477273 | K201: -4.245044929 | L201: 3.562015634 | N201: -2.934101642 | O201: 2.462003606 | Q201: -0.5332674192 | R201: 0.4474644948
A202: H | C202: 305 | E202: -5.06369753 | F202: 3.545639181 | H202: -5.06369753 | I202: 3.545639181 | K202: -4.117468734 | L202: 2.883082646 | N202: -2.738618014 | O202: 1.917600977 | Q202: -0.4359772079 | R202: 0.3052745275
A203: H | C203: 300 | E203: -5.353451448 | F203: 3.090816635 | H203: -5.071182781 | I203: 2.927848744 | K203: -3.952263358 | L203: 2.281840314 | N203: -2.540484531 | O203: 1.466749428 | Q203: -0.3672913854 | R203: 0.2120557802
A204: H | C204: 295 | E204: -5.602462368 | F204: 2.612471107 | H204: -4.913422161 | I204: 2.291166382 | K204: -3.763636657 | L204: 1.755012596 | N204: -2.348328451 | O204: 1.095043541 | Q204: -0.3161518032 | R204: 0.147424007
A205: H | C205: 290 | E205: -5.751516928 | F205: 2.093380964 | H205: -4.723694088 | I205: 1.719284044 | K205: -3.562154863 | L205: 1.29651834 | N205: -2.166454185 | O205: 0.7885248373 | Q205: -0.2763987965 | R205: 0.1006009347
A206: H | C206: 285 | E206: -5.548325504 | F206: 1.486669338 | H206: -4.512050261 | I206: 1.209000224 | K206: -3.355291618 | L206: 0.8990476795 | N206: -1.996518896 | O206: 0.534965626 | Q206: -0.2444085681 | R206: 0.06548907846
A207: H | C207: 280 | E207: -5.318275977 | F207: 0.9377555456 | H207: -4.286296186 | I207: 0.7557896649 | K207: -3.148095315 | L207: 0.5550941419 | N207: -1.838689897 | O207: 0.324210638 | Q207: -0.2179329502 | R207: 0.03842745911
A208: H | C208: 275 | E208: -5.068919834 | F208: 0.4434730218 | H208: -4.052312825 | I208: 0.3545314333 | K208: -2.943814336 | L208: 0.2575503819 | N208: -1.692366514 | O208: 0.1480628845 | Q208: -0.1955101963 | R208: 0.01710492578
A209: H | C209: 270 | E209: -4.806243875 | F209: 2.944181129e-16 | H209: -3.814410711 | I209: 2.336609695e-16 | K209: -2.744413465 | L209: 1.681156958e-16 | N209: -1.556600752 | O209: 9.535335029e-17 | Q209: -0.1761506866 | R209: 1.079053708e-17
A210: H | C210: 260 | E210: -4.258411578 | F210: -0.7508728561 | H210: -3.338192977 | I210: -0.5886134886 | K210: -2.363962966 | L210: -0.4168304524 | N210: -1.312495453 | O210: -0.2314283604 | Q210: -0.1440395016 | R210: -0.02539805042
A211: H | C211: 240 | E211: -3.144023901 | F211: -1.815203046 | H211: -2.422118873 | I211: -1.398410984 | K211: -1.678803954 | L211: -0.9692579147 | N211: -0.9069993123 | O211: -0.5236562971 | Q211: -0.09601067429 | R211: -0.05543178865
A212: H | C212: 220 | E212: -2.061089784 | F212: -2.456311155 | H212: -1.571450282 | I212: -1.872781519 | K212: -1.075852231 | L212: -1.282150761 | N212: -0.572647796 | O212: -0.6824550682 | Q212: -0.05951126599 | R212: -0.07092276505
A213: H | C213: 200 | E213: -1.018609996 | F213: -2.798607962 | H213: -0.7723695537 | I213: -2.122067908 | K213: -0.5254151088 | L213: -1.443566147 | N213: -0.2775687134 | O213: -0.7626137725 | Q213: -0.02858751796 | R213: -0.07854356007
A214: H | C214: 180 | E214: -3.560513482e-16 | F214: -2.906189424 | H214: -2.695150165e-16 | I214: -2.199855988 | K214: -1.829786415e-16 | L214: -1.493522199 | N214: -9.644226649e-17 | O214: -0.7871884105 | Q214: -9.905891479e-18 | R214: -0.08085462166
A215: H | C215: 200 | E215: -1.018609996 | F215: -2.798607962 | H215: -0.7723695537 | I215: -2.122067908 | K215: -0.5254151088 | L215: -1.443566147 | N215: -0.2775687134 | O215: -0.7626137725 | Q215: -0.02858751796 | R215: -0.07854356007
A216: H | C216: 220 | E216: -2.061089784 | F216: -2.456311155 | H216: -1.571450282 | I216: -1.872781519 | K216: -1.075852231 | L216: -1.282150761 | N216: -0.5726477961 | O216: -0.6824550683 | Q216: -0.05951126599 | R216: -0.07092276505
A217: H | C217: 240 | E217: -3.144023901 | F217: -1.815203046 | H217: -2.422118873 | I217: -1.398410984 | K217: -1.678803954 | L217: -0.9692579146 | N217: -0.9069993118 | O217: -0.5236562968 | Q217: -0.09601067432 | R217: -0.05543178866
A218: H | C218: 260 | E218: -4.258411577 | F218: -0.7508728559 | H218: -3.338192974 | I218: -0.588613488 | K218: -2.363962969 | L218: -0.4168304528 | N218: -1.312495453 | O218: -0.2314283605 | Q218: -0.1440395016 | R218: -0.02539805042
A219: H | C219: 270 | E219: -4.806243873 | F219: 2.944181127e-16 | H219: -3.814410712 | I219: 2.336609695e-16 | K219: -2.744413465 | L219: 1.681156958e-16 | N219: -1.556600753 | O219: 9.535335036e-17 | Q219: -0.1761506866 | R219: 1.079053708e-17
A220: H | C220: 275 | E220: -5.068919831 | F220: 0.4434730216 | H220: -4.052312826 | I220: 0.3545314333 | K220: -2.943814336 | L220: 0.2575503819 | N220: -1.692366518 | O220: 0.1480628848 | Q220: -0.1955101962 | R220: 0.01710492577
A221: H | C221: 280 | E221: -5.318275977 | F221: 0.9377555456 | H221: -4.286296188 | I221: 0.7557896653 | K221: -3.148095316 | L221: 0.555094142 | N221: -1.838689896 | O221: 0.3242106379 | Q221: -0.2179329497 | R221: 0.03842745901
A222: H | C222: 285 | E222: -5.5483255 | F222: 1.486669337 | H222: -4.512050269 | I222: 1.209000226 | K222: -3.35529162 | L222: 0.89904768 | N222: -1.996518895 | O222: 0.5349656255 | Q222: -0.2444085684 | R222: 0.06548907851
A223: H | C223: 290 | E223: -5.751516924 | F223: 2.093380962 | H223: -4.723694088 | I223: 1.719284044 | K223: -3.562154874 | L223: 1.296518344 | N223: -2.166454182 | O223: 0.788524836 | Q223: -0.2763987973 | R223: 0.100600935
A224: H | C224: 295 | E224: -5.602462368 | F224: 2.612471107 | H224: -4.913422162 | I224: 2.291166382 | K224: -3.763636656 | L224: 1.755012595 | N224: -2.348328446 | O224: 1.095043538 | Q224: -0.3161518066 | R224: 0.1474240086
A225: H | C225: 300 | E225: -5.353451448 | F225: 3.090816635 | H225: -5.071182783 | I225: 2.927848745 | K225: -3.952263358 | L225: 2.281840314 | N225: -2.540484538 | O225: 1.466749432 | Q225: -0.3672913852 | R225: 0.2120557801
A226: H | C226: 305 | E226: -5.06369753 | F226: 3.545639181 | H226: -5.06369753 | I226: 3.545639181 | K226: -4.117468742 | L226: 2.883082651 | N226: -2.738617989 | O226: 1.91760096 | Q226: -0.4359772068 | R226: 0.3052745267
A227: H | C227: 310 | E227: -4.735405815 | F227: 3.973477273 | H227: -4.735405815 | I227: 3.973477273 | K227: -4.245044928 | L227: 3.562015633 | N227: -2.934101625 | O227: 2.462003592 | Q227: -0.5332674099 | R227: 0.447464487
A228: H | C228: 315 | E228: -4.371074803 | F228: 4.371074803 | H228: -4.371074803 | I228: 4.371074803 | K228: -4.316994061 | L228: 4.316994061 | N228: -3.111950355 | O228: 3.111950355 | Q228: -0.6797405433 | R228: 0.6797405433
A229: H | C229: 317.5 | E229: -4.176250904 | F229: 4.557578114 | H229: -4.176250904 | I229: 4.557578114 | K229: -4.176250904 | L229: 4.557578114 | N229: -3.18739658 | O229: 3.478432984 | Q229: -0.7820629941 | R229: 0.8534719938
A230: H | C230: 320 | E230: -3.973477273 | F230: 4.735405815 | H230: -3.973477273 | I230: 4.735405815 | K230: -3.973477273 | L230: 4.735405815 | N230: -3.249133769 | O230: 3.872166842 | Q230: -0.9113897307 | R230: 1.086151986
A231: H | C231: 322.5 | E231: -3.763139903 | F231: 4.904219403 | H231: -3.763139903 | I231: 4.904219403 | K231: -3.763139903 | L231: 4.904219403 | N231: -3.293035073 | O231: 4.291566861 | Q231: -1.072653979 | R231: 1.397909881
A232: H | C232: 325 | E232: -3.545639181 | F232: 5.06369753 | H232: -3.545639181 | I232: 5.06369753 | K232: -3.545639181 | L232: 5.06369753 | N232: -3.314659669 | O232: 4.733824599 | Q232: -1.265770371 | R232: 1.807707433
A233: H | C233: 327.5
... 25 more rows

Sheet dTb
B1: =WbkTitle -> Course Deviation in Order to Find Stronger Lift (No Wind, Graphs)
B2: ="Time Difference Curves for: "&W_th2_u&" / "&W_th1_u&" "&W_sym_u -> Time Difference Curves for: 3 / 2 kts
B3: Description | C3: Name | D3: Q'ty | E3: Unit
B4: Initial Altitude | C4: H_0_u | D4: 3000 | E4: =H_sym_u -> ft
B5: Maximum Altitude | C5: H_max_u | D5: 8000 | E5: =H_sym_u -> ft
B6: Minimum Altitude | C6: H_min_u | D6: 2000 | E6: =H_sym_u -> ft
B7: Initial Distance to Next TP | C7: D_TP_u | D7: 8 | E7: =L_sym_u -> mi
B8: Use Glider Polar for | C8: Polar | D8: Std. Cirrus
B9: Wing Loading | C9: WL_u | D9: 6.2 | E9: =WL_sym_u -> lb/sf
B10: Climb Rate in Thermal 1 (MC setting) | C10: W_th1_u | D10: 2 | E10: =W_sym_u -> kts
B11: Climb Rate in Thermal 2 | C11: W_th2_u | D11: 3 | E11: =W_sym_u -> kts
B12: Extend Glide [TRUE/FALSE] | C12: Ext_glide | D12: FALSE
A13: H | B13: Initial Altitude (su) | C13: H_0 | D13: =H_0_u*H_mul -> 0.4937365007 | E13: =H_sym -> nm
A14: H | B14: Maximum Altitude (su) | C14: H_max | D14: =H_max_u*H_mul -> 1.316630669 | E14: =H_sym -> nm
A15: H | B15: Minimum Altitude (su) | C15: H_min | D15: =H_min_u*H_mul -> 0.3291576671 | E15: =H_sym -> nm
A16: H | B16: Initial Distance to Next TP (su) | C16: D_TP | D16: =D_TP_u*L_mul -> 6.951809936 | E16: =L_sym -> nm
A17: H | B17: Glider Polar No | C17: PolarNo | D17: =MATCH(D8,Gliders,0) -> 3
A18: H | B18: PolarDataTable | C18: Polar_WL | D18: =VLOOKUP("WL",PolarDataTable,PolarNo,FALSE) -> 30
A19: H | B19: SeeYou a adjusted for Rho and WL | C19: Polar_a | D19: =VLOOKUP("a",PolarDataTable,PolarNo,FALSE) -> 2.22
A20: H | B20: SeeYou b adjusted for Rho and WL | C20: Polar_b | D20: =VLOOKUP("b",PolarDataTable,PolarNo,FALSE) -> -3.5
A21: H | B21: SeeYou c adjusted for Rho and WL | C21: Polar_c | D21: =VLOOKUP("c",PolarDataTable,PolarNo,FALSE) -> 2.06
A22: H | B22: Mean Altitude (su) | C22: H_mean | D22: =AVERAGE(H_0,H_max)*6076.11549 -> 5500 | E22: H_sym
A23: H | B23: Mean Density (su) | C23: Rho_Mean | D23: =INDEX(Z_AirProperties(H_mean*0.3048),9) -> 1.003852547 | E23: kg/m³
A24: H | B24: Density Factor | C24: F_Rho | D24: =SQRT(1.225/Rho_Mean) -> 1.104671327 | E24: -
A25: H | B25: Wing Loading (su) | C25: WL | D25: =WL_u*WL_mul -> 30.27105135 | E25: =WL_sym -> kg/m²
A26: H | B26: Wing Loading Factor | C26: F_WL | D26: =SQRT(WL/Polar_WL) -> 1.004507364 | E26: -
A27: H | B27: Climb Rate in Thermal 1 (MC setting) (su) | C27: W_th1 | D27: =W_th1_u*W_mul -> 2 | E27: =W_sym -> kts
A28: H | B28: Climb Rate in Thermal 2 (su) | C28: W_th2 | D28: =W_th2_u*W_mul -> 3 | E28: =W_sym -> kts
A29: H | B29: Cruise Speed According to MC (Calc) (su) | C29: V_cr_c | D29: =SQRT((Polar_c+W_th1*1.852/3.6/F_Rho/F_WL)/Polar_a)*100/1.852 -> 62.63485175 | E29: =V_sym -> kts
A30: H | B30: Cruise Speed per MC (True) (su) | C30: V_cr | D30: =V_cr_c*F_Rho*F_WL -> 69.50279353 | E30: =V_sym -> kts
A31: H | B31: Cruise Speed per MC (Calibrated) (su) | C31: V_cr_i | D31: =V_cr_c*F_WL -> 62.91716984 | E31: =V_sym -> kts
B32: Cruise Speed per MC (Calibrated) | C32: V_cr_i_u | D32: =V_cr_i/V_mul -> 62.91716984 | E32: =V_sym_u -> kts
A33: H | B33: Cruise Sink Rate (Calc) (su) | C33: W_cr_c | D33: =(Polar_a*(V_cr_c*1.852/100)^2+Polar_b*(V_cr_c*1.852/100)+Polar_c)*3.6/1.852 -> 1.91901732 | E33: =W_sym -> kts
A34: H | B34: Cruise Sink Rate (True) (su) | C34: W_cr | D34: =D33*F_Rho*F_WL -> 2.129438496 | E34: =W_sym -> kts
A35: H | B35: Cruise Sink Rate (True) | C35: W_cr_u | D35: =W_cr/W_mul -> 2.129438496 | E35: =W_sym_u -> kts
B36: Cruise Glide Ratio | C36: E_cr | D36: =V_cr/W_cr -> 32.63902369 | E36: -
A37: H | B37: dT Cutoff | C37: dTmax | D37: 0 | E37: min
B38: Grid - Y max | C38: Ymax | D38: 10 | E38: =L_sym_u -> mi
A39: H | B39: Grid - Y min | C39: Ymin | D39: =-Ymax/4 -> -2.5 | E39: =L_sym_u -> mi
A40: H | B40: Grid - Y step | C40: Ystep | D40: =(Ymax-Ymin)/(ROWS(XYTable)-2) -> 0.25 | E40: =L_sym_u -> mi
A41: H | B41: Grid - X max | C41: Xmax | D41: =Xstep*(COLUMNS(XYTable)-2) -> 7.5 | E41: =L_sym_u -> mi
A42: H | B42: Grid - X step | C42: Xstep | D42: =Ystep -> 0.25 | E42: =L_sym_u -> mi
A76: H | B76: SubTitle
A77: H | B77: ="H init/H max/H min = "&H_0_u&"/"&H_max_u&"/"&H_min_u&" "&H_sym_u&CHAR(10)&"Dist. to TP = "&D_TP_u&" "&L_sym_u&"; "&Polar&" WL = "&WL_u&" "&WL_sym_u -> H init/H max/H min = 3000/8000/2000 ft Dist. to TP = 8 mi; Std. Cirrus WL = 6.2 lb/sf
A78: H | G78: 0 | H78: =G78+Xstep -> 0.25 | I78: 0.5 | J78: 0.75 | K78: 1 | L78: 1.25 | M78: 1.5 | N78: 1.75 | O78: 2 | P78: 2.25 | Q78: 2.5 | R78: 2.75 | S78: 3 | T78: 3.25 | U78: 3.5 | V78: 3.75 | W78: 4 | X78: 4.25 | Y78: 4.5 | Z78: 4.75 | AA78: 5 | AB78: 5.25 | AC78: 5.5 | AD78: 5.75 | AE78: 6 | AF78: 6.25 | AG78: 6.5 | AH78: 6.75 | AI78: 7 | AJ78: 7.25 | AK78: 7.5
A79: H | F79: =Ymax -> 10 | G79: =Calc_dT_XY(H_0,H_max,H_min,Ext_glide,D_TP,V_cr,W_cr,W_th1,W_th2,G$78:AK$78,$F79:$F129,L_mul,dTmax) -> 
A80: H | F80: =F79-Ystep -> 9.75
A81: H | F81: 9.5
A82: H | F82: 9.25
A83: H | F83: 9
A84: H | F84: 8.75
A85: H | F85: 8.5
A86: H | F86: 8.25
A87: H | F87: 8
A88: H | F88: 7.75
A89: H | F89: 7.5
A90: H | F90: 7.25
A91: H | F91: 7
A92: H | F92: 6.75
A93: H | F93: 6.5
A94: H | F94: 6.25
A95: H | F95: 6 | G95: -9.826372258 | H95: -9.795587275 | I95: -9.704358832 | J95: -9.555832263 | K95: -9.354576482 | L95: -9.105869132
A96: H | F96: 5.75 | G96: -9.759812651 | H96: -9.731398822 | I96: -9.64696961 | J96: -9.508827801 | K96: -9.320414587 | L96: -9.085858304 | M96: -8.809546172 | N96: -8.495795314 | O96: -8.148644095 | P96: -7.771747608
A97: H | F97: 5.5 | G97: -9.693253043 | H97: -9.666656221 | I97: -9.587477375 | J97: -9.457469966 | K97: -9.279310163 | L97: -9.056302065 | M97: -8.792077026 | N97: -8.49033881 | O97: -8.15467833 | P97: -7.788458264 | Q97: -7.394754677 | R97: -6.976338902
A98: H | F98: 5.25 | G98: -9.626693436 | H98: -9.601498287 | I98: -9.526392045 | J98: -9.402760187 | K98: -9.232751412 | L98: -9.019077905 | M98: -8.764800032 | N98: -8.473129837 | O98: -8.147273712 | P98: -7.79032049 | Q98: -7.405171361 | R98: -6.994503163 | S98: -6.560755604 | T98: -6.106134111
A99: H | F99: 5 | G99: -9.560133828 | H99: -9.536016062 | I99: -9.464052912 | J99: -9.345379625 | K99: -9.181778543 | L99: -8.975538154 | M99: -8.729294398 | N99: -8.445877268 | O99: -8.128178726 | P99: -7.779049676 | Q99: -7.401226887 | R99: -6.997286407 | S99: -6.569618136 | T99: -6.120415969 | U99: -5.651678607
A100: H | F100: 4.75 | G100: -9.493574221 | H100: -9.470270507 | I100: -9.400689532 | J100: -9.285796651 | K100: -9.127121541 | L100: -8.926653871 | M100: -8.686721694 | N100: -8.409868468 | O100: -8.098741121 | P100: -7.755996661 | Q100: -7.384230204 | R100: -6.985923823 | S100: -6.563413534 | T100: -6.118870913 | U100: -5.654295746 | V100: -5.171516561
A101: H | F101: 4.5 | G101: -9.427014613 | H101: -9.404302544 | I101: -9.336457188 | J101: -9.22433188 | K101: -9.069287773 | L101: -8.873111871 | M101: -8.63791893 | N101: -8.366048815 | O101: -8.059969137 | P101: -7.722190019 | Q101: -7.355194637 | R101: -6.96138641 | S101: -6.54305183 | T101: -6.102336756 | U101: -5.64123363 | V101: -5.161577007 | W101: -4.665045153
A102: H | F102: 4.25 | G102: -9.360455006 | H102: -9.338138931 | I102: -9.271457978 | J102: -9.161197984 | K102: -9.008617638 | L102: -8.815379095 | M102: -8.583463445 | N102: -8.315080256 | O102: -8.012579447 | P102: -7.67837176 | Q102: -7.31486169 | R102: -6.924394464 | S102: -6.509216934 | T102: -6.071451013 | U102: -5.613077736 | V102: -5.13592977 | W102: -4.641690336 | X102: -4.131896718
A103: H | F103: 4 | G103: -9.293895398 | H103: -9.27179569 | I103: -9.205753291 | J103: -9.096523702 | K103: -8.945319052 | L103: -8.753743825 | M103: -8.523715982 | N103: -8.25738177 | O103: -7.957031829 | P103: -7.625024541 | Q103: -7.263720494 | R103: -6.87542987 | S103: -6.46237292 | T103: -6.026652488 | U103: -5.570236904 | V103: -5.094951292 | W103: -4.602475348 | X103: -4.094345854 | Y103: -3.57196245
A104: H | F104: 3.75 | G104: -9.227335791 | H104: -9.205279965 | I104: -9.139370649 | J104: -9.030367224 | K104: -8.879487041 | L104: -8.688339644 | M104: -8.458846424 | N104: -8.193154306 | O104: -7.893551285 | P104: -7.562389756 | Q104: -7.20202142 | R104: -6.814745399 | S104: -6.402769529 | T104: -5.968183694 | U104: -5.512943398 | V104: -5.038861591 | W104: -4.54760681 | X104: -4.040705898 | Y104: -3.519549873 | Z104: -2.98540178
A105: H | F105: 3.5 | G105: -9.160776183 | H105: -9.138590765 | I105: -9.072306423 | J105: -8.962721571 | K105: -8.811111766 | L105: -8.619155489 | M105: -8.388844908 | N105: -8.122391925 | O105: -7.82213834 | P105: -7.490476403 | Q105: -7.129783221 | R105: -6.742370072 | S105: -6.330445884 | T105: -5.896093151 | U105: -5.441254049 | V105: -4.967724513 | W105: -4.477154201 | X105: -3.971050602 | Y105: -3.450785885 | Z105: -2.917605404 | AA105: -2.372637049
A106: H | F106: 3.25 | G106: -9.094216576 | H106: -9.071718714 | I106: -9.004524969 | J106: -8.893512961 | K106: -8.74007627 | L106: -8.546033127 | M106: -8.31351946 | N106: -8.044879963 | O106: -7.742567975 | P106: -7.409060848 | Q106: -7.046793556 | R106: -6.658110299 | S106: -6.245232051 | T106: -5.810237171 | U106: -5.35505212 | V106: -4.88144955 | W106: -4.391051546 | X106: -3.885336232 | Y106: -3.365646414 | Z106: -2.833199297 | AA106: -2.289096591 | AB106: -1.734334558
A107: H | F107: 3 | G107: -9.027656968 | H107: -9.00464477 | I107: -8.935953931 | J107: -8.822591745 | K107: -8.666143433 | L107: -8.468651591 | M107: -8.232479833 | N107: -7.960180091 | O107: -7.654377213 | P107: -7.317677633 | Q107: -6.952603124 | R107: -6.561547026 | S107: -6.146748654 | T107: -5.710281334 | U107: -5.254050027 | V107: -4.779795299 | W107: -4.289101215 | X107: -3.783405424 | Y107: -3.264010271 | Z107: -2.732094156 | AA107: -2.188722648 | AB107: -1.634859072
A108: H | F108: 2.75 | G108: -8.961097361 | H108: -8.937337568 | I108: -8.866474622 | J108: -8.749713981 | K108: -8.588929753 | L108: -8.38649625 | M108: -8.145105754 | N108: -7.867601225 | O108: -7.556841103 | P108: -7.215601648 | Q108: -6.846514082 | R108: -6.452029716 | S108: -6.03440538 | T108: -5.595702346 | U108: -5.137793496 | V108: -4.662375014 | W108: -4.170980155 | X108: -3.664993579 | Y108: -3.145665373 | Z108: -2.614124269 | AA108: -2.071389875 | AB108: -1.518383802 | AC108: -0.9559397436
A109: H | F109: 2.5 | G109: -8.894537753 | H109: -8.869748695 | I109: -8.795905062 | J109: -8.674509548 | K109: -8.507861006 | L109: -8.298807908 | M109: -8.05049619 | N109: -7.766154497 | O109: -7.448936739 | P109: -7.101822391 | Q109: -6.727564079 | R109: -6.328668727 | S109: -5.907399853 | T109: -5.465791596 | U109: -5.005668184 | V109: -4.528664991 | W109: -4.036249075 | X109: -3.52973816 | Y109: -3.010317676 | Z109: -2.47905582 | AA109: -1.936916764 | AB109: -1.384772202 | AC109: -0.8234114439
A110: H | F110: 2.25 | G110: -8.827978146 | H110: -8.801804465 | I110: -8.723971006 | J110: -8.596429099 | K110: -8.422101015 | L110: -8.204504306 | M110: -7.947394596 | N110: -7.654490109 | O110: -7.329295543 | P110: -6.975012066 | Q110: -6.594508376 | R110: -6.190328653 | S110: -5.764719232 | T110: -5.319662321 | U110: -4.856910228 | V110: -4.378016857 | W110: -3.884365293 | X110: -3.377191298 | Y110: -2.857603073 | Z110: -2.326597786 | AA110: -1.785075423 | AB110: -1.233850439 | AC110: -0.6736616189 | AD110: -0.1051805023
A111: H | F111: 2 | G111: -8.761418538 | H111: -8.73339135 | I111: -8.650255799 | J111: -8.514655665 | K111: -8.330438564 | L111: -8.102062378 | M111: -7.834083681 | N111: -7.530814538 | O111: -7.196145703 | P111: -6.8334912 | Q111: -6.445804244 | R111: -6.035626554 | S111: -5.605147772 | T111: -5.156262882 | U111: -4.690622536 | V111: -4.209674974 | W111: -3.714700005 | X111: -3.206836179 | Y111: -2.687102453 | Z111: -2.156415488 | AA111: -1.615603559 | AB111: -1.065417863 | AC111: -0.5065418012
A112: H | F112: 1.75 | G112: -8.694858931 | H112: -8.664328983 | I112: -8.574110549 | J112: -8.427954323 | K112: -8.231107423 | L112: -7.989344764 | M112: -7.708243277 | N112: -7.392789417 | O112: -7.047250383 | P112: -6.675198844 | Q112: -6.279604371 | R112: -5.862940647 | S112: -5.427284598 | T112: -4.974399148 | U112: -4.505798796 | V112: -4.022800204 | W112: -3.526560706 | X112: -3.018107531 | Y112: -2.498360032 | Z112: -1.968146731 | AA112: -1.428218538 | AB112: -0.8792591453 | AC112: -0.3218933457
A113: H | F113: 1.5 | G113: -8.628299323 | H113: -8.59431686 | I113: -8.49448502 | J113: -8.334409019 | K113: -8.121498693 | L113: -7.863350307 | M113: -7.566769345 | N113: -7.237420881 | O113: -6.879854342 | P113: -6.497679534 | Q113: -6.093769161 | R113: -5.6704367 | S113: -5.229576582 | T113: -4.772769115 | U113: -4.301357073 | V113: -3.816501013 | W113: -3.319219166 | X113: -2.810416309 | Y113: -2.290904838 | Z113: -1.761420336 | AA113: -1.222633248 | AB113: -0.6751577895 | AC113: -0.1195588931
A114: H | F114: 1.25 | G114: -8.561739716 | H114: -8.522819783 | I114: -8.409588841 | J114: -8.230947543 | K114: -7.997704018 | L114: -7.71987263 | M114: -7.405567544 | N114: -7.060963711 | O114: -6.690662746 | P114: -6.29810571 | Q114: -5.88591092 | R114: -5.456120402 | S114: -5.010371225 | T114: -4.550012389 | U114: -4.076184197 | V114: -3.589872322 | W114: -3.091944902 | X114: -2.583178254 | Y114: -2.064274932 | Z114: -1.535876591 | AA114: -0.9985733301 | AB114: -0.452910614
A115: H | F115: 1 | G115: -8.495180109 | H115: -8.448792555 | I115: -8.316161364 | J115: -8.11246538 | K115: -7.853816842 | L115: -7.553083487 | M115: -7.219372923 | N115: -6.858891663 | O115: -6.475890644 | P115: -6.073360387 | Q115: -5.653484311 | R115: -5.21792326 | S115: -4.767992986 | T115: -4.30477568 | U115: -3.829190924 | V115: -3.34204149 | W115: -2.844043324 | X115: -2.335845479 | Y115: -1.818043551 | Z115: -1.291188908 | AA115: -0.7557951364 | AB115: -0.2123426684
A116: H | F116: 0.75 | G116: -8.428620501 | H116: -8.369910239 | I116: -8.207770966 | J116: -7.970228728 | K116: -7.68098343 | L116: -7.35516309 | M116: -7.00172086 | N116: -6.626021205 | O116: -6.231433692 | P116: -5.820205748 | Q116: -5.393934285 | R116: -4.953825643 | S116: -4.500843068 | T116: -4.035792842 | U116: -3.559375909 | V116: -3.072219496 | W116: -2.574896829 | X116: -2.067939603 | Y116: -1.551845963 | Z116: -1.02708569 | AA116: -0.4941036153
A117: H | F117: 0.5 | G117: -8.362060894 | H117: -8.27991134 | I117: -8.070630978 | J117: -7.789285478 | K117: -7.466540723 | L117: -7.116335652 | M117: -6.745292713 | N117: -6.356899334 | O117: -5.953205663 | P117: -5.535551506 | Q117: -5.104901811 | R117: -4.66201249 | S117: -4.207517122 | T117: -3.741974287 | U117: -3.265894186 | V117: -2.779753897 | W117: -2.284006154 | X117: -1.779084367 | Y117: -1.265405423 | Z117: -0.7433711714 | AA117: -0.2133691659
A118: H | F118: 0.25 | G118: -8.295501286 | H118: -8.156435494 | I118: -7.874187102 | J118: -7.546065857 | K118: -7.19452939 | L118: -6.825972935 | M118: -6.442889714 | N118: -6.046525409 | O118: -5.637645192 | P118: -5.21680607 | Q118: -4.784468307 | R118: -4.341045522 | S118: -3.886928501 | T118: -3.4224967 | U118: -2.948123595 | V118: -2.464178814 | W118: -1.971028583 | X118: -1.469035259 | Y118: -0.9585564364 | Z118: -0.4399438844
A119: H | F119: 0 | G119: -8.228941679 | H119: -7.902232335 | I119: -7.563442998 | J119: -7.212626457 | K119: -6.849869845 | L119: -6.475293396 | M119: -6.089048757 | N119: -5.691316921 | O119: -5.282305836 | P119: -4.862247758 | Q119: -4.43139643 | R119: -3.990024157 | S119: -3.538418839 | T119: -3.076881035 | U119: -2.605721115 | V119: -2.125256532 | W119: -1.635809278 | X119: -1.13770352 | Y119: -0.6312634624 | Z119: -0.1168114365
A120: H | F120: -0.25 | G120: -7.521061059 | H120: -7.382373504 | I120: -7.101256501 | J120: -6.775009916 | K120: -6.426075175 | L120: -6.060825371 | M120: -5.681726159 | N120: -5.289990851 | O120: -4.886348141 | P120: -4.471315205 | Q120: -4.045309893 | R120: -3.608701599 | S120: -3.161835816 | T120: -2.70504634 | U120: -2.238661244 | V120: -1.763005587 | W120: -1.27840233 | X120: -0.7851722721 | Y120: -0.2836334822
A121: H | F121: -0.5 | G121: -6.81318044 | H121: -6.73178958 | I121: -6.524778595 | J121: -6.247193199 | K121: -5.929666557 | L121: -5.586092914 | M121: -5.223039093 | N121: -4.843927229 | O121: -4.450733926 | P121: -4.04471873 | Q121: -3.62676117 | R121: -3.197528149 | S121: -2.757562148 | T121: -2.307329963 | U121: -1.847250606 | V121: -1.377711689 | W121: -0.8990791659 | X121: -0.4117031507
A122: H | F122: -0.75 | G122: -6.10529982 | H122: -6.047733196 | I122: -5.889014612 | J122: -5.657139694 | K122: -5.375758486 | L122: -5.059930922 | M122: -4.718525469 | N122: -4.35680725 | O122: -3.978034033 | P122: -3.584331335 | Q122: -3.177166455 | R122: -2.75761081 | S122: -2.326489703 | T122: -1.884470596 | U122: -1.432116669 | V122: -0.9699201467 | W122: -0.4983234584 | X122: -0.01773290034
A123: H | F123: -1 | G123: -5.397419201 | H123: -5.352567069 | I123: -5.224528191 | J123: -5.028439922 | K123: -4.780346521 | L123: -4.493022955 | M123: -4.175461534 | N123: -3.833733651 | O123: -3.47193835 | P123: -3.09290073 | Q123: -2.698628578 | R123: -2.290600175 | S123: -1.869944919 | T123: -1.437557753 | U123: -0.9941727469 | V123: -0.5404111711 | W123: -0.07681342275
A124: H | F124: -1.25 | G124: -4.689538581 | H124: -4.652555185 | I124: -4.545115889 | J124: -4.376067936 | K124: -4.156131993 | L124: -3.895203163 | M124: -3.601247545 | N124: -3.280266792 | O124: -2.936667993 | P124: -2.573680708 | Q124: -2.193699105 | R124: -1.798532663 | S124: -1.38958155 | T124: -0.967957231 | U124: -0.5345651721 | V124: -0.09016178398
A125: H | F125: -1.5 | G125: -3.981657962 | H125: -3.950025167 | I125: -3.857219977 | J125: -3.708781145 | K125: -3.512009756 | L125: -3.274353938 | M125: -3.002435493 | N125: -2.701704863 | O125: -2.376471001 | P125: -2.030082792 | Q125: -1.665137039 | R125: -1.283661675 | S125: -0.8872609693 | T125: -0.4772250519 | U125: -0.0546105682
A126: H | F126: -1.75 | G126: -3.273777342 | H126: -3.246025157 | I126: -3.16411276 | J126: -3.031709882 | K126: -2.853931265 | L126: -2.636371733 | M126: -2.384385282 | N126: -2.102698375 | O126: -1.795287575 | P126: -1.465411004 | Q126: -1.115706544 | R126: -0.7483055939 | S126: -0.3649383293
A127: H | F127: -2 | G127: -2.565896723 | H127: -2.541093627 | I127: -2.467597578 | J127: -2.347955032 | K127: -2.18585464 | L127: -1.985538346 | M127: -1.751295937 | N127: -1.487129083 | O127: -1.196582501 | P127: -0.8826968468 | Q127: -0.5480329119 | R127: -0.1947288719
A128: H | F128: -2.25 | G128: -1.858016104 | H128: -1.835534783 | I128: -1.768739304 | J128: -1.659464959 | K128: -1.510444723 | L128: -1.324939471 | M128: -1.106388444 | N128: -0.8581428021 | O128: -0.5832993593 | P128: -0.2846207568
A129: H | F129: -2.5 | G129: -1.150135484 | H129: -1.129533232 | I129: -1.068203577 | J129: -0.9675114904 | K129: -0.8295314815 | L129: -0.6568084685 | M129: -0.4521152569 | N129: -0.2182490292

Sheet Units
B1: =WbkTitle -> Course Deviation in Order to Find Stronger Lift (No Wind, Graphs)
B2: Units
B3: Description | C3: Name | D3: Q'ty
A4: H | B4: Length Symbol (std unit) | C4: L_sym | D4: nm
B5: Length | C5: L_sym_u | D5: mi
A6: H | B6: Length multiplier | C6: L_mul | D6: =VLOOKUP(L_sym_u,OFFSET(L_units,0,0,,2),2,FALSE) -> 0.868976242
A7: H | B7: Altitude Symbol (std unit) | C7: H_sym | D7: nm
B8: Altitude | C8: H_sym_u | D8: ft
A9: H | B9: Altitude multiplier | C9: H_mul | D9: =VLOOKUP(H_sym_u,OFFSET(H_units,0,0,,2),2,FALSE) -> 0.0001645788336
A10: H | B10: Horizontal Speed Symbol (std unit) | C10: V_sym | D10: kts
B11: Horizontal Speed | C11: V_sym_u | D11: kts
A12: H | B12: Horizontal Speed Multipliter | C12: V_mul | D12: =VLOOKUP(V_sym_u,OFFSET(V_units,0,0,,2),2,FALSE) -> 1
A13: H | B13: Vertical Speed Symbol (std unit) | C13: W_sym | D13: kts
B14: Vertical Speed | C14: W_sym_u | D14: kts
A15: H | B15: Vertical Speed Multipliter | C15: W_mul | D15: =VLOOKUP(W_sym_u,OFFSET(W_units,0,0,,2),2,FALSE) -> 1
A16: H | B16: Wing Loading Symbol (std unit) | C16: WL_sym | D16: kg/m²
B17: Wing Loading | C17: WL_sym_u | D17: lb/sf
A18: H | B18: Wing Loading Multiplier | C18: WL_mul | D18: =VLOOKUP(WL_sym_u,OFFSET(WL_units,0,0,,2),2,FALSE) -> 4.882427636
A19: H | B19: Temperature Symbol (std unit) | C19: T_sym | D19: °C
B20: Temperature | C20: T_sym_u | D20: °F
A21: H | B21: Temperature Multiplier | C21: T_mul | D21: =VLOOKUP(T_sym_u,OFFSET(T_units,0,0,,2),2,FALSE) -> 0.5555555556
A22: H | B22: Temperature Offset | C22: T_off | D22: =VLOOKUP(T_sym_u,OFFSET(T_units_off,0,0,,2),2,FALSE) -> -32
A23: H | B23: G.P. Altitude Symbol (std unit) | C23: A_sym | D23: m
B24: Altitude (Atmosphere Model) | C24: A_sym_u | D24: ft
A25: H | B25: G.P. Altitude multiplier | C25: A_mul | D25: =VLOOKUP(A_sym_u,OFFSET(A_units,0,0,,2),2,FALSE) -> 0.3048
A26: H | B26: PressureSymbol (std unit) | C26: P_sym | D26: Pa
B27: Pressure (Atmosphere Model) | C27: P_sym_u | D27: inHg
A28: H | B28: G.P. Altitude multiplier | C28: P_mul | D28: =VLOOKUP(P_sym_u,OFFSET(P_units,0,0,,2),2,FALSE) -> 3386.389
A29: H
A30: H | B30: Units Tables
A31: H | B31: L_units | C31: nm | D31: 1
A32: H | C32: mi | D32: 0.868976242
A33: H | C33: km | D33: =1/1.852 -> 0.5399568035
A34: H | B34: H_units | C34: nm | D34: 1
A35: H | C35: ft | D35: =1/6076.11549 -> 0.0001645788336
A36: H | C36: m | D36: =1/1852 -> 0.0005399568035
A37: H | B37: V_units | C37: kts | D37: 1
A38: H | C38: mph | D38: 0.868976242
A39: H | C39: km/h | D39: =1/1.852 -> 0.5399568035
A40: H | B40: W_units | C40: kts | D40: 1
A41: H | C41: m/s | D41: =3600/1852 -> 1.943844492
A42: H | C42: ft/min | D42: =60/6076.11549 -> 0.009874730014
A43: H | B43: WL_units | C43: kg/m² | D43: 1
A44: H | C44: lb/sf | D44: =0.45359237/0.3048^2 -> 4.882427636
A45: H | B45: T_units | C45: °C | D45: 1
A46: H | C46: °F | D46: =5/9 -> 0.5555555556
A47: H | B47: T_units_off | C47: °C | D47: 0
A48: H | C48: °F | D48: -32
A49: H | B49: A_units | C49: m | D49: 1
A50: H | C50: ft | D50: 0.3048
A51: H | B51: P_units | C51: Pa | D51: 1
A52: H | C52: kPa | D52: 1000
A53: H | C53: mb | D53: 100
A54: H | C54: inHg | D54: 3386.389
A55: H
A56: H | B56: Misc
A57: H | B57: Description | C57: Name | D57: Q'ty
A58: H | B58: Synchrozine Inputs | C58: Sync | D58: TRUE
A59: H | B59: Sheets Protected | C59: Protected | D59: TRUE

Sheet Polars
B1: =WbkTitle -> Course Deviation in Order to Find Stronger Lift (No Wind, Graphs)
B2: SeeYou Polar Coefficients
B3: Glider | D3: Pirat | E3: Std. Cirrus | F3: Discus 2 | G3: Ventus2/18m | H3: ASW 22BLE
B4: SeeYou WL (kg/m²) | C4: WL | D4: 30 | E4: 30 | F4: 33 | G4: 34 | H4: 34
B5: SeeYou a | C5: a | D5: 2.29 | E5: 2.22 | F5: 2.14 | G5: 1.05 | H5: 1.09
B6: SeeYou b | C6: b | D6: -2.62 | E6: -3.5 | F6: -3.87 | G6: -1.42 | H6: -1.58
B7: SeeYou c | C7: c | D7: 1.36 | E7: 2.06 | F7: 2.38 | G7: 0.93 | H7: 0.96
B8: ="Polar for WL ("&WL_sym_u&")" -> Polar for WL (lb/sf) | D8: =D4/WL_mul -> 6.144484309 | E8: =E4/WL_mul -> 6.144484309 | F8: =F4/WL_mul -> 6.75893274 | G8: =G4/WL_mul -> 6.963748883 | H8: =H4/WL_mul -> 6.963748883
B9: Max L/D | D9: =D10/(D$5*(D10/100)^2+D$6*(D10/100)+D$7)/3.6 -> 17.34761581 | E9: =E10/(E$5*(E10/100)^2+E$6*(E10/100)+E$7)/3.6 -> 17.19763096 | F9: 18.17683517 | G9: 29.43545852 | H9: 32.04557574
B10: ="Speed for max L/D ("&V_sym_u&")" -> Speed for max L/D (kts) | D10: =SQRT(D7/D5)*100*0.539956803455723/V_mul -> 41.61124698 | E10: =SQRT(E7/E5)*100*0.539956803455723/V_mul -> 52.01350744 | F10: =SQRT(F7/F5)*100*0.539956803455723/V_mul -> 56.94303483 | G10: =SQRT(G7/G5)*100*0.539956803455723/V_mul -> 50.81662787 | H10: =SQRT(H7/H5)*100*0.539956803455723/V_mul -> 50.67355639
B35: Calculation of SeeYou Polar Coefficients
B36: Description | C36: Name | D36: Q'ty | E36: Unit
B37: Wing Loading | C37: WP_WL_u | D37: 6.2 | E37: =WL_sym_u -> lb/sf
B38: V1 | C38: WP_V1_u | D38: 54 | E38: =V_sym_u -> kts
B39: W1 | C39: WP_W1_u | D39: -1.51 | E39: =W_sym_u -> kts
B40: V2 | C40: WP_V2_u | D40: 70.19 | E40: =V_sym_u -> kts
B41: W2 | C41: WP_W2_u | D41: -2.45 | E41: =W_sym_u -> kts
B42: V3 | C42: WP_V3_u | D42: 97.19 | E42: =V_sym_u -> kts
B43: W3 | C43: WP_W3_u | D43: -5.73 | E43: =W_sym_u -> kts
A44: H | B44: V1 | C44: WP_V1 | D44: =WP_V1_u*V_mul/0.539956803455723 -> 100.008 | E44: km/h
A45: H | B45: W1 | C45: WP_W1 | D45: =WP_W1_u*W_mul/1.9438444924406 -> -0.7768111111 | E45: m/s
A46: H | B46: V2 | C46: WP_V2 | D46: =WP_V2_u*V_mul/0.539956803455723 -> 129.99188 | E46: km/h
A47: H | B47: W2 | C47: WP_W2 | D47: =WP_W2_u*W_mul/1.9438444924406 -> -1.260388889 | E47: m/s
A48: H | B48: V3 | C48: WP_V3 | D48: =WP_V3_u*V_mul/0.539956803455723 -> 179.99588 | E48: km/h
A49: H | B49: W3 | C49: WP_W3 | D49: =WP_W3_u*W_mul/1.9438444924406 -> -2.947766667 | E49: m/s
B50: SeeYou WL (kg/m²) | C50: SeeYou_WL | D50: =WP_WL_u*WL_mul -> 30.27105135 | E50: kg/m²
B51: SeeYou a | C51: SeeYou_a | D51: =ROUND(-1*((WP_V2/100-WP_V3/100)*(WP_W1-WP_W3)+(WP_V3/100-WP_V1/100)*(WP_W2-WP_W3))/((WP_V1/100)^2*(WP_V2/100-WP_V3/100)+(WP_V2/100)^2*(WP_V3/100-WP_V1/100)+(WP_V3/100)^2*(WP_V1/100-WP_V2/100)),2) -> 2.2
B52: SeeYou b | C52: SeeYou_b | D52: =ROUND(-1*((WP_W2-WP_W3)+SeeYou_a*((WP_V2/100)^2-(WP_V3/100)^2))/(WP_V2/100-WP_V3/100),2) -> -3.45
B53: SeeYou c | C53: SeeYou_c | D53: =ROUND(-1*(WP_W3+SeeYou_a*(WP_V3/100)^2+SeeYou_b*WP_V3/100),2) -> 2.03
A54: H
A55: H | C55: ="W ("&W_sym_u&")" -> W (kts) | H55: E
A56: H | B56: ="V ("&V_sym_u&")" -> V (kts) | C56: =D3&" "&TEXT(D8,"0.0#")&" "&WL_sym_u -> Pirat 6.14 lb/sf | D56: =E3&" "&TEXT(E8,"0.0#")&" "&WL_sym_u -> Std. Cirrus 6.14 lb/sf | E56: =F3&" "&TEXT(F8,"0.0#")&" "&WL_sym_u -> Discus 2 6.76 lb/sf | F56: =G3&" "&TEXT(G8,"0.0#")&" "&WL_sym_u -> Ventus2/18m 6.96 lb/sf | G56: =H3&" "&TEXT(H8,"0.0#")&" "&WL_sym_u -> ASW 22BLE 6.96 lb/sf | H56: =C56 -> Pirat 6.14 lb/sf | I56: =D56 -> Std. Cirrus 6.14 lb/sf | J56: =E56 -> Discus 2 6.76 lb/sf | K56: Ventus2/18m 6.96 lb/sf | L56: =G56 -> ASW 22BLE 6.96 lb/sf
A57: H | B57: =ROUND(40/V_mul,-1) -> 40 | C57: =(D$5*($B57*V_mul/0.539956803455723/100)^2+D$6*($B57*V_mul/0.539956803455723/100)+D$7)*1.9438444924406/W_mul -> 1.31369059 | D57: 1.332509094 | E57: 1.336399172 | F57: 0.883064978 | G57: 0.7536503927 | H57: =$B57*V_mul/C57/W_mul -> 30.44857009 | I57: =$B57*V_mul/D57/W_mul -> 30.01855685 | J57: =$B57*V_mul/E57/W_mul -> 29.93117688 | K57: =$B57*V_mul/F57/W_mul -> 45.29677996 | L57: =$B57*V_mul/G57/W_mul -> 53.07500717
A58: H | B58: =B57+ROUND(10/V_mul,-1)/2 -> 45 | C58: 1.49097583 | D58: 1.331559414 | E58: 1.246181012 | F58: 0.924988778 | G58: 0.7781084327 | H58: 30.18157579 | I58: 33.79496214 | J58: 36.11032391 | K58: 48.64923886 | L58: 57.83255663
A59: H | B59: 50 | C59: 1.74460051 | D59: 1.404615654 | E59: 1.227301892 | F59: 1.001915378 | G59: 0.8389027127 | H59: 28.65985635 | I59: 35.59692635 | J59: 40.73977261 | K59: 49.90441418 | L59: 59.60166684
A60: H | B60: 55 | C60: 2.07456463 | D60: 1.551677814 | E60: 1.279761812 | F60: 1.113844778 | G60: 0.9360332327 | H60: 26.51158668 | I60: 35.4455026 | J60: 42.9767473 | K60: 49.37851403 | L60: 58.75859753
A61: H | B61: 60 | C61: 2.48086819 | D61: 1.772745894 | E61: 1.403560772 | F61: 1.260776978 | G61: 1.069499993 | H61: 24.18508176 | I61: 33.84579831 | J61: 42.74841617 | K61: 47.58970147 | L61: 56.10098215
A62: H | B62: 65 | C62: 2.96351119 | D62: 2.067819894 | E62: 1.598698772 | F62: 1.442711978 | G62: 1.239302993 | H62: 21.93344173 | I62: 31.43407227 | J62: 40.65806588 | K62: 45.05403781 | L62: 52.44883647
A63: H | B63: 70 | C63: 3.52249363 | D63: 2.436899814 | E63: 1.865175812 | F63: 1.659649778 | G63: 1.445442233 | H63: 19.87228576 | I63: 28.72502168 | J63: 37.52997414 | K63: 42.1775732 | L63: 48.42808548
A64: H | B64: 75 | C64: 4.15781551 | D64: 2.879985654 | E64: 2.202991892 | F64: 1.911590378 | G64: 1.687917713 | H64: 18.0383184 | I64: 26.04179638 | J64: 34.04461009 | K64: 39.23434689 | L64: 44.43344568
A65: H | B65: 80 | C65: 4.86947683 | D65: 3.397077414 | E65: 2.612147012 | F65: 2.198533778 | G65: 1.966729433 | H65: 16.42886963 | I65: 23.54965467 | J65: 30.62614762 | K65: 36.3878876 | L65: 40.67666791
A66: H | B66: 85 | C66: 5.65747759 | D66: 3.988175094 | E66: 3.092641172 | F66: 2.520479978 | G66: 2.281877393 | H66: 15.02436354 | I66: 21.31300607 | J66: 27.4845982 | K66: 33.72373546 | L66: 37.25002941
A67: H | B67: 90 | C67: =(D$5*($B67*V_mul/0.539956803455723/100)^2+D$6*($B67*V_mul/0.539956803455723/100)+D$7)*1.9438444924406/W_mul -> 6.52181779 | D67: 4.653278694 | E67: 3.644474372 | F67: 2.877428978 | G67: 2.633361593 | H67: 13.79983356 | I67: 19.34120131 | J67: 24.69491916 | K67: 31.2779223 | L67: 34.17684842
A68: H | B68: 95 | C68: 7.46249743 | D68: 5.392388214 | E68: 4.267646612 | F68: 3.269380778 | G68: 3.021182033 | H68: 12.73032264 | I68: 17.61742594 | J68: 22.26051232 | K68: 29.05749023 | L68: 31.44464616
A69: H | B69: 100 | C69: 8.47951651 | D69: 6.205503654 | E69: 4.962157892 | F69: 3.696335378 | G69: 3.445338713 | H69: 11.79312522 | I69: 16.11472744 | J69: 20.15252279 | K69: 27.05382217 | L69: 29.02472248
A70: H | B70: 105 | C70: 9.57287503 | D70: 7.092625014 | E70: 5.728008212 | F70: 4.158292778 | G70: 3.905831633 | H70: 10.96849167 | I70: 14.80410987 | J70: 18.33097931 | K70: 25.25074727 | L70: 26.88287921
A71: H | B71: 110 | C71: 10.74257299 | D71: 8.053752294 | E71: 6.565197572 | F71: 4.655252978 | G71: 4.402660793 | H71: 10.23963254 | I71: 13.65822985 | J71: 16.75501747 | K71: 23.62922069 | L71: 24.984891
A72: H | B72: 115 | C72: 11.98861039 | D72: 9.088885494 | E72: 7.473725972 | F72: 5.187215978 | G72: 4.935826193 | H72: 9.592437844 | I72: 12.65281646 | J72: 15.38723796 | K72: 22.16988853 | L72: 23.29903759
A73: H | B73: 120 | C73: 13.31098723 | D73: 10.19802461 | E73: 8.453593412 | F73: 5.754181778 | G73: 5.505327833 | H73: 9.015108942 | I73: 11.76698474 | J73: 14.19514686 | K73: 20.85439853 | L73: 21.79706707
A74: H | B74: 125 | C74: 14.70970351 | D74: 11.38116965 | E74: 9.504799892 | F74: 6.356150378 | G74: 6.111165713 | H74: 8.497791945 | I74: 10.98305392 | J74: 13.15125004 | K74: 19.66599161 | L74: 20.4543627
A75: H | B75: 130 | C75: 16.18475923 | D75: 12.63832061 | E75: 10.62734541 | F75: 6.993121778 | G75: 6.753339833 | H75: 8.032248003 | I75: 10.28617678 | J75: 12.23259384 | K75: 18.58969486 | L75: 19.24973468

Sheet Atm
B1: =WbkTitle -> Course Deviation in Order to Find Stronger Lift (No Wind, Graphs)
B2: Atmosphere Model
B4: Custom Atmosphere Definition | H4: Custom Atmosphere (su)
B5: QHN = | C5: 29.92 | D5: =P_sym_u -> inHg | H5: QHN = | I5: =C5*P_mul -> 101320.7589 | J5: =P_sym -> Pa
B6: ="H (gp "&A_sym_u&")" -> H (gp ft) | C6: ="Lapse Rate ("&T_sym_u&"/1000 "&A_sym_u&")" -> Lapse Rate (°F/1000 ft) | D6: ="Custom T ("&T_sym_u&")" -> Custom T (°F) | E6: ="T-Tdp ("&T_sym_u&")" -> T-Tdp (°F) | F6: ="Custom Tdp ("&T_sym_u&")" -> Custom Tdp (°F) | H6: ="H (gp "&A_sym&")" -> H (gp m) | I6: ="T ("&T_sym&")" -> T (°C) | J6: ="Tdp ("&T_sym&")" -> Tdp (°C)
B7: 300 | C7: 0 | D7: 90 | E7: 21.6 | F7: =D7-E7 -> 68.4 | H7: =IF(ISNUMBER(B7),B7*A_mul,ERROR.TYPE(7)) -> 91.44 | I7: =(D7+T_off)*T_mul -> 32.22222222 | J7: =(F7+T_off)*T_mul -> 20.22222222
B8: 600 | C8: -11 | D8: =D7+C8*(B8-B7)/1000 -> 86.7 | E8: 32.4 | F8: 54.3 | H8: =IF(ISNUMBER(B8),B8*A_mul,ERROR.TYPE(7)) -> 182.88 | I8: 30.38888889 | J8: 12.38888889
B9: 12000 | C9: -5.4 | D9: =D8+C9*(B9-B8)/1000 -> 25.14 | E9: 0 | F9: 25.14 | H9: =IF(ISNUMBER(B9),B9*A_mul,ERROR.TYPE(7)) -> 3657.6 | I9: -3.811111111 | J9: -3.811111111
B10: 13000 | C10: -3 | D10: =D9+C10*(B10-B9)/1000 -> 22.14 | E10: 0 | F10: 22.14 | H10: =IF(ISNUMBER(B10),B10*A_mul,ERROR.TYPE(7)) -> 3962.4 | I10: -5.477777778 | J10: -5.477777778
B11: 14000 | C11: 3 | D11: =D10+C11*(B11-B10)/1000 -> 25.14 | E11: 20 | F11: 5.14 | H11: =IF(ISNUMBER(B11),B11*A_mul,ERROR.TYPE(7)) -> 4267.2 | I11: -3.811111111 | J11: -14.92222222
B12: 15000 | C12: -3 | D12: =D11+C12*(B12-B11)/1000 -> 22.14 | E12: 25 | F12: -2.86 | H12: =IF(ISNUMBER(B12),B12*A_mul,"") -> 4572 | I12: -5.477777778 | J12: -19.36666667
A42: H | B42: StdAtm | C42: 2
A43: H | B43: CalcAtm | C43: =Z_AirProperties(B110) -> 91.4486844
A44: H | B44: Custom Atmosphere Model
A45: H | B45: ="Z ("&A_sym_u&")" -> Z (ft) | C45: ="H (gp "&A_sym_u&")" -> H (gp ft) | D45: ="Altimeter ("&A_sym_u&")" -> Altimeter (ft) | E45: g (m²/s) | F45: ="P ("&P_sym_u&")" -> P (inHg) | G45: T (K) | H45: ="T ("&T_sym_u&")" -> T (°F) | I45: ="Tdp ("&T_sym_u&")" -> Tdp (°F) | J45: R (J/kg-K) | K45: Rho (kg/m³) | L45: µ (kg/m-s)
A46: H | B46: =B110/A_mul -> 300.0328084 | C46: 300.0284921 | D46: 300.0266366 | E46: =E110 -> 9.806367844 | F46: =F110/P_mul -> 29.59702408 | G46: =G110 -> 305.3720481 | H46: =H110/T_mul-T_off -> 89.99968659 | I46: 68.39866087 | J46: =J110 -> 289.6383222 | K46: 1.133181787 | L46: 1.871311808e-05
A47: H | B47: 628.1167979 | C47: 628.0978812 | D47: 607.4957059 | E47: 9.806059323 | F47: 29.26897131 | G47: 303.4545952 | H47: 86.54827144 | I47: 54.22812858 | J47: =J111 -> 288.6287908 | K47: 1.131646893 | L47: 1.862302901e-05
A48: H | B48: 956.2007874 | C48: 956.1569488 | D48: 916.6206698 | E48: 9.805750816 | F48: 28.94212617 | G48: 302.470418 | H48: 84.77675248 | I48: 53.38898802 | J48: =J112 -> 288.5981654 | K48: 1.122770012 | L48: 1.857668072e-05
A49: H | B49: 1284.284777 | C49: 1284.205695 | D49: 1226.080361 | E49: 9.805442323 | F49: 28.61789364 | G49: 301.4862718 | H49: 83.00528924 | I49: 52.54987385 | J49: =J113 -> 288.5680204 | K49: 1.113932227 | L49: 1.853026025e-05
A50: H | B50: 1612.368766 | C50: 1612.244122 | D50: 1535.876258 | E50: 9.805133846 | F50: 28.29626117 | G50: 300.5021565 | H50: 81.23388174 | I50: 51.71078609 | J50: =J114 -> 288.5383504 | K50: 1.105133547 | L50: 1.848376733e-05
A51: H | B51: 1940.452756 | C51: 1940.272228 | D51: 1846.009849 | E51: 9.804825382 | F51: 27.97721619 | G51: 299.5180722 | H51: 79.46252997 | I51: 50.87172472 | J51: =J115 -> 288.5091499 | K51: 1.096373982 | L51: 1.843720167e-05
A52: H | B52: 2268.536745 | C52: 2268.290015 | D52: 2156.482636 | E52: 9.804516934 | F52: 27.66074617 | G52: 298.5340188 | H52: 77.69123392 | I52: 50.03268975 | J52: =J116 -> 288.4804136 | K52: 1.087653538 | L52: 1.839056299e-05
A53: H | B53: 2596.620735 | C53: 2596.297483 | D53: 2467.29613 | E53: 9.804208499 | F53: 27.34683861 | G53: 297.5499964 | H53: 75.91999359 | I53: 49.19368118 | J53: =J117 -> 288.4521361 | K53: 1.078972221 | L53: 1.834385101e-05
A54: H | B54: 2924.704724 | C54: 2924.294632 | D54: 2778.451856 | E54: 9.80390008 | F54: 27.03548102 | G54: 296.566005 | H54: 74.14880899 | I54: 48.35469899 | J54: =J118 -> 288.4243121 | K54: 1.070330037 | L54: 1.829706544e-05
A55: H | B55: 3252.788714 | C55: 3252.281463 | D55: 3089.95135 | E55: 9.803591675 | F55: 26.72666092 | G55: 295.5820445 | H55: 72.3776801 | I55: 47.5157432 | J55: =J119 -> 288.3969363 | K55: 1.061726989 | L55: 1.825020599e-05
A56: H | B56: 3580.872703 | C56: 3580.257977 | D56: 3401.796158 | E56: 9.803283284 | F56: 26.42036588 | G56: 294.598115 | H56: 70.60660692 | I56: 46.67681381 | J56: =J120 -> 288.3700036 | K56: 1.05316308 | L56: 1.820327238e-05
A57: H | B57: 3908.956693 | C57: 3908.224174 | D57: 3713.987841 | E57: 9.802974908 | F57: 26.11658346 | G57: 293.6142164 | H57: 68.83558946 | I57: 45.8379108 | J57: =J121 -> 288.3435086 | K57: 1.04463831 | L57: 1.81562643e-05
A58: H | B58: 4237.040682 | C58: 4236.180054 | D58: 4026.527971 | E58: 9.802666547 | F58: 25.81530125 | G58: 292.6303487 | H58: 67.06462771 | I58: 44.99903418 | J58: =J122 -> 288.3174462 | K58: 1.03615268 | L58: 1.810918148e-05
A59: H | B59: 4565.124672 | C59: 4564.125618 | D59: 4339.418132 | E59: 9.8023582 | F59: 25.51650689 | G59: 291.646512 | H59: 65.29372166 | I59: 44.16018395 | J59: =J123 -> 288.2918112 | K59: 1.027706189 | L59: 1.80620236e-05
A60: H | B60: 4893.208661 | C60: 4892.060866 | D60: 4652.659921 | E60: 9.802049868 | F60: 25.22018799 | G60: 290.6627063 | H60: 63.52287132 | I60: 43.3213601 | J60: =J124 -> 288.2665986 | K60: 1.019298835 | L60: 1.801479039e-05
A61: H | B61: 5221.292651 | C61: 5219.9858 | D61: 4966.254948 | E61: 9.80174155 | F61: 24.92633223 | G61: 289.6789315 | H61: 61.75207668 | I61: 42.48256264 | J61: =J125 -> 288.2418032 | K61: 1.010930613 | L61: 1.796748153e-05
A62: H | B62: 5549.37664 | C62: 5547.900419 | D62: 5280.204834 | E62: 9.801433247 | F62: 24.63492727 | G62: 288.6951876 | H62: 59.98133774 | I62: 41.64379156 | J62: =J126 -> 288.2174199 | K62: 1.00260152 | L62: 1.792009674e-05
A63: H | B63: 5877.46063 | C63: 5875.804723 | D63: 5594.511215 | E63: 9.801124958 | F63: 24.34596081 | G63: 287.7114747 | H63: 58.21065449 | I63: 40.80504687 | J63: =J127 -> 288.1934438 | K63: 0.9943115487 | L63: 1.78726357e-05
A64: H | B64: 6205.544619 | C64: 6203.698714 | D64: 5909.175738 | E64: 9.800816684 | F64: 24.05942059 | G64: 286.7277927 | H64: 56.44002694 | I64: 39.96632855 | J64: =J128 -> 288.1698698 | K64: 0.9860606935 | L64: 1.782509812e-05
A65: H | B65: 6533.628609 | C65: 6531.582392 | D65: 6224.200067 | E65: 9.800508424 | F65: 23.77529433 | G65: 285.7441417 | H65: 54.66945508 | I65: 39.12763662 | J65: =J129 -> 288.1466929 | K65: 0.9778489459 | L65: 1.77774837e-05
A66: H | B66: =B130/A_mul -> 6861.712598 | C66: 6859.455758 | D66: 6539.585874 | E66: 9.800200179 | F66: 23.4935698 | G66: 284.7605216 | H66: =H130/T_mul-T_off -> 52.89893891 | I66: 38.28897106 | J66: =J130 -> 288.1239084 | K66: 0.9696762968 | L66: 1.772979212e-05
A67: H | B67: 7189.796588 | C67: 7187.318811 | D67: 6855.334848 | E67: 9.799891949 | F67: 23.21423479 | G67: 283.7769325 | H67: 51.12847842 | I67: 37.45033188 | J67: =J131 -> 288.1015112 | K67: 0.9615427359 | L67: 1.768202309e-05
A68: H | B68: 7517.880577 | C68: 7515.171552 | D68: 7171.448692 | E68: 9.799583733 | F68: 22.9372771 | G68: 282.7933742 | H68: 49.35807362 | I68: 36.61171908 | J68: =J132 -> 288.0794965 | K68: 0.953448252 | L68: 1.763417628e-05
A69: H | B69: 7845.964567 | C69: 7843.013982 | D69: 7487.929121 | E69: 9.799275531 | F69: 22.66268456 | G69: 281.8098469 | H69: 47.5877245 | I69: 35.77313266 | J69: =J133 -> 288.0578594 | K69: 0.9453928327 | L69: 1.758625139e-05
A70: H | B70: 8174.048556 | C70: 8170.846102 | D70: 7804.777865 | E70: 9.798967345 | F70: 22.39044501 | G70: 280.8263506 | H70: 45.81743105 | I70: 34.9345726 | J70: =J134 -> 288.0365953 | K70: 0.9373764644 | L70: 1.753824812e-05
A71: H | B71: 8502.132546 | C71: 8498.667911 | D71: 8121.996668 | E71: 9.798659172 | F71: 22.12054632 | G71: 279.8428852 | H71: 44.04719328 | I71: 34.09603892 | J71: =J135 -> 288.0156992 | K71: 0.9293991327 | L71: 1.749016613e-05
A72: H | B72: 8830.216535 | C72: 8826.479411 | D72: 8439.587288 | E72: 9.798351014 | F72: 21.85297639 | G72: 278.8594507 | H72: 42.27701118 | I72: 33.25753161 | J72: =J136 -> 287.9951665 | K72: 0.9214608219 | L72: 1.744200513e-05
A73: H | B73: 9158.300525 | C73: 9154.280601 | D73: 8757.551497 | E73: 9.798042871 | F73: 21.58772313 | G73: 277.8760471 | H73: 40.50688476 | I73: 32.41905067 | J73: =J137 -> 287.9749925 | K73: 0.9135615154 | L73: 1.739376478e-05
A74: H | B74: 9486.384514 | C74: 9482.071482 | D74: 9075.891084 | E74: 9.797734742 | F74: 21.32477446 | G74: 276.8926744 | H74: 38.736814 | I74: 31.5805961 | J74: =J138 -> 287.9551726 | K74: 0.9057011956 | L74: 1.734544478e-05
A75: H | B75: 9814.468504 | C75: 9809.852056 | D75: 9394.607851 | E75: 9.797426628 | F75: 21.06411834 | G75: 275.9093327 | H75: 36.9667989 | I75: 30.7421679 | J75: =J139 -> 287.935702 | K75: 0.8978798437 | L75: 1.729704479e-05
A76: H | B76: 10142.55249 | C76: 10137.62232 | D76: 9713.703614 | E76: 9.797118529 | F76: 20.80574276 | G76: 274.9260219 | H76: 35.19683947 | I76: 29.90376606 | J76: =J140 -> 287.9165762 | K76: 0.8900974402 | L76: 1.72485645e-05
A77: H | B77: 10470.63648 | C77: 10465.38228 | D77: 10033.18021 | E77: 9.796810443 | F77: 20.54963569 | G77: 273.9427421 | H77: 33.42693569 | I77: 29.06539059 | J77: =J141 -> 287.8977906 | K77: 0.8823539642 | L77: 1.720000359e-05
A78: H | B78: =B142/A_mul -> 10798.72047 | C78: 10793.13193 | D78: 10353.03948 | E78: =E142 -> 9.796502373 | F78: =F142/P_mul -> 20.29578517 | G78: =G142 -> 272.9594931 | H78: =H142/T_mul-T_off -> 31.65708758 | I78: 28.22704148 | J78: =J142 -> 287.8793408 | K78: 0.8746493941 | L78: 1.715136172e-05
A79: H | B79: =B143/A_mul -> 11126.80446 | C79: 11120.87128 | D79: 10673.28328 | E79: 9.796194317 | F79: 20.04417924 | G79: 271.9762751 | H79: =H143/T_mul-T_off -> 29.88729511 | I79: 27.38871874 | J79: =J143 -> 287.8612221 | K79: 0.8669837071 | L79: 1.710263857e-05
A80: H | B80: =B144/A_mul -> 11454.88845 | C80: 11448.60031 | D80: 10993.91351 | E80: 9.795886275 | F80: 19.79480595 | G80: 270.9930879 | H80: =H144/T_mul-T_off -> 28.1175583 | I80: 26.55042235 | J80: =J144 -> 287.8434303 | K80: 0.8593568798 | L80: 1.705383382e-05
A81: H | B81: =B145/A_mul -> 11782.97244 | C81: 11776.31905 | D81: 11314.93206 | E81: 9.795578248 | F81: 19.54765339 | G81: 270.0099317 | H81: =H145/T_mul-T_off -> 26.34787714 | I81: 25.71215233 | J81: =J145 -> 287.8259607 | K81: 0.8517688873 | L81: 1.700494711e-05
A82: H | B82: =B146/A_mul -> 12111.05643 | C82: 12104.02748 | D82: 11636.47071 | E82: 9.795270236 | F82: 19.30261119 | G82: 269.1655098 | H82: =H146/T_mul-T_off -> 24.82791757 | I82: 24.82791757 | J82: =J146 -> 287.8073545 | K82: 0.8437846304 | L82: 1.696289197e-05
A83: H | B83: =B147/A_mul -> 12439.14042 | C83: 12431.7256 | D83: 11958.33556 | E83: 9.794962238 | F83: 19.05981745 | G83: 268.6193462 | H83: =H147/T_mul-T_off -> 23.8448232 | I83: 23.8448232 | J83: =J147 -> 287.7860515 | K83: 0.8349270915 | L83: 1.69356581e-05
A84: H | B84: =B148/A_mul -> 12767.22441 | C84: 12759.41342 | D84: 12280.0688 | E84: 9.794654254 | F84: 18.8196003 | G84: 268.0731999 | H84: =H148/T_mul-T_off -> 22.86175973 | I84: 22.86175973 | J84: =J148 -> 287.765233 | K84: 0.8261435552 | L84: 1.690839907e-05
A85: H | B85: =B149/A_mul -> 13095.3084 | C85: 13087.09094 | D85: 12601.68627 | E85: 9.794346285 | F85: 18.58192566 | G85: 267.8173738 | H85: =H149/T_mul-T_off -> 22.40127282 | I85: 20.65945403 | J85: =J149 -> 287.7097793 | K85: 0.8166466633 | L85: 1.689562142e-05
A86: H | B86: =B150/A_mul -> 13423.39239 | C86: 13414.75815 | D86: 12922.38771 | E86: 9.794038331 | F86: 18.34735397 | G86: 268.3634858 | H86: =H150/T_mul-T_off -> 23.38427446 | I86: 15.08911139 | J86: =J150 -> 287.5753214 | K86: 0.8050729712 | L86: 1.692289094e-05
A87: H | B87: =B151/A_mul -> 13751.47638 | C87: 13742.41507 | D87: 13241.6553 | E87: 9.793730391 | F87: 18.11621851 | G87: 268.9095807 | H87: =H151/T_mul-T_off -> 24.3672452 | I87: 9.518943894 | J87: =J151 -> 287.4656158 | K87: 0.7936192875 | L87: 1.695013357e-05
A88: H | B88: =B152/A_mul -> 14079.56037 | C88: 14070.06167 | D88: 13559.58141 | E88: 9.793422466 | F88: 17.88840283 | G88: 269.2221194 | H88: =H152/T_mul-T_off -> 24.92981498 | I88: 4.579506601 | J88: =J152 -> 287.3862798 | K88: 0.7829456967 | L88: 1.696571327e-05
A89: H | B89: =B153/A_mul -> 14407.64436 | C89: 14397.69798 | D89: 13877.17562 | E89: 9.793114555 | F89: 17.66314667 | G89: 268.6760589 | H89: =H153/T_mul-T_off -> 23.94690605 | I89: 1.958416135 | J89: =J153 -> 287.3516708 | K89: 0.7747511403 | L89: 1.693848723e-05
A90: H | B90: =B154/A_mul -> 14735.72835 | C90: 14725.32399 | D90: 14194.63884 | E90: 9.792806659 | F90: 17.44028434 | G90: 268.1300156 | H90: =H154/T_mul-T_off -> 22.96402803 | I90: -0.6625919237 | J90: =J154 -> 287.3202142 | K90: 0.7666176098 | L90: 1.691123605e-05
A91: H | B91: =B155/A_mul -> 15063.81234 | H91: =H155/T_mul-T_off ->  | J91: =J155 -> 
A92: H | B92: =B156/A_mul -> 15391.89633 | H92: =H156/T_mul-T_off ->  | J92: =J156 -> 
A93: H | B93: =B157/A_mul -> 15719.98031 | H93: =H157/T_mul-T_off ->  | J93: =J157 -> 
A94: H | B94: =B158/A_mul -> 16048.0643 | H94: =H158/T_mul-T_off ->  | J94: =J158 ->  | K94: =K158 ->  | L94: =L158 -> 
A95: H | B95: 16376.14829 | E95: =E159 ->  | G95: =G159 ->  | J95: =J159 -> 
A96: H | B96: 16704.23228 | J96: =J160 -> 
A97: H | B97: 17032.31627 | J97: =J161 -> 
A98: H | B98: 17360.40026 | J98: =J162 -> 
A99: H | B99: 17688.48425 | J99: =J163 -> 
A100: H | B100: 18016.56824 | J100: =J164 -> 
A101: H | B101: 18344.65223 | J101: =J165 -> 
A102: H | B102: 18672.73622 | J102: =J166 -> 
A103: H | B103: 19000.82021 | J103: =J167 -> 
A104: H | B104: 19328.9042 | J104: =J168 -> 
A105: H | B105: 19656.98819 | J105: =J169 -> 
A106: H | B106: =B170/A_mul -> 15000 | C106: 14989.21925 | D106: 14450.26008 | E106: =E170 -> 9.792558659 | F106: 17.26249534 | G106: =G170 -> 267.6901901 | H106: =H170/T_mul-T_off -> 22.17234225 | I106: -2.773753993 | J106: =J170 -> 287.2970008 | K106: 0.760110743 | L106: 1.68892669e-05
A107: H
A108: H | B108: Custom Atmosphere Model (su)
A109: H | B109: Z (m) | C109: H (gp m) | D109: Altimeter (m) | E109: g (m²/s) | F109: P (Pa) | G109: T (K) | H109: T (°C) | I109: Tdp (°C) | J109: R (J/kg-K) | K109: Rho (kg/m³) | L109: µ (kg/m-s)
A110: H | B110: =Atm_H_Min+0.01 -> 91.45 | C110: =Z_AirProperties(B110) -> 91.4486844 | D110: 91.44811883 | E110: 9.806367844 | F110: 100227.0368 | G110: 305.3720481 | H110: 32.2220481 | I110: 20.22147826 | J110: 289.6383222 | K110: 1.133181787 | L110: 1.871311808e-05
A111: H | B111: =B110+100 -> 191.45 | C111: =Z_AirProperties(B111) -> 191.4442342 | D111: 185.1646912 | E111: 9.806059323 | F111: 99116.12248 | G111: 303.4545952 | H111: 30.30459525 | I111: 12.34896032 | J111: 288.6287908 | K111: 1.131646893 | L111: 1.862302901e-05
A112: H | B112: =B111+100 -> 291.45 | C112: =Z_AirProperties(B112) -> 291.436638 | D112: 279.3859802 | E112: 9.805750816 | F112: 98009.29768 | G112: 302.470418 | H112: 29.32041804 | I112: 11.88277112 | J112: 288.5981654 | K112: 1.122770012 | L112: 1.857668072e-05
A113: H | B113: 391.45 | C113: =Z_AirProperties(B113) -> 391.425896 | D113: 373.7092941 | E113: 9.805442323 | F113: 96911.32024 | G113: 301.4862718 | H113: 28.3362718 | I113: 11.41659658 | J113: 288.5680204 | K113: 1.113932227 | L113: 1.853026025e-05
A114: H | B114: 491.45 | C114: =Z_AirProperties(B114) -> 491.4120083 | D114: 468.1350834 | E114: 9.805133846 | F114: 95822.14756 | G114: 300.5021565 | H114: 27.35215652 | I114: 10.95043672 | J114: 288.5383504 | K114: 1.105133547 | L114: 1.848376733e-05
A115: H | B115: 591.45 | C115: =Z_AirProperties(B115) -> 591.3949751 | D115: 562.663802 | E115: 9.804825382 | F115: 94741.73714 | G115: 299.5180722 | H115: 26.36807221 | I115: 10.48429151 | J115: 288.5091499 | K115: 1.096373982 | L115: 1.843720167e-05
A116: H | B116: 691.45 | C116: =Z_AirProperties(B116) -> 691.3747965 | D116: 657.2959074 | E116: 9.804516934 | F116: 93670.04656 | G116: 298.5340188 | H116: 25.38401884 | I116: 10.01816097 | J116: 288.4804136 | K116: 1.087653538 | L116: 1.839056299e-05
A117: H | B117: 791.45 | C117: =Z_AirProperties(B117) -> 791.3514727 | D117: 752.0318605 | E117: 9.804208499 | F117: 92607.03345 | G117: 297.5499964 | H117: 24.39999644 | I117: 9.552045098 | J117: 288.4521361 | K117: 1.078972221 | L117: 1.834385101e-05
A118: H | B118: 891.45 | C118: =Z_AirProperties(B118) -> 891.3250038 | D118: 846.8721258 | E118: 9.80390008 | F118: 91552.65552 | G118: 296.566005 | H118: 23.41600499 | I118: 9.085943886 | J118: 288.4243121 | K118: 1.070330037 | L118: 1.829706544e-05
A119: H | B119: 991.45 | C119: =Z_AirProperties(B119) -> 991.29539 | D119: 941.8171714 | E119: 9.803591675 | F119: 90506.87055 | G119: 295.5820445 | H119: 22.4320445 | I119: 8.619857336 | J119: 288.3969363 | K119: 1.061726989 | L119: 1.825020599e-05
A120: H | B120: 1091.45 | C120: =Z_AirProperties(B120) -> 1091.262631 | D120: 1036.867469 | E120: 9.803283284 | F120: 89469.63638 | G120: 294.598115 | H120: 21.44811496 | I120: 8.153785448 | J120: 288.3700036 | K120: 1.05316308 | L120: 1.820327238e-05
A121: H | B121: 1191.45 | C121: =Z_AirProperties(B121) -> 1191.226728 | D121: 1132.023494 | E121: 9.802974908 | F121: 88440.91093 | G121: 293.6142164 | H121: 20.46421637 | I121: 7.687728221 | J121: 288.3435086 | K121: 1.04463831 | L121: 1.81562643e-05
A122: H | B122: 1291.45 | C122: =Z_AirProperties(B122) -> 1291.18768 | D122: 1227.285726 | E122: 9.802666547 | F122: 87420.6522 | G122: 292.6303487 | H122: 19.48034873 | I122: 7.221685655 | J122: 288.3174462 | K122: 1.03615268 | L122: 1.810918148e-05
A123: H | B123: 1391.45 | C123: =Z_AirProperties(B123) -> 1391.145488 | D123: 1322.654647 | E123: 9.8023582 | F123: 86408.81824 | G123: 291.646512 | H123: 18.49651204 | I123: 6.755657748 | J123: 288.2918112 | K123: 1.027706189 | L123: 1.80620236e-05
A124: H | B124: 1491.45 | C124: =Z_AirProperties(B124) -> 1491.100152 | D124: 1418.130744 | E124: 9.802049868 | F124: 85405.3672 | G124: 290.6627063 | H124: 17.51270629 | I124: 6.2896445 | J124: 288.2665986 | K124: 1.019298835 | L124: 1.801479039e-05
A125: H | B125: 1591.45 | C125: =Z_AirProperties(B125) -> 1591.051672 | D125: 1513.714508 | E125: 9.80174155 | F125: 84410.25726 | G125: 289.6789315 | H125: 16.52893149 | I125: 5.82364591 | J125: 288.2418032 | K125: 1.010930613 | L125: 1.796748153e-05
A126: H | B126: 1691.45 | C126: =Z_AirProperties(B126) -> 1691.000048 | D126: 1609.406433 | E126: 9.801433247 | F126: 83423.44671 | G126: 288.6951876 | H126: 15.54518763 | I126: 5.357661978 | J126: 288.2174199 | K126: 1.00260152 | L126: 1.792009674e-05
A127: H | B127: 1791.45 | C127: =Z_AirProperties(B127) -> 1790.94528 | D127: 1705.207018 | E127: 9.801124958 | F127: 82444.89389 | G127: 287.7114747 | H127: 14.56147472 | I127: 4.891692703 | J127: 288.1934438 | K127: 0.9943115487 | L127: 1.78726357e-05
A128: H | B128: 1891.45 | C128: =Z_AirProperties(B128) -> 1890.887368 | D128: 1801.116765 | E128: 9.800816684 | F128: 81474.55722 | G128: 286.7277927 | H128: 13.57779275 | I128: 4.425738084 | J128: 288.1698698 | K128: 0.9860606935 | L128: 1.782509812e-05
A129: H | B129: 1991.45 | C129: =Z_AirProperties(B129) -> 1990.826313 | D129: 1897.13618 | E129: 9.800508424 | F129: 80512.39519 | G129: 285.7441417 | H129: 12.59414171 | I129: 3.959798121 | J129: 288.1466929 | K129: 0.9778489459 | L129: 1.77774837e-05
A130: H | B130: 2091.45 | C130: =Z_AirProperties(B130) -> 2090.762115 | D130: 1993.265774 | E130: 9.800200179 | F130: 79558.36635 | G130: 284.7605216 | H130: 11.61052162 | I130: 3.493872812 | J130: 288.1239084 | K130: 0.9696762968 | L130: 1.772979212e-05
A131: H | B131: 2191.45 | C131: =Z_AirProperties(B131) -> 2190.694774 | D131: 2089.506062 | E131: 9.799891949 | F131: 78612.42934 | G131: 283.7769325 | H131: 10.62693246 | I131: 3.027962158 | J131: 288.1015112 | K131: 0.9615427359 | L131: 1.768202309e-05
A132: H | B132: 2291.45 | C132: =Z_AirProperties(B132) -> 2290.624289 | D132: 2185.857561 | E132: 9.799583733 | F132: 77674.54287 | G132: 282.7933742 | H132: 9.643374232 | I132: 2.562066157 | J132: 288.0794965 | K132: 0.953448252 | L132: 1.763417628e-05
A133: H | B133: 2391.45 | C133: =Z_AirProperties(B133) -> 2390.550662 | D133: 2282.320796 | E133: 9.799275531 | F133: 76744.6657 | G133: 281.8098469 | H133: 8.659846942 | I133: 2.096184809 | J133: 288.0578594 | K133: 0.9453928327 | L133: 1.758625139e-05
A134: H | B134: 2491.45 | C134: =Z_AirProperties(B134) -> 2490.473892 | D134: 2378.896293 | E134: 9.798967345 | F134: 75822.75669 | G134: 280.8263506 | H134: 7.676350583 | I134: 1.630318113 | J134: 288.0365953 | K134: 0.9373764644 | L134: 1.753824812e-05
A135: H | B135: 2591.45 | C135: =Z_AirProperties(B135) -> 2590.393979 | D135: 2475.584584 | E135: 9.798659172 | F135: 74908.77475 | G135: 279.8428852 | H135: 6.692885156 | I135: 1.164466068 | J135: 288.0156992 | K135: 0.9293991327 | L135: 1.749016613e-05
A136: H | B136: 2691.45 | C136: =Z_AirProperties(B136) -> 2690.310924 | D136: 2572.386205 | E136: 9.798351014 | F136: 74002.67888 | G136: 278.8594507 | H136: 5.709450657 | I136: 0.6986286738 | J136: 287.9951665 | K136: 0.9214608219 | L136: 1.744200513e-05
A137: H | B137: 2791.45 | C137: =Z_AirProperties(B137) -> 2790.224727 | D137: 2669.301696 | E137: 9.798042871 | F137: 73104.42813 | G137: 277.8760471 | H137: 4.726047086 | I137: 0.2328059298 | J137: 287.9749925 | K137: 0.9135615154 | L137: 1.739376478e-05
A138: H | B138: 2891.45 | C138: =Z_AirProperties(B138) -> 2890.135388 | D138: 2766.331603 | E138: 9.797734742 | F138: 72213.98165 | G138: 276.8926744 | H138: 3.742674442 | I138: -0.233002165 | J138: 287.9551726 | K138: 0.9057011956 | L138: 1.734544478e-05
A139: H | B139: 2991.45 | C139: =Z_AirProperties(B139) -> 2990.042907 | D139: 2863.476473 | E139: 9.797426628 | F139: 71331.29865 | G139: 275.9093327 | H139: 2.759332722 | I139: -0.6987956112 | J139: 287.935702 | K139: 0.8978798437 | L139: 1.729704479e-05
A140: H | B140: 3091.45 | C140: =Z_AirProperties(B140) -> 3089.947283 | D140: 2960.736861 | E140: 9.797118529 | F140: 70456.3384 | G140: 274.9260219 | H140: 1.776021926 | I140: -1.164574409 | J140: 287.9165762 | K140: 0.8900974402 | L140: 1.72485645e-05
A141: H | B141: 3191.45 | C141: =Z_AirProperties(B141) -> 3189.848519 | D141: 3058.113327 | E141: 9.796810443 | F141: 69589.06026 | G141: 273.9427421 | H141: 0.7927420516 | I141: -1.63033856 | J141: 287.8977906 | K141: 0.8823539642 | L141: 1.720000359e-05
A142: H | B142: 3291.45 | C142: =Z_AirProperties(B142) -> 3289.746612 | D142: 3155.606432 | E142: 9.796502373 | F142: 68729.42366 | G142: 272.9594931 | H142: -0.1905069023 | I142: -2.096088065 | J142: 287.8793408 | K142: 0.8746493941 | L142: 1.715136172e-05
A143: H | B143: 3391.45 | C143: =Z_AirProperties(B143) -> 3389.641565 | D143: 3253.216745 | E143: 9.796194317 | F143: 67877.38809 | G143: 271.9762751 | H143: -1.173724937 | I143: -2.561822923 | J143: 287.8612221 | K143: 0.8669837071 | L143: 1.710263857e-05
A144: H | B144: 3491.45 | C144: =Z_AirProperties(B144) -> 3489.533376 | D144: 3350.944839 | E144: 9.795886275 | F144: 67032.91313 | G144: 270.9930879 | H144: -2.156912054 | I144: -3.027543137 | J144: 287.8434303 | K144: 0.8593568798 | L144: 1.705383382e-05
A145: H | B145: 3591.45 | C145: =Z_AirProperties(B145) -> 3589.422046 | D145: 3448.791291 | E145: 9.795578248 | F145: 66195.95842 | G145: 270.0099317 | H145: -3.140068256 | I145: -3.493248706 | J145: 287.8259607 | K145: 0.8517688873 | L145: 1.700494711e-05
A146: H | B146: 3691.45 | C146: =Z_AirProperties(B146) -> 3689.307575 | D146: 3546.796272 | E146: 9.795270236 | F146: 65366.1502 | G146: 269.1655098 | H146: -3.984490239 | I146: -3.984490239 | J146: 287.8073545 | K146: 0.8437846304 | L146: 1.696289197e-05
A147: H | B147: 3791.45 | C147: =Z_AirProperties(B147) -> 3789.189963 | D147: 3644.90068 | E147: 9.794962238 | F147: 64543.95615 | G147: 268.6193462 | H147: -4.53065378 | I147: -4.53065378 | J147: 287.7860515 | K147: 0.8349270915 | L147: 1.69356581e-05
A148: H | B148: 3891.45 | C148: =Z_AirProperties(B148) -> 3889.069211 | D148: 3742.96497 | E148: 9.794654254 | F148: 63730.48742 | G148: 268.0731999 | H148: -5.076800148 | I148: -5.076800148 | J148: 287.765233 | K148: 0.8261435552 | L148: 1.690839907e-05
A149: H | B149: 3991.45 | C149: =Z_AirProperties(B149) -> 3988.945318 | D149: 3840.993976 | E149: 9.794346285 | F149: 62925.62864 | G149: 267.8173738 | H149: -5.332626213 | I149: -6.300303314 | J149: 287.7097793 | K149: 0.8166466633 | L149: 1.689562142e-05
A150: H | B150: 4091.45 | C150: =Z_AirProperties(B150) -> 4088.818285 | D150: 3938.743774 | E150: 9.794038331 | F150: 62131.27766 | G150: 268.3634858 | H150: -4.786514189 | I150: -9.394938115 | J150: 287.5753214 | K150: 0.8050729712 | L150: 1.692289094e-05
A151: H | B151: 4191.45 | C151: =Z_AirProperties(B151) -> 4188.688112 | D151: 4036.056536 | E151: 9.793730391 | F151: 61348.56308 | G151: 268.9095807 | H151: -4.240419336 | I151: -12.48947561 | J151: 287.4656158 | K151: 0.7936192875 | L151: 1.695013357e-05
A152: H | B152: 4291.45 | C152: =Z_AirProperties(B152) -> 4288.554798 | D152: 4132.960415 | E152: 9.793422466 | F152: 60577.09056 | G152: 269.2221194 | H152: -3.927880569 | I152: -15.23360744 | J152: 287.3862798 | K152: 0.7829456967 | L152: 1.696571327e-05
A153: H | B153: 4391.45 | C153: =Z_AirProperties(B153) -> 4388.418345 | D153: 4229.763129 | E153: 9.793114555 | F153: 59814.2856 | G153: 268.6760589 | H153: -4.473941083 | I153: -16.68976881 | J153: 287.3516708 | K153: 0.7747511403 | L153: 1.693848723e-05
A154: H | B154: 4491.45 | C154: =Z_AirProperties(B154) -> 4488.278752 | D154: 4326.525918 | E154: 9.792806659 | F154: 59059.58706 | G154: 268.1300156 | H154: -5.019984429 | I154: -18.1458844 | J154: 287.3202142 | K154: 0.7666176098 | L154: 1.691123605e-05
A155: H | B155: 4591.45 | C155: =Z_AirProperties(B155) -> 
A156: H | B156: 4691.45 | C156: =Z_AirProperties(B156) -> 
A157: H | B157: 4791.45 | C157: =Z_AirProperties(B157) -> 
A158: H | B158: 4891.45 | C158: =Z_AirProperties(B158) -> 
A159: H | B159: 4991.45 | C159: =Z_AirProperties(B159) -> 
A160: H | B160: 5091.45 | C160: =Z_AirProperties(B160) -> 
A161: H | B161: 5191.45 | C161: =Z_AirProperties(B161) -> 
A162: H | B162: 5291.45 | C162: =Z_AirProperties(B162) -> 
A163: H | B163: 5391.45 | C163: =Z_AirProperties(B163) -> 
A164: H | B164: 5491.45 | C164: =Z_AirProperties(B164) -> 
A165: H | B165: 5591.45 | C165: =Z_AirProperties(B165) -> 
A166: H | B166: 5691.45 | C166: =Z_AirProperties(B166) -> 
A167: H | B167: 5791.45 | C167: =Z_AirProperties(B167) -> 
A168: H | B168: 5891.45 | C168: =Z_AirProperties(B168) -> 
A169: H | B169: 5991.45 | C169: =Z_AirProperties(B169) -> 
A170: H | B170: =MAX(H7:H12) -> 4572 | C170: =Z_AirProperties(B170) -> 4568.714027 | D170: 4404.439272 | E170: 9.792558659 | F170: 58457.52433 | G170: 267.6901901 | H170: -5.45980986 | I170: -19.31875222 | J170: 287.2970008 | K170: 0.760110743 | L170: 1.68892669e-05
